Workbook

Sheet CONFIGURATOR
C1: 2024/10/25 – RH3D
D2: ENDER 3 NG | K2: CONFIGURATOR GUIDE
D3: BILL OF MATERIAL and PRINTED PARTS configurator | K3: Before setting your configuration, please read through the configurator guide first to understand all the options.
D5: BASE BUILD | K5: IMPORTANT LINKS
D6: BASE PRINTER | E6: Creality Ender 3 Pro | K6: RH3D.xyz | L6: The main site for the project, where you will find all the information you need.
D7: ENCLOSURE | E7: None | K7: CONFIGURATOR | L7: Check for the latest updated version before shopping or starting the build.
D8: FRAME | E8: 2040 extrusion upgrade | K8: PRINTABLES | L8: The main site for hosting STL files.
D9: Z AXIS RODS | E9: 3x12 mm rod | K9: BUILD MANUAL | L9: Build instructions.
D10: BED CARRIAGE | E10: Stock E3 bed carriage | K10: REMIXES | L10: User mods on printables for the version 1.2.
D11: Z WOBBLE COMPENSATION | E11: Flexi joint | K11: REMIXES beta | L11: User mods for the beta version - most of them are still be compatible.
D12: Z AXIS DRIVE | E12: 1 stepper - 1140 mm belt | K12: FEEDBACK | L12: Any feedback can be given in the form here.
D13: LEADSCREW PULLEYS | E13: Aluminium | K13: PRINTING GUIDE | L13: Recommended guidance to help with setting the printer before printing parts.
D14: PSU THICKNESS | E14: 30 mm | K14: SOURCING GUIDE | L14: Basic walkthrough to help with sourcing parts.
D15: BOARD MOUNT | E15: BTT Octopus v1.1
D17: TOOLHEAD | K17: OTHER LINKS
D18: HOTEND | E18: Phaetus Rapido UHF | K18: DISCORD invite | L18: Join the awesome community on Discord, browse user builds or mods. | N18: BambuLab | O18: Creality MK8 | P18: Creality Spider V3 | Q18: Creality Spider V3 Volcano | R18: DropEffect neXtG HF | S18: DropEffect neXtG UHF | T18: Goliath AIR | U18: Phaetus BMS Dragonfly | V18: Phaetus Dragon 1 SF/HF | W18: Phaetus Dragon 2 HF | X18: Phaetus Dragon 2 UHF | Y18: Phaetus Rapido HF | Z18: Phaetus Rapido UHF | AA18: Revo Voron | AB18: TriangleLab Dragon ACE | AC18: TriangleLab Dragon ACE+ | AD18: E3D V6 | AE18: E3D V6 Volcano | AF18: CHC | AG18: CHC Pro
D19: EXTRUDER | E19: Integrated Sherpa micro | K19: DISCORD server | L19: Link to the discord server. | N19: Bowden | O19: BMG LGX | P19: VzHextrudort | Q19: Hummingbird | R19: Orbiter 2.0 | S19: ProtoXtruder | T19: ProtoXtruder 2.0 | U19: Sherpa mini | V19: Sherpa micro | W19: Integrated VzHextrudort low | X19: Integrated VzHextrudort helical | Y19: Integrated Hummingbird | Z19: Integrated ProtoXtruder | AA19: Integrated ProtoXtruder 2.0 | AB19: Integrated Sherpa mini | AC19: Integrated Sherpa micro
D20: BOWDEN COUPLING | E20: M6 thread
D21: PART COOLING | E21: 2x 4010 | K21: YOUTUBE | L21: Visit the main YouTube channel. | N21: 2x 4010 | O21: 2x 4020 | P21: 2x 5015 | Q21: CPAP | R21: AUX only
D22: BED PROBE | E22: BDsensor | K22: INSTAGRAM | L22: Visit the main Instagram channel. | N22: BDsensor | O22: Beacon scanner | P22: BIQU Microprobe | Q22: BLTouch | R22: BTT Eddy | S22: CR Touch | T22: Klicky probe | U22: KlickyPCB | V22: P.I.N.D.A. / SuperPINDA | W22: No probe
D23: ACCESSORIES | E23: Accel + cable | K23: DONATE | L23: If you would like to further support the project, keep it alive and growing. Thank you! ❤︎ | N23: Accelerometer | O23: Breakout board | P23: Cable guide | Q23: Accel + cable | R23: Breakout + cable | S23: None
D25: MODS / UPGRADES | K25: DISCLAIMER
D26: STEPPER COOLING | E26: AB stepper cooling | K26: The configurator is released as is and even after thorough testing it may still contain mistakes.
D27: FRAME BRACES | E27: No | K27: If you find any issues, miscalculations, faulty links or products out of stock, please let me know through the
D28: HORIZONTAL STABILISER | E28: Yes
D29: HANDLES | E29: Yes | K29: FEEDBACK link above so I can fix it.
D30: LED LIGHTS | E30: Frame LED
D31: INTERNAL SPOOL ROLLER | E31: No
D32: INTERNAL AIR FILTRATION | E32: No
D33: VORON M4 EXTRUDER | E33: No
D34: ELECTRONICS COVERING | E34: 2mm sheet
D35: AUX COOLING | E35: No | K35: Most of the links in the BOM are Affiliate, that means a small commision is shared with the creator or his team while
D36: BED WIRING - WAGO 221 | E36: No - stock cables | K36: adding no cost to the end user. All the product links were chosen as a best known or verified and tested product
D37: UNDER BED FAN | E37: No | K37: offer and in no way any of the products have been chosen only to prefer higher commision over the quality.
D38: AUTO Z - VORON | E38: No
K40: Income from the affiliate links will be used to cover the cost of the development, testing and maintenance of the
D41: TOTAL PRICE LOW * | F41: XXX $
D42: TOTAL PRICE * | F42: ='BILL OF MATERIAL'!K5+'BILL OF MATERIAL'!K54+'BILL OF MATERIAL'!K71+'BILL OF MATERIAL'!K86+'BILL OF MATERIAL'!K107 -> 274.5626848 | K42: project and to support further development of new upgrades or other projects.
K43: If you decide to further support the project, you can find donate link on the main project website.
D44: TOTAL FILAMENT WEIGHT – MAIN COLOR ** | F44: ='PRINTED PARTS'!I5+'PRINTED PARTS'!I33+'PRINTED PARTS'!I46+'PRINTED PARTS'!I72+'PRINTED PARTS'!I77+'PRINTED PARTS'!I157+'PRINTED PARTS'!I203+'PRINTED PARTS'!I235 -> 898.19
D45: TOTAL FILAMENT WEIGHT – ACCENT COLOR ** | F45: ='PRINTED PARTS'!J5+'PRINTED PARTS'!J33+'PRINTED PARTS'!J46+'PRINTED PARTS'!J72+'PRINTED PARTS'!J77+'PRINTED PARTS'!J157+'PRINTED PARTS'!J203+'PRINTED PARTS'!J235 -> 703.92
D48: READY? CONTINUE TO:
B49: * Price includes only parts in the official BOM, it doesn’t include filament price, the base printer or upgrades like hotend, board etc.
B50: * Price is only a rough estimate – it will vary in time but also according to your location, currency, shipping conditions,
B51: total ordered amount and other things.
B53: ** Weight is calculated with recommended print settings and can differ based on your settings like extrusion multiplier,
B54: purge lines, brim etc. Always have more filament than is required and expect possibility of failed prints.

Sheet BILL OF MATERIAL
D1: BACK TO: | H1: GO TO: | GH1: 2024/10/25 – RH3D
M2: HIDE | U2: FRAME BOTTOM | AM2: TOP FRAME | AS2: FRAME | BB2: XY MOTION | BE2: ENCLOSURE | BG2: BED | BS2: ELECTRONICS | CI2: BASE PRINTER | CO2: ENCLOSURE | CR2: 2040 | CU2: Z RODS | CW2: BED CARRIAGE | DA2: Z WOBBLE | DD2: Z DRIVE | DG2: PULLEY | DI2: PSU | DK2: HOTEND | EF2: EXTRUDER | EZ2: PART COOLING | FE2: BED PROBE | FO2: ACCESSORY | FU2: BRACES | FV2: HORIZ | FW2: HANDL | FX2: LED | GA2: SPOOL | GB2: FILTER | GC2: VorM4 | GD2: ELE.sh | GE2: RSCS
C3: NAME | E3: PCS | F3: NOTE | G3: MAIN LINK | I3: ALT. LINK | J3: $/1PC | K3: PRICE | N3: FRAME | O3: BED | P3: ELECTRONICS | Q3: XY MOTION | R3: TOOLHEAD | S3: OTHER | T3: ENCL | U3: fr right | V3: fr left | W3: fr bottom | X3: re left | Y3: re right | Z3: re L 2040 | AA3: re R 2040 | AB3: left ulti | AC3: right ulti | AD3: LS1140 | AE3: LS1040 | AF3: LS1140_3 | AG3: LS1040_3 | AH3: belt idler | AI3: N17 | AJ3: 3Z N17 | AK3: E3 fit | AL3: 4040 fix | AM3: fr right | AN3: fr left | AO3: re right | AP3: re left | AQ3: re mid | AR3: re mid 3Z | AS3: BARE | AT3: + print | AU3: ="+ 2040" -> + 2040 | AV3: + ulti | AW3: ="+ E3" -> + E3 | AX3: ="+ E3v2" -> + E3v2 | AY3: + TRIPPLE | AZ3: + 3Z N17 | BA3: + PR 40T | BB3: Y left | BC3: Y right | BD3: TH base | BE3: V1 | BF3: V2 | BG3: METAL | BH3: + FAN | BI3: Stock-FX | BJ3: Stock-WX | BK3: Stock-SD | BL3: + FAN | BM3: PRINTED | BN3: + FAN | BO3: TRIPPLE Z | BP3: Wago-DC | BQ3: Wago-AC | BR3: SEXBOLT | BS3: PANEL | BT3: COOLING | BU3: grill+AC | BV3: XY stop | BW3: 30PSU | BX3: 50PSU | BY3: RPI4 | BZ3: skr3ez | CA3: expm | CB3: octo | CC3: miniv2 | CD3: rs15 | CE3: ssr | CF3: LT933 | CG3: LT623 | CH3: other | CI3: E3pro | CJ3: E3 | CK3: E3V2 | CL3: Nept2 | CM3: AquX2 | CN3: None | CO3: V1 | CP3: V2 | CQ3: None | CR3: No | CS3: 350 | CT3: Ulti | CU3: 3x | CV3: 2x | CW3: E3bed | CX3: Print | CY3: Laser | CZ3: Z tilt | DA3: Flexi | DB3: WobX | DC3: None | DD3: 1140 | DE3: 1040 | DF3: 3xN17 | DG3: Alu | DH3: Print | DI3: 30 | DJ3: 50 | DK3: Bamb | DL3: MK8 | DM3: SPV3 | DN3: SPV3V | DO3: nXG_H | DP3: nXG_U | DQ3: CHC | DR3: CHCV | DS3: V6 | DT3: V6_V | DU3: Goliat | DV3: revor | DW3: Dfly | DX3: Drag1 | DY3: Dr2HF | DZ3: Dr2U | EA3: rapHF | EB3: raUH | EC3: Mosq | ED3: ACE | EE3: ACE+ | EF3: Shmin | EG3: =int | EH3: Shmic | EI3: =int | EJ3: LGX | EK3: LGXlit | EL3: BMG | EM3: ORB1 | EN3: ORB2 | EO3: Hextr | EP3: =int | EQ3: =heli | ER3: Proto | ES3: =int | ET3: Proto | EU3: =int | EV3: Hum | EW3: =int | EX3: Titan | EY3: BOW | EZ3: 4010 | FA3: 4020 | FB3: 5015 | FC3: CPAP | FD3: RSCS | FE3: Klicky | FF3: =PCB | FG3: Beac | FH3: Bdsen | FI3: BLTou | FJ3: CRTo | FK3: Biqu | FL3: Pinda | FM3: EDDY | FN3: None | FO3: JST | FP3: adxl | FQ3: BB+C | FR3: AD+C | FS3: cable | FT3: none | FU3: Yes | FV3: Yes | FW3: Yes | FX3: FRM | FY3: ENC | FZ3: ALL | GA3: Yes | GB3: Yes | GC3: Yes | GD3: Cut | GE3: Yes | GH3: PERSONAL NOTES
AS4: 1 | AT4: =IF(CONFIGURATOR!$E$8="Printed verticals",1,0) -> 0 | AU4: =IF(CONFIGURATOR!$E$8="2040 extrusion upgrade",1,0) -> 1 | AV4: =IF(CONFIGURATOR!$E$8="Ultimate frame",1,0) -> 0 | AW4: =IF(CONFIGURATOR!$E$6="Creality Ender 3",1,0) -> 0 | AX4: =IF(CONFIGURATOR!$E$6="Creality Ender 3 V2",1,0) -> 0 | AY4: =IF(CONFIGURATOR!$E$9="3x12 mm rod",1,0) -> 1 | AZ4: =IF(CONFIGURATOR!$E$12="3 independent steppers",1,0) -> 0 | BA4: =IF(CONFIGURATOR!$E$13="Printed",1,0) -> 0 | BB4: 1 | BC4: 1 | BD4: 1 | BE4: =IF(CONFIGURATOR!$E$7="Yes - V1",1,0) -> 0 | BF4: =IF(CONFIGURATOR!$E$7="Yes - V2",1,0) -> 0 | BG4: =IF(CONFIGURATOR!$E$10="Custom metal bed carriage",1,0) -> 0 | BH4: =IF(CONFIGURATOR!$E$10="Custom metal bed carriage",IF(CONFIGURATOR!$E$37="Yes",1,0),0) -> 0 | BI4: =IF(CONFIGURATOR!$E$10="Stock E3 bed carriage",IF(CONFIGURATOR!$E$11="Flexi joint",1,0),IF(CONFIGURATOR!$E$10="All printed",IF(CONFIGURATOR!$E$11="Flexi joint",1,0),0)) -> 1 | BJ4: =IF(CONFIGURATOR!$E$10="Stock E3 bed carriage",IF(CONFIGURATOR!$E$11="WobbleX",1,0),IF(CONFIGURATOR!$E$10="All printed",IF(CONFIGURATOR!$E$11="WobbleX",1,0),0)) -> 0 | BK4: =IF(CONFIGURATOR!$E$10="Stock E3 bed carriage",IF(CONFIGURATOR!$E$11="None",1,0),IF(CONFIGURATOR!$E$10="All printed",IF(CONFIGURATOR!$E$11="None",1,0),0)) -> 0 | BL4: =IF((CONFIGURATOR!$E$10="Stock E3 bed carriage"),IF(CONFIGURATOR!$E$37="Yes",1,0),0) -> 0 | BM4: =IF((CONFIGURATOR!$E$10="All printed"),1,0) -> 0 | BN4: =IF((CONFIGURATOR!$E$10="All printed"),IF(CONFIGURATOR!$E$37="Yes",1,0),0) -> 0 | BO4: =IF(CONFIGURATOR!$E$9="3x12 mm rod",IF(CONFIGURATOR!$E$10="Custom metal bed carriage",0,1),0) -> 1 | BP4: =IF(CONFIGURATOR!$E$36="Yes - DC bed heater",1,0) -> 0 | BQ4: =IF(CONFIGURATOR!$E$36="Yes - AC bed heater",1,0) -> 0 | BR4: =IF(CONFIGURATOR!$E$38="Yes",IF(CONFIGURATOR!$E$10="Custom metal bed carriage",0,1),0) -> 0 | BS4: 1 | BT4: =IF(CONFIGURATOR!$E$26="AB stepper cooling",1,0) -> 1 | BU4: 1 | BV4: 1 | BW4: =IF(CONFIGURATOR!$E$14="30 mm",1,0) -> 1 | BX4: =IF(CONFIGURATOR!$E$14="50 mm",1,0) -> 0 | BY4: 0 | BZ4: =IF(CONFIGURATOR!$E$15="BTT SKR3EZ",1,0) -> 0 | CA4: 0 | CB4: =IF(CONFIGURATOR!$E$15="BTT Octopus v1.1",1,0) -> 1 | CC4: =IF(CONFIGURATOR!$E$15="BTT SKR mini E3 v2",1,0) -> 0 | CD4: 0 | CE4: 0 | CF4: 0 | CG4: 0 | CH4: =IF(CONFIGURATOR!$E$15="Other",1,0) -> 0 | CI4: =IF(CONFIGURATOR!$E$6="Creality Ender 3 Pro",1,0) -> 1 | CJ4: =IF(CONFIGURATOR!$E$6="Creality Ender 3",1,0) -> 0 | CK4: =IF(CONFIGURATOR!$E$6="Creality Ender 3 V2",1,0) -> 0 | CL4: =IF(CONFIGURATOR!$E$6="Elegoo Neptune 2",1,0) -> 0 | CM4: =IF(CONFIGURATOR!$E$6="Aquila X2",1,0) -> 0 | CN4: =IF(CONFIGURATOR!$E$6="Other / Custom",1,0) -> 0 | CO4: =IF(CONFIGURATOR!$E$7="Yes - V1",1,0) -> 0 | CP4: =IF(CONFIGURATOR!$E$7="Yes - V2",1,0) -> 0 | CQ4: =IF(CONFIGURATOR!$E$7="None",1,0) -> 1 | CR4: =IF(CONFIGURATOR!$E$8="Printed verticals",1,0) -> 0 | CS4: =IF(CONFIGURATOR!$E$8="2040 extrusion upgrade",1,0) -> 1 | CT4: =IF(CONFIGURATOR!$E$8="Ultimate frame",1,0) -> 0 | CU4: =IF(CONFIGURATOR!$E$9="3x12 mm rod",1,0) -> 1 | CV4: =IF(CONFIGURATOR!$E$9="2x12 mm rod",1,0) -> 0 | CW4: =IF(CONFIGURATOR!$E$10="Stock E3 bed carriage",1,0) -> 1 | CX4: =IF(CONFIGURATOR!$E$10="All printed",1,0) -> 0 | CY4: =IF(CONFIGURATOR!$E$10="Custom metal bed carriage",1,0) -> 0 | CZ4: =IF(CONFIGURATOR!$E$10="Z Tilt bed",1,0) -> 0 | DA4: =IF(CONFIGURATOR!$E$11="Flexi joint",1,0) -> 1 | DB4: =IF(CONFIGURATOR!$E$11="WobbleX",1,0) -> 0 | DC4: =IF(CONFIGURATOR!$E$11="None",1,0) -> 0 | DD4: =IF(CONFIGURATOR!$E$12="1 stepper - 1140 mm belt",1,0) -> 1 | DE4: =IF(CONFIGURATOR!$E$12="1 stepper - 1040 mm belt",1,0) -> 0 | DF4: =IF(CONFIGURATOR!$E$12="3 independent steppers",1,0) -> 0 | DG4: =IF(CONFIGURATOR!$E$13="Aluminium",1,0) -> 1 | DH4: =IF(CONFIGURATOR!$E$13="Printed",1,0) -> 0 | DI4: =IF(CONFIGURATOR!$E$14="30 mm",1,0) -> 1 | DJ4: =IF(CONFIGURATOR!$E$14="50 mm",1,0) -> 0 | DK4: =IF(CONFIGURATOR!$E$18="BambuLab",1,0) -> 0 | DL4: =IF(CONFIGURATOR!$E$18="Creality MK8",1,0) -> 0 | DM4: =IF(CONFIGURATOR!$E$18="Creality Spider V3",1,0) -> 0 | DN4: =IF(CONFIGURATOR!$E$18="Creality Spider V3 Volcano",1,0) -> 0 | DO4: =IF(CONFIGURATOR!$E$18="DropEffect neXtG HF",1,0) -> 0 | DP4: =IF(CONFIGURATOR!$E$18="DropEffect neXtG UHF",1,0) -> 0 | DQ4: =IF(CONFIGURATOR!$E$18="CHC",1,0) -> 0 | DR4: =IF(CONFIGURATOR!$E$18="CHC Pro",1,0) -> 0 | DS4: =IF(CONFIGURATOR!$E$18="E3D V6",1,0) -> 0 | DT4: =IF(CONFIGURATOR!$E$18="E3D V6 Volcano",1,0) -> 0 | DU4: =IF(CONFIGURATOR!$E$18="Goliath AIR",1,0) -> 0 | DV4: =IF(CONFIGURATOR!$E$18="Revo Voron",1,0) -> 0 | DW4: =IF(CONFIGURATOR!$E$18="Phaetus BMS Dragonfly",1,0) -> 0 | DX4: =IF(CONFIGURATOR!$E$18="Phaetus Dragon 1 SF/HF",1,0) -> 0 | DY4: =IF(CONFIGURATOR!$E$18="Phaetus Dragon 2 HF",1,0) -> 0 | DZ4: =IF(CONFIGURATOR!$E$18="Phaetus Dragon 2 UHF",1,0) -> 0 | EA4: =IF(CONFIGURATOR!$E$18="Phaetus Rapido HF",1,0) -> 0 | EB4: =IF(CONFIGURATOR!$E$18="Phaetus Rapido UHF",1,0) -> 1 | EC4: =IF(CONFIGURATOR!$E$18="SliceEngineering Mosquito",1,0) -> 0 | ED4: =IF(CONFIGURATOR!$E$18="TriangleLab ACE",1,0) -> 0 | EE4: =IF(CONFIGURATOR!$E$18="TriangleLab ACE+",1,0) -> 0 | EF4: =IF(CONFIGURATOR!$E$19="Sherpa mini",1,0) -> 0 | EG4: =IF(CONFIGURATOR!$E$19="Integrated Sherpa mini",1,0) -> 0 | EH4: =IF(CONFIGURATOR!$E$19="Sherpa micro",1,0) -> 0 | EI4: =IF(CONFIGURATOR!$E$19="Integrated Sherpa micro",1,0) -> 1 | EJ4: =IF(CONFIGURATOR!$E$19="BMG LGX",1,0) -> 0 | EK4: =IF(CONFIGURATOR!$E$19="BMG LGX Lite",1,0) -> 0 | EL4: =IF(CONFIGURATOR!$E$19="BMG Dualgear",1,0) -> 0 | EM4: =IF(CONFIGURATOR!$E$19="Orbiter 1.0",1,0) -> 0 | EN4: =IF(CONFIGURATOR!$E$19="Orbiter 2.0",1,0) -> 0 | EO4: =IF(CONFIGURATOR!$E$19="VzHextrudort",1,0) -> 0 | EP4: =IF(CONFIGURATOR!$E$19="Integrated VzHextrudort low",1,0) -> 0 | EQ4: =IF(CONFIGURATOR!$E$19="Integrated VzHextrudort helical",1,0) -> 0 | ER4: =IF(CONFIGURATOR!$E$19="ProtoXtruder",1,0) -> 0 | ES4: =IF(CONFIGURATOR!$E$19="Integrated ProtoXtruder",1,0) -> 0 | ET4: =IF(CONFIGURATOR!$E$19="ProtoXtruder 2.0",1,0) -> 0 | EU4: =IF(CONFIGURATOR!$E$19="Integrated ProtoXtruder 2.0",1,0) -> 0 | EV4: =IF(CONFIGURATOR!$E$19="Hummingbird",1,0) -> 0 | EW4: =IF(CONFIGURATOR!$E$19="Integrated Hummingbird",1,0) -> 0 | EX4: =IF(CONFIGURATOR!$E$19="E3D Titan Extruder",1,0) -> 0 | EY4: =IF(CONFIGURATOR!$E$19="Bowden",1,0) -> 0 | EZ4: =IF(CONFIGURATOR!$E$21="2x 4010",1,0) -> 1 | FA4: =IF(CONFIGURATOR!$E$21="2x 4020",1,0) -> 0 | FB4: =IF(CONFIGURATOR!$E$21="2x 5015",1,0) -> 0 | FC4: =IF(CONFIGURATOR!$E$21="CPAP",1,0) -> 0 | FD4: =IF(CONFIGURATOR!$E$21="RSCS only",1,0) -> 0 | FE4: =IF(CONFIGURATOR!$E$22="Klicky probe",1,0) -> 0 | FF4: =IF(CONFIGURATOR!$E$22="KlickyPCB",1,0) -> 0 | FG4: =IF(CONFIGURATOR!$E$22="Beacon scanner",1,0) -> 0 | FH4: =IF(CONFIGURATOR!$E$22="BDsensor",1,0) -> 1 | FI4: =IF(CONFIGURATOR!$E$22="BLTouch",1,0) -> 0 | FJ4: =IF(CONFIGURATOR!$E$22="CR Touch",1,0) -> 0 | FK4: =IF(CONFIGURATOR!$E$22="Biqu MicroProbe",1,0) -> 0 | FL4: =IF(CONFIGURATOR!$E$22="P.I.N.D.A. / SuperPINDA",1,0) -> 0 | FM4: =IF(CONFIGURATOR!$E$22="BTT EDDY",1,0) -> 0 | FN4: =IF(CONFIGURATOR!$E$22="No probe",1,0) -> 0 | FO4: =IF(CONFIGURATOR!$E$23="Breakout Board",1,0) -> 0 | FP4: =IF(CONFIGURATOR!$E$23="Accelerometer",1,0) -> 0 | FQ4: =IF(CONFIGURATOR!$E$23="Breakout + cable",1,0) -> 0 | FR4: =IF(CONFIGURATOR!$E$23="Accel + cable",1,0) -> 1 | FS4: =IF(CONFIGURATOR!$E$23="Cable guide",1,0) -> 0 | FT4: =IF(CONFIGURATOR!$E$23="n",1,0) -> 0 | FU4: =IF(CONFIGURATOR!$E$27="Yes",1,0) -> 0 | FV4: =IF(CONFIGURATOR!$E$28="Yes",1,0) -> 1 | FW4: =IF(CONFIGURATOR!$E$29="Yes",1,0) -> 1 | FX4: =IF(CONFIGURATOR!$E$30="Frame LED",1,0) -> 1 | FY4: =IF(CONFIGURATOR!$E$30="Enclosure LED",1,0) -> 0 | FZ4: =IF(CONFIGURATOR!$E$30="Both LEDs",1,0) -> 0 | GA4: =IF(CONFIGURATOR!$E$31="Yes",1,0) -> 0 | GB4: =IF(CONFIGURATOR!$E$32="Yes",1,0) -> 0 | GC4: =IF(CONFIGURATOR!$E$33="Yes",1,0) -> 0 | GD4: =IF(CONFIGURATOR!$E$34="2mm sheet",1,0) -> 1 | GE4: =IF(CONFIGURATOR!$E$35="Yes",1,0) -> 0
C5: HARDWARE | F5: Minimal amount is calculated here – always buy some extra. | K5: =SUM(K6:K53) -> 36.79018485 | M5: 0 | N5: =AS$4*AS5+AT$4*AT5+AU$4*AU5+AV$4*AV5+AW$4*AW5+AX$4*AX5+AY$4*AY5+AZ$4*AZ5+BA$4*BA5 -> 0 | O5: =BG$4*BG5+BH$4*BH5+BI$4*BI5+BJ$4*BJ5+BK$4*BK5+BL$4*BL5+BM$4*BM5+BN$4*BN5+BO$4*BO5+BP$4*BP5+BQ$4*BQ5+BR$4*BR5 -> 0 | P5: =BS$4*BS5+BT$4*BT5+BU$4*BU5+BV$4*BV5+BW$4*BW5+BX$4*BX5+BY$4*BY5+BZ$4*BZ5+CA$4*CA5+CB$4*CB5+CC$4*CC5+CD$4*CD5+CE$4*CE5+CF$4*CF5+CG$4*CG5+CH$4*CH5 -> 0 | Q5: =BB$4*BB5+BC$4*BC5+BD$4*BD5 -> 0 | R5: =DK$4*DK5+DL$4*DL5+DM$4*DM5+DN$4*DN5+DO$4*DO5+DP$4*DP5+DQ$4*DQ5+DR$4*DR5+DS$4*DS5+DT$4*DT5+DU$4*DU5+DV$4*DV5+DW$4*DW5+DX$4*DX5+DY$4*DY5+DZ$4*DZ5+EA$4*EA5+EB$4*EB5+EC$4*EC5+ED$4*ED5+EE$4*EE5+EF$4*EF5+EG$4*EG5+EH$4*EH5+EI$4*EI5+EJ$4*EJ5+EK$4*EK5+EL$4*EL5+EM$4*EM5+EN$4*EN5+EO$4*EO5+EP$4*EP5+EQ$4*EQ5+ER$4*ER5+ES$4*ES5+ET$4*ET5+EU$4*EU5+EV$4*EV5+EW$4*EW5+EX$4*EX5+EY$4*EY5+EZ$4*EZ5+FA$4*FA5+FB$4*FB5+FC$4*FC5+FD$4*FD5+FE$4*FE5+FF$4*FF5+FG$4*FG5+FH$4*FH5+FI$4*FI5+FJ$4*FJ5+FK$4*FK5+FL$4*FL5+FM$4*FM5+FN$4*FN5+FO$4*FO5+FP$4*FP5+FQ$4*FQ5+FR$4*FR5+FS$4*FS5+FT$4*FT5 -> 3 | S5: =FU$4*FU5+FV$4*FV5+FW$4*FW5+FX$4*FX5+FY$4*FY5+FZ$4*FZ5+GA$4*GA5+GB$4*GB5+GC$4*GC5+GD$4*GD5+GE$4*GE5 -> 0 | T5: =BF$4*BF5 -> 0 | AS5: =U5+V5+W5+AD5+AH5+AI5+AM5+AN5+AO5+AP5+AQ5 -> 0 | AT5: =X5+Y5 -> 0 | AU5: =Z5+AA5 -> 0 | AV5: =AB5+AC5 -> 0 | AW5: =AK5 -> 0 | AX5: =AL5 -> 0 | AY5: =AF5+AR5 -> 0 | AZ5: =AJ5 -> 0 | DK5: 1 | DL5: 1 | DM5: 1 | DN5: 2 | DO5: 1 | DP5: 2 | DQ5: 1 | DR5: 3 | DS5: 1 | DT5: 3 | DU5: 3 | DV5: 1 | DW5: 1 | DX5: 1 | DY5: 2 | DZ5: 3 | EA5: 2 | EB5: 3 | EC5: 1 | ED5: 2 | EE5: 3 | GH5: =C5 -> HARDWARE
C6: M2 SCREWS – SOCKET HEAD | M6: =M7 -> 0 | N6: 0 | O6: 0 | P6: 0 | Q6: 0 | R6: =DK$4*DK6+DL$4*DL6+DM$4*DM6+DN$4*DN6+DO$4*DO6+DP$4*DP6+DQ$4*DQ6+DR$4*DR6+DS$4*DS6+DT$4*DT6+DU$4*DU6+DV$4*DV6+DW$4*DW6+DX$4*DX6+DY$4*DY6+DZ$4*DZ6+EA$4*EA6+EB$4*EB6+EC$4*EC6+ED$4*ED6+EE$4*EE6+EF$4*EF6+EG$4*EG6+EH$4*EH6+EI$4*EI6+EJ$4*EJ6+EK$4*EK6+EL$4*EL6+EM$4*EM6+EN$4*EN6+EO$4*EO6+EP$4*EP6+EQ$4*EQ6+ER$4*ER6+ES$4*ES6+ET$4*ET6+EU$4*EU6+EV$4*EV6+EW$4*EW6+EX$4*EX6+EY$4*EY6+EZ$4*EZ6+FA$4*FA6+FB$4*FB6+FC$4*FC6+FD$4*FD6+FE$4*FE6+FF$4*FF6+FG$4*FG6+FH$4*FH6+FI$4*FI6+FJ$4*FJ6+FK$4*FK6+FL$4*FL6+FM$4*FM6+FN$4*FN6+FO$4*FO6+FP$4*FP6+FQ$4*FQ6+FR$4*FR6+FS$4*FS6+FT$4*FT6 -> 0 | S6: 0 | T6: 0 | AS6: 0 | AT6: 0 | AU6: 0 | AV6: 0 | AW6: 0 | AX6: 0 | AY6: 0 | AZ6: 0 | GH6: =C6 -> M2 SCREWS – SOCKET HEAD
D7: M2x10 | E7: =SUM(N7:T7) -> 4 | G7: [ AliExpress ] | J7: =1.26/55 -> 0.02290909091 | K7: =E7*J7 -> 0.09163636364 | M7: =IF(E7=0,IF(E7="",0,1),0) -> 0 | N7: 0 | O7: 0 | P7: 4 | Q7: 0 | R7: 0 | S7: 0 | T7: 0 | AS7: 0 | AT7: 0 | AU7: 0 | AV7: 0 | AW7: 0 | AX7: 0 | AY7: 0 | AZ7: 0 | BV7: 4
C8: M2,5 SCREWS – SOCKET HEAD | M8: =M9*M10 -> 0 | N8: 0 | O8: 0 | P8: 0 | Q8: 0 | R8: 0 | S8: 0 | T8: 0 | AS8: 0 | AT8: 0 | AU8: 0 | AV8: 0 | AW8: 0 | AX8: 0 | AY8: 0 | AZ8: 0 | GH8: =C8 -> M2,5 SCREWS – SOCKET HEAD
D9: M2,5x6 | E9: =SUM(N9:T9) -> 1 | F9: May be included with your hotend. | G9: [ AliExpress ] | J9: =1.16/55 -> 0.02109090909 | K9: =E9*J9 -> 0.02109090909 | M9: =IF(E9=0,IF(E9="",0,1),0) -> 0 | N9: 0 | O9: 0 | P9: 0 | Q9: 0 | R9: 1 | S9: 0 | T9: 0 | AS9: 0 | AT9: 0 | AU9: 0 | AV9: 0 | AW9: 0 | AX9: 0 | AY9: 0 | AZ9: 0 | DM9: 4 | DN9: 4 | DU9: 4 | FH9: 1
D10: M2,5x8 | E10: =SUM(N10:T10) -> 4 | F10: May be included with your hotend. | G10: [ AliExpress ] | J10: =1.26/55 -> 0.02290909091 | K10: =E10*J10 -> 0.09163636364 | M10: =IF(E10=0,IF(E10="",0,1),0) -> 0 | N10: 0 | O10: 0 | P10: 0 | Q10: 0 | R10: 4 | S10: 0 | T10: 0 | AS10: 0 | AT10: 0 | AU10: 0 | AV10: 0 | AW10: 0 | AX10: 0 | AY10: 0 | AZ10: 0 | DO10: 4 | DP10: 4 | DX10: 4 | DY10: 4 | DZ10: 4 | EA10: 4 | EB10: 4 | ED10: 4 | EE10: 4
C11: M3 SCREWS – SOCKET HEAD | E11: =SUM(U11:YU11) -> 0 | M11: =M12*M13*M14*M15*M16*M17*M18*M19*M20 -> 0 | N11: 0 | O11: 0 | P11: 0 | Q11: 0 | R11: 0 | S11: 0 | T11: 0 | AS11: 0 | AT11: 0 | AU11: 0 | AV11: 0 | AW11: 0 | AX11: 0 | AY11: 0 | AZ11: 0 | GH11: =C11 -> M3 SCREWS – SOCKET HEAD
D12: M3x6 | E12: =SUM(N12:T12) -> 66 | G12: [ AliExpress ] | J12: =1.3/55 -> 0.02363636364 | K12: =E12*J12 -> 1.56 | M12: =IF(E12=0,IF(E12="",0,1),0) -> 0 | N12: 10 | O12: 0 | P12: 50 | Q12: 0 | R12: 6 | S12: 0 | T12: 0 | AI12: 4 | AJ12: =AI12*2 -> 8 | AQ12: 6 | AR12: =-6+6 -> 0 | AS12: 10 | AT12: 0 | AU12: 0 | AV12: 0 | AW12: 0 | AX12: 0 | AY12: 0 | AZ12: 8 | BF12: 2 | BP12: 4 | BQ12: 4 | BS12: 44 | BY12: 3 | BZ12: 4 | CA12: 6 | CB12: 6 | CC12: 9 | CD12: 2 | DK12: 4 | DL12: 4 | DM12: 4 | DN12: 4 | DO12: 4 | DP12: 4 | DQ12: 4 | DR12: 4 | DS12: 4 | DT12: 4 | DU12: 4 | DV12: 4 | DW12: 4 | DX12: 4 | DY12: 4 | DZ12: 4 | EA12: 4 | EB12: 4 | EC12: 4 | ED12: 4 | EE12: 4 | EP12: 2 | EQ12: 2 | FE12: 2 | FF12: 2 | FG12: 2 | FH12: 2 | FI12: 4 | FJ12: 4 | FK12: 4 | FL12: 2 | FM12: 2 | FO12: 2 | FP12: 2 | FS12: 2
D13: M3x8 | E13: 49 | G13: [ AliExpress ] | J13: =1.4/55 -> 0.02545454545 | K13: 1.247272727 | M13: 0 | N13: 4 | O13: 12 | P13: 25 | Q13: 0 | R13: 2 | S13: 6 | T13: 0 | W13: 4 | AE13: 4 | AG13: 4 | AK13: 4 | AS13: 4 | AT13: 0 | AU13: 0 | AV13: 0 | AW13: 4 | AX13: 0 | AY13: 0 | AZ13: 0 | BG13: 6 | BI13: 12 | BJ13: 6 | BK13: 6 | BS13: 15 | BU13: 10 | CF13: 2 | DV13: 4 | EG13: 2 | EI13: 2 | EJ13: 2 | EK13: 2 | EO13: 2 | EV13: 2 | FE13: 3 | FF13: 3 | FL13: 1 | FU13: 8 | FX13: 6 | FZ13: =FX13+FY13 -> 6 | GE13: =IF($R$5=3,8,0) -> 8
D14: M3x10 | E14: 34 | G14: [ AliExpress ] | J14: =1.5/55 -> 0.02727272727 | K14: 0.9272727273 | M14: 0 | N14: 13 | O14: 0 | P14: 15 | Q14: 0 | R14: 2 | S14: 4 | T14: 0 | U14: 5 | V14: 5 | AR14: 3 | AS14: 10 | AT14: 0 | AU14: 0 | AV14: 0 | AW14: 0 | AX14: 0 | AY14: 3 | AZ14: 0 | BF14: =IF(CONFIGURATOR!$E$29="Yes",47,51) -> 47 | BL14: 3 | BU14: 15 | BY14: 4 | DW14: 2 | EF14: 2 | EH14: 2 | EN14: 2 | ER14: 2 | ET14: 2 | FQ14: 2 | FR14: 2 | FU14: 4 | FW14: 4 | GE14: 8
D15: M3x14 | E15: 9 | G15: [ AliExpress ] | J15: =1.7/55 -> 0.03090909091 | K15: 0.2781818182 | M15: 0 | N15: 0 | O15: 0 | P15: 8 | Q15: 0 | R15: 1 | S15: 0 | T15: 0 | AS15: 0 | AT15: 0 | AU15: 0 | AV15: 0 | AW15: 0 | AX15: 0 | AY15: 0 | AZ15: 0 | BF15: 17 | BM15: 9 | BZ15: 8 | CB15: 8 | EG15: 2 | EI15: 1 | EP15: 2 | EQ15: 2 | GC15: 3 | GE15: =IF($R$5=2,8,0) -> 0
D16: M3x16 | E16: 3 | G16: [ AliExpress ] | J16: =1.89/55 -> 0.03436363636 | K16: 0.1030909091 | M16: 0 | N16: 2 | O16: 0 | P16: 0 | Q16: 0 | R16: 1 | S16: 0 | T16: 0 | X16: 4 | Y16: 4 | AM16: 1 | AN16: 1 | AS16: 2 | AT16: 8 | AU16: 0 | AV16: 0 | AW16: 0 | AX16: 0 | AY16: 0 | AZ16: 0 | DK16: 2 | DL16: 2 | EG16: 2 | EI16: 1 | FA16: 2 | FC16: 2 | FE16: 2 | FF16: 2
D17: M3x20 | E17: 8 | G17: [ AliExpress ] | J17: =2.27/55 -> 0.04127272727 | K17: 0.3301818182 | M17: 0 | N17: 0 | O17: 5 | P17: 0 | Q17: 0 | R17: 3 | S17: 0 | T17: 0 | AS17: 0 | AT17: 0 | AU17: 0 | AV17: 0 | AW17: 0 | AX17: 0 | AY17: 0 | AZ17: 0 | BI17: 4 | BJ17: 4 | BK17: 4 | BO17: 1 | BR17: 2 | BY17: 3 | CC17: 8 | CH17: 8 | EI17: 1 | EZ17: 2 | FA17: 2 | FB17: 6 | FM17: 2 | GE17: =IF($R$5=1,8,0) -> 0
D18: M3x25 | E18: 12 | G18: [ AliExpress ] | J18: =2.57/30 -> 0.08566666667 | K18: 1.028 | M18: 0 | N18: 8 | O18: 0 | P18: 0 | Q18: 0 | R18: 0 | S18: 4 | T18: 0 | AO18: 4 | AP18: 4 | AS18: 8 | AT18: 0 | AU18: 0 | AV18: 0 | AW18: 0 | AX18: 0 | AY18: 0 | AZ18: 0 | BF18: =IF(CONFIGURATOR!$E$29="Yes",0,4) -> 0 | EP18: 2 | EQ18: 2 | FW18: 4
D19: M3x30 | E19: 0 | G19: [ AliExpress ] | J19: =2.76/30 -> 0.092 | K19: 0 | M19: 1 | N19: 0 | O19: 0 | P19: 0 | Q19: 0 | R19: 0 | S19: 0 | T19: 0 | AS19: 0 | AT19: 0 | AU19: 0 | AV19: 0 | AW19: 0 | AX19: 0 | AY19: 0 | AZ19: 0
D20: M3x35 | E20: 23 | G20: [ AliExpress ] | J20: =2.95/30 -> 0.09833333333 | K20: 2.261666667 | M20: 0 | N20: 9 | O20: 0 | P20: 12 | Q20: 0 | R20: 2 | S20: 0 | T20: 0 | U20: 1 | V20: 1 | AD20: 3 | AE20: 3 | AF20: =-3+3 -> 0 | AG20: 3 | AO20: 2 | AP20: 2 | AS20: 9 | AT20: 0 | AU20: 0 | AV20: 0 | AW20: 0 | AX20: 0 | AY20: 0 | AZ20: 0 | BF20: 2 | BT20: 8 | BZ20: 4 | CB20: 4 | EZ20: 2 | FA20: 2 | FB20: 2 | FC20: 2
C21: M3 SCREWS – BUTTON HEAD | M21: =M22*M23*M24 -> 1 | N21: 0 | O21: 0 | P21: 0 | Q21: 0 | R21: 0 | S21: 0 | T21: 0 | AS21: 0 | AT21: 0 | AU21: 0 | AV21: 0 | AW21: 0 | AX21: 0 | AY21: 0 | AZ21: 0 | GH21: =C21 -> M3 SCREWS – BUTTON HEAD
D22: M3x6 | E22: =SUM(N22:T22) -> 0 | G22: [ AliExpress ] | J22: =1.63/50 -> 0.0326 | K22: =E22*J22 -> 0 | M22: =IF(E22=0,IF(E22="",0,1),0) -> 1 | N22: 0 | O22: 0 | P22: 0 | Q22: 0 | R22: 0 | S22: 0 | T22: 0 | AS22: 0 | AT22: 0 | AU22: 0 | AV22: 0 | AW22: 0 | AX22: 0 | AY22: 0 | AZ22: 0 | FG22: =IF($R$5=1,2,0) -> 0
D23: M3x14 | E23: =SUM(N23:T23) -> 0 | G23: [ AliExpress ] | J23: =2.22/50 -> 0.0444 | K23: =E23*J23 -> 0 | M23: =IF(E23=0,IF(E23="",0,1),0) -> 1 | N23: 0 | O23: 0 | P23: 0 | Q23: 0 | R23: 0 | S23: 0 | T23: 0 | AS23: 0 | AT23: 0 | AU23: 0 | AV23: 0 | AW23: 0 | AX23: 0 | AY23: 0 | AZ23: 0 | FG23: =IF($R$5=2,2,0) -> 0
D24: M3x18 | E24: =SUM(N24:T24) -> 0 | G24: [ AliExpress ] | J24: =2.6/50 -> 0.052 | K24: =E24*J24 -> 0 | M24: =IF(E24=0,IF(E24="",0,1),0) -> 1 | N24: 0 | O24: 0 | P24: 0 | Q24: 0 | R24: 0 | S24: 0 | T24: 0 | AS24: 0 | AT24: 0 | AU24: 0 | AV24: 0 | AW24: 0 | AX24: 0 | AY24: 0 | AZ24: 0 | FG24: =IF($R$5=3,2,0) -> 2
C25: M3 SCREWS – FLAT HEAD COUNTERSUNK | M25: =M26 -> 1 | N25: 0 | O25: 0 | P25: 0 | Q25: 0 | R25: 0 | S25: 0 | T25: 0 | AS25: 0 | AT25: 0 | AU25: 0 | AV25: 0 | AW25: 0 | AX25: 0 | AY25: 0 | AZ25: 0 | GH25: =C25 -> M3 SCREWS – FLAT HEAD COUNTERSUNK
D26: M3x12 | E26: =SUM(N26:T26) -> 0 | G26: [ AliExpress ] | J26: =2.18/50 -> 0.0436 | K26: =E26*J26 -> 0 | M26: =IF(E26=0,IF(E26="",0,1),0) -> 1 | N26: 0 | O26: 0 | P26: 0 | Q26: 0 | R26: 0 | S26: 0 | T26: 0 | AS26: 0 | AT26: 0 | AU26: 0 | AV26: 0 | AW26: 0 | AX26: 0 | AY26: 0 | AZ26: 0 | BF26: 12
C27: M4 SCREWS – SOCKET HEAD | M27: =M28*M29*M30 -> 0 | N27: 0 | O27: 0 | P27: 0 | Q27: 0 | R27: 0 | S27: 0 | T27: 0 | AS27: 0 | AT27: 0 | AU27: 0 | AV27: 0 | AW27: 0 | AX27: 0 | AY27: 0 | AZ27: 0 | GH27: =C27 -> M4 SCREWS – SOCKET HEAD
D28: M4x6 | E28: =SUM(N28:T28) -> 0 | G28: [ AliExpress ] | J28: =1.79/20 -> 0.0895 | K28: =E28*J28 -> 0 | M28: =IF(E28=0,IF(E28="",0,1),0) -> 1 | N28: 0 | O28: 0 | P28: 0 | Q28: 0 | R28: 0 | S28: 0 | T28: 0 | AS28: 0 | AT28: 0 | AU28: 0 | AV28: 0 | AW28: 0 | AX28: 0 | AY28: 0 | AZ28: 0 | BG28: 6
D29: M4x8 | E29: =SUM(N29:T29) -> 32 | G29: [ AliExpress ] | J29: =1.89/20 -> 0.0945 | K29: =E29*J29 -> 3.024 | M29: =IF(E29=0,IF(E29="",0,1),0) -> 0 | N29: 27 | O29: 0 | P29: 5 | Q29: 0 | R29: 0 | S29: 0 | T29: 0 | X29: 2 | Y29: 2 | AD29: 4 | AE29: 4 | AF29: =-4+4 -> 0 | AG29: 4 | AH29: 2 | AI29: 2 | AJ29: =AI29*2-AH29 -> 2 | AM29: 2 | AN29: 2 | AO29: 4 | AP29: 4 | AQ29: 4 | AR29: =-4+7 -> 3 | AS29: 24 | AT29: 4 | AU29: 0 | AV29: 0 | AW29: 0 | AX29: 0 | AY29: 3 | AZ29: 2 | BV29: 1 | BW29: 4 | BX29: 4 | CE29: 2 | GA29: 4 | GC29: 2
D30: M4x10 | E30: =SUM(N30:T30) -> 11 | G30: [ AliExpress ] | J30: =1.98/20 -> 0.099 | K30: =E30*J30 -> 1.089 | M30: =IF(E30=0,IF(E30="",0,1),0) -> 0 | N30: 2 | O30: 9 | P30: 0 | Q30: 0 | R30: 0 | S30: 0 | T30: 0 | U30: 1 | V30: 1 | AS30: 2 | AT30: 0 | AU30: 0 | AV30: 0 | AW30: 0 | AX30: 0 | AY30: 0 | AZ30: 0 | BI30: 9 | BJ30: 9 | BK30: 9 | BM30: -9
C31: M5 SCREWS – SOCKET HEAD | M31: =M32*M33*M34*M35 -> 0 | N31: 0 | O31: 0 | P31: 0 | Q31: 0 | R31: 0 | S31: 0 | T31: 0 | AS31: 0 | AT31: 0 | AU31: 0 | AV31: 0 | AW31: 0 | AX31: 0 | AY31: 0 | AZ31: 0 | GH31: =C31 -> M5 SCREWS – SOCKET HEAD
D32: M5x12 | E32: =SUM(N32:T32) -> 24 | G32: [ AliExpress ] | J32: =1.79/10 -> 0.179 | K32: =E32*J32 -> 4.296 | M32: =IF(E32=0,IF(E32="",0,1),0) -> 0 | N32: 24 | O32: 0 | P32: 0 | Q32: 0 | R32: 0 | S32: 0 | T32: 0 | U32: 4 | V32: 4 | X32: 9 | Y32: 9 | Z32: 3 | AA32: 3 | AB32: 3 | AC32: 3 | AK32: =IF($AV$4=0,-4,0) -> -4 | AL32: =IF($AV$4=0,-8,0) -> -8 | AM32: 2 | AN32: 2 | AO32: 3 | AP32: 3 | AS32: 18 | AT32: 18 | AU32: 6 | AV32: 6 | AW32: -4 | AX32: -8 | AY32: 0 | AZ32: 0 | BF32: 12 | BH32: 4 | BN32: 2
D33: M5x20 | E33: =SUM(N33:T33) -> 4 | G33: [ AliExpress ] | J33: =2.47/10 -> 0.247 | K33: =E33*J33 -> 0.988 | M33: =IF(E33=0,IF(E33="",0,1),0) -> 0 | N33: 4 | O33: 0 | P33: 0 | Q33: 0 | R33: 0 | S33: 0 | T33: 0 | AK33: =IF($AV$4=0,4,0) -> 4 | AL33: =IF($AV$4=0,8,0) -> 8 | AM33: 1 | AN33: 1 | AO33: 1 | AP33: 1 | AS33: 4 | AT33: 0 | AU33: 0 | AV33: 0 | AW33: 4 | AX33: 8 | AY33: 0 | AZ33: 0
D34: M5x25 | E34: =SUM(N34:T34) -> 10 | G34: [ AliExpress ] | J34: =2.76/10 -> 0.276 | K34: =E34*J34 -> 2.76 | M34: =IF(E34=0,IF(E34="",0,1),0) -> 0 | N34: 6 | O34: 0 | P34: 0 | Q34: 4 | R34: 0 | S34: 0 | T34: 0 | U34: 2 | V34: 2 | AM34: 1 | AN34: 1 | AS34: 6 | AT34: 0 | AU34: 0 | AV34: 0 | AW34: 0 | AX34: 0 | AY34: 0 | AZ34: 0 | BB34: 2 | BC34: 2
D35: M5x35 | E35: =SUM(N35:T35) -> 4 | G35: [ AliExpress ] | J35: =3.05/10 -> 0.305 | K35: =E35*J35 -> 1.22 | M35: =IF(E35=0,IF(E35="",0,1),0) -> 0 | N35: 4 | O35: 0 | P35: 0 | Q35: 0 | R35: 0 | S35: 0 | T35: 0 | AD35: 1 | AE35: 1 | AF35: =1-AD35 -> 0 | AG35: 1 | AH35: 1 | AJ35: -1 | AO35: 1 | AP35: 1 | AS35: 4 | AT35: 0 | AU35: 0 | AV35: 0 | AW35: 0 | AX35: 0 | AY35: 0 | AZ35: -1
C36: M5 SCREWS – BUTTON HEAD | M36: =M37*M38 -> 0 | N36: 0 | O36: 0 | P36: 0 | Q36: 0 | R36: 0 | S36: 0 | T36: 0 | AS36: 0 | AT36: 0 | AU36: 0 | AV36: 0 | AW36: 0 | AX36: 0 | AY36: 0 | AZ36: 0 | GH36: =C36 -> M5 SCREWS – BUTTON HEAD
D37: M5x10 | E37: =SUM(N37:T37) -> 4 | G37: [ AliExpress ] | J37: =2.21/10 -> 0.221 | K37: =E37*J37 -> 0.884 | M37: =IF(E37=0,IF(E37="",0,1),0) -> 0 | N37: =AS$4*AS37+AT$4*AT37+AU$4*AU37+AV$4*AV37+AW$4*AW37+AX$4*AX37+AY$4*AY37+AZ$4*AZ37+BA$4*BA37 -> 4 | O37: =BG$4*BG37+BH$4*BH37+BI$4*BI37+BJ$4*BJ37+BK$4*BK37+BL$4*BL37+BM$4*BM37+BN$4*BN37+BO$4*BO37+BP$4*BP37+BQ$4*BQ37+BR$4*BR37 -> 0 | P37: =BS$4*BS37+BT$4*BT37+BU$4*BU37+BV$4*BV37+BW$4*BW37+BX$4*BX37+BY$4*BY37+BZ$4*BZ37+CA$4*CA37+CB$4*CB37+CC$4*CC37+CD$4*CD37+CE$4*CE37+CF$4*CF37+CG$4*CG37+CH$4*CH37 -> 0 | Q37: =BB$4*BB37+BC$4*BC37+BD$4*BD37 -> 0 | R37: 0 | S37: =FU$4*FU37+FV$4*FV37+FW$4*FW37+FX$4*FX37+FY$4*FY37+FZ$4*FZ37+GA$4*GA37+GB$4*GB37+GC$4*GC37+GD$4*GD37+GE$4*GE37 -> 0 | T37: =BF$4*BF37 -> 0 | Z37: 2 | AA37: 2 | AB37: 2 | AC37: 2 | AS37: =U37+V37+W37+AD37+AH37+AI37+AM37+AN37+AO37+AP37+AQ37 -> 0 | AT37: =X37+Y37 -> 0 | AU37: =Z37+AA37 -> 4 | AV37: =AB37+AC37 -> 4 | AW37: =AK37 -> 0 | AX37: =AL37 -> 0 | AY37: =AF37+AR37 -> 0 | AZ37: =AJ37 -> 0 | GE37: 6
D38: M5x20 | E38: =SUM(N38:T38) -> 12 | G38: [ AliExpress ] | J38: =2.69/10 -> 0.269 | K38: =E38*J38 -> 3.228 | M38: =IF(E38=0,IF(E38="",0,1),0) -> 0 | N38: 12 | O38: 0 | P38: 0 | Q38: 0 | R38: 0 | S38: 0 | T38: 0 | Z38: 6 | AA38: 6 | AB38: 10 | AC38: 10 | AK38: =IF($AV$4=1,-4,0) -> 0 | AL38: =IF($AV$4=1,-8,0) -> 0 | AS38: 0 | AT38: 0 | AU38: 12 | AV38: 20 | AW38: 0 | AX38: 0 | AY38: 0 | AZ38: 0
C39: SETSCREWS | M39: =M40 -> 0 | N39: 0 | O39: 0 | P39: 0 | Q39: 0 | R39: 0 | S39: 0 | T39: 0 | AS39: 0 | AT39: 0 | AU39: 0 | AV39: 0 | AW39: 0 | AX39: 0 | AY39: 0 | AZ39: 0 | GH39: =C39 -> SETSCREWS
D40: M3x5 flatpoint | E40: =SUM(N40:T40) -> 8 | G40: [ AliExpress ] | J40: =1.11/50 -> 0.0222 | K40: =E40*J40 -> 0.1776 | M40: =IF(E40=0,IF(E40="",0,1),0) -> 0 | N40: 8 | O40: 0 | P40: 0 | Q40: 0 | R40: 0 | S40: 0 | T40: 0 | AF40: =2-AD40 -> 2 | AG40: 1 | AM40: 2 | AN40: 2 | AR40: 2 | AS40: 4 | AT40: 0 | AU40: 0 | AV40: 0 | AW40: 0 | AX40: 0 | AY40: 4 | AZ40: 0 | BA40: 6
C41: WASHERS | M41: =M42*M43 -> 0 | N41: 0 | O41: 0 | P41: 0 | Q41: 0 | R41: 0 | S41: 0 | T41: 0 | AS41: 0 | AT41: 0 | AU41: 0 | AV41: 0 | AW41: 0 | AX41: 0 | AY41: 0 | AZ41: 0 | GH41: =C41 -> WASHERS
D42: M3 | E42: =SUM(N42:T42) -> 0 | F42: 3,2 x 7 x 0,5 mm (ID x OD x TH) - Brass washers have less burr = more precision (alt. link). | G42: [ AliExpress ] | I42: [ AliExpress ] | J42: =1.12/100 -> 0.0112 | K42: =E42*J42 -> 0 | M42: =IF(E42=0,IF(E42="",0,1),0) -> 1 | N42: 0 | O42: 0 | P42: 0 | Q42: 0 | R42: 0 | S42: 0 | T42: 0 | AS42: 0 | AT42: 0 | AU42: 0 | AV42: 0 | AW42: 0 | AX42: 0 | AY42: 0 | AZ42: 0 | BM42: 9
D43: M5 | E43: =SUM(N43:T43) -> 52 | F43: 5,3 x 10 x 1 mm (ID x OD x TH) - Brass washers have less burr = more precision (alt. link). | G43: [ AliExpress ] | I43: [ AliExpress ] | J43: =1.8/100 -> 0.018 | K43: =E43*J43 -> 0.936 | M43: =IF(E43=0,IF(E43="",0,1),0) -> 0 | N43: 44 | O43: 0 | P43: 0 | Q43: 8 | R43: 0 | S43: 0 | T43: 0 | U43: 1 | V43: 1 | X43: 1 | Y43: 1 | Z43: 9 | AA43: 9 | AB43: 13 | AC43: 13 | AD43: 2 | AE43: 2 | AF43: =2-AD43 -> 0 | AG43: 2 | AH43: 2 | AJ43: -2 | AM43: 4 | AN43: 4 | AO43: 6 | AP43: 6 | AS43: 26 | AT43: 2 | AU43: 18 | AV43: 26 | AW43: 0 | AX43: 0 | AY43: 0 | AZ43: -2 | BB43: 4 | BC43: 4 | BF43: 12
C44: NUTS | M44: =M45 -> 0 | N44: 0 | O44: 0 | P44: 0 | Q44: 0 | R44: 0 | S44: 0 | T44: 0 | AS44: 0 | AT44: 0 | AU44: 0 | AV44: 0 | AW44: 0 | AX44: 0 | AY44: 0 | AZ44: 0 | GH44: =C44 -> NUTS
D45: M3 | E45: =SUM(N45:T45) -> 5 | G45: [ AliExpress ] | J45: =1.27/55 -> 0.02309090909 | K45: =E45*J45 -> 0.1154545455 | M45: =IF(E45=0,IF(E45="",0,1),0) -> 0 | N45: 0 | O45: 5 | P45: 0 | Q45: 0 | R45: 0 | S45: 0 | T45: 0 | AS45: 0 | AT45: 0 | AU45: 0 | AV45: 0 | AW45: 0 | AX45: 0 | AY45: 0 | AZ45: 0 | BI45: 4 | BJ45: 4 | BK45: 4 | BO45: 1
C46: T-NUTS | M46: =M47*M48 -> 0 | N46: 0 | O46: 0 | P46: 0 | Q46: 0 | R46: 0 | S46: 0 | T46: 0 | AS46: 0 | AT46: 0 | AU46: 0 | AV46: 0 | AW46: 0 | AX46: 0 | AY46: 0 | AZ46: 0 | GH46: =C46 -> T-NUTS
D47: M3 | E47: =SUM(N47:T47) -> 45 | F47: Roll-in T-nuts from alternative link are much nicer to work with but are more expensive than hammer T-nuts. | G47: [ AliExpress ] | I47: [ AliExpress ] | J47: =1.9/30 -> 0.06333333333 | K47: =E47*J47 -> 2.85 | M47: =IF(E47=0,IF(E47="",0,1),0) -> 0 | N47: 22 | O47: 0 | P47: 9 | Q47: 0 | R47: 0 | S47: 14 | T47: 0 | W47: 4 | Z47: 9 | AA47: 9 | AB47: 9 | AC47: 9 | AK47: 4 | AS47: 4 | AT47: 0 | AU47: 18 | AV47: 18 | AW47: 4 | AX47: 0 | AY47: 0 | AZ47: 0 | BF47: 38 | BS47: 5 | BU47: 4 | FU47: =IF(AT$4=1,10,12) -> 12 | FW47: 8 | FX47: 6 | FZ47: =FX47+FY47 -> 6 | GE47: 8
D48: M4 | E48: =SUM(N48:T48) -> 30 | F48: Roll-in T-nuts from alternative link are much nicer to work with but are more expensive than hammer T-nuts. | G48: [ AliExpress ] | I48: [ AliExpress ] | J48: =1.8/30 -> 0.06 | K48: =E48*J48 -> 1.8 | M48: =IF(E48=0,IF(E48="",0,1),0) -> 0 | N48: 29 | O48: 0 | P48: 1 | Q48: 0 | R48: 0 | S48: 0 | T48: 0 | U48: 1 | V48: 1 | X48: 2 | Y48: 2 | AD48: 4 | AE48: 4 | AF48: =4-AD48 -> 0 | AG48: 4 | AH48: 2 | AI48: 2 | AJ48: =AI48*2-AH48 -> 2 | AM48: 2 | AN48: 2 | AO48: 4 | AP48: 4 | AQ48: 4 | AR48: =-4+7 -> 3 | AS48: 26 | AT48: 4 | AU48: 0 | AV48: 0 | AW48: 0 | AX48: 0 | AY48: 3 | AZ48: 2 | BV48: 1 | GA48: 4 | GC48: 2
C49: HEAT INSERTS | M49: =M50*M51 -> 0 | N49: 0 | O49: 0 | P49: 0 | Q49: 0 | R49: 0 | S49: 0 | T49: 0 | AS49: 0 | AT49: 0 | AU49: 0 | AV49: 0 | AW49: 0 | AX49: 0 | AY49: 0 | AZ49: 0 | GH49: =C49 -> HEAT INSERTS
D50: M3 | E50: =SUM(N50:T50) -> 103 | F50: M3 x 4 x 4,5 mm (ID x L x OD) | G50: [ AliExpress ] | J50: =4.19/100 -> 0.0419 | K50: =E50*J50 -> 4.3157 | M50: =IF(E50=0,IF(E50="",0,1),0) -> 0 | N50: 49 | O50: 12 | P50: 22 | Q50: 10 | R50: 10 | S50: 0 | T50: 0 | U50: 8 | V50: 8 | W50: 3 | X50: 16 | Y50: 16 | AD50: 3 | AE50: 3 | AF50: =5-AD50 -> 2 | AG50: 4 | AK50: 3 | AM50: 3 | AN50: 3 | AO50: 3 | AP50: 3 | AQ50: 8 | AR50: =-8+13 -> 5 | AS50: 42 | AT50: 32 | AU50: 0 | AV50: 0 | AW50: 3 | AX50: 0 | AY50: 7 | AZ50: 0 | BA50: 6 | BD50: 10 | BF50: 41 | BI50: 12 | BJ50: 6 | BK50: 6 | BL50: 3 | BM50: 3 | BS50: 7 | BT50: 8 | BU50: 3 | BZ50: 4 | CB50: 4 | CC50: 8 | CH50: 8 | DK50: 4 | DL50: 4 | DM50: 2 | DN50: 2 | DO50: 2 | DP50: 2 | DQ50: 2 | DR50: 2 | DS50: 2 | DT50: 2 | DU50: 2 | DV50: 2 | DW50: 4 | DX50: 2 | DY50: 2 | DZ50: 2 | EA50: 2 | EB50: 2 | EC50: 2 | ED50: 2 | EE50: 2 | EF50: =2+5 -> 7 | EG50: 5 | EH50: =2+6 -> 8 | EI50: 4 | EJ50: 2 | EK50: 2 | EM50: 2 | EN50: 2 | EO50: 2 | EP50: 4 | EQ50: 4 | ER50: 2 | ET50: 2 | EV50: 2 | FA50: 2 | FB50: 4 | FG50: 2 | FI50: 2 | FJ50: 2 | FK50: 2 | FL50: 1 | FM50: 2 | FP50: 4 | FR50: 4 | GC50: 8 | GE50: 12
D51: M5 | E51: =SUM(N51:T51) -> 18 | F51: M5 x 5 x 7 mm (ID x L x OD) | G51: [ AliExpress ] | J51: =6.48/100 -> 0.0648 | K51: =E51*J51 -> 1.1664 | M51: =IF(E51=0,IF(E51="",0,1),0) -> 0 | N51: 14 | O51: 0 | P51: 0 | Q51: 4 | R51: 0 | S51: 0 | T51: 0 | U51: 3 | V51: 3 | X51: 1 | Y51: 1 | AD51: 1 | AE51: 1 | AF51: =1-AD51 -> 0 | AG51: 1 | AH51: 1 | AJ51: -1 | AK51: 4 | AM51: 1 | AN51: 1 | AO51: 2 | AP51: 2 | AS51: 14 | AT51: 2 | AU51: 0 | AV51: 0 | AW51: 4 | AX51: 0 | AY51: 0 | AZ51: -1 | BB51: 2 | BC51: 2 | BF51: 12
C52: MAGNETS | M52: =M53 -> 1 | R52: 0 | AS52: 0 | AT52: 0 | AU52: 0 | AV52: 0 | AW52: 0 | AX52: 0 | AY52: 0 | AZ52: 0 | GH52: =C52 -> MAGNETS
D53: MAGNET 6x3 | E53: =SUM(N53:T53) -> 0 | G53: [ AliExpress ] | J53: =2.89/20 -> 0.1445 | K53: =E53*J53 -> 0 | M53: =IF(E53=0,IF(E53="",0,1),0) -> 1 | N53: =AS$4*AS53+AT$4*AT53+AU$4*AU53+AV$4*AV53+AW$4*AW53+AX$4*AX53+AY$4*AY53+AZ$4*AZ53+BA$4*BA53 -> 0 | O53: =BG$4*BG53+BH$4*BH53+BI$4*BI53+BJ$4*BJ53+BK$4*BK53+BL$4*BL53+BM$4*BM53+BN$4*BN53+BO$4*BO53+BP$4*BP53+BQ$4*BQ53+BR$4*BR53 -> 0 | P53: =BS$4*BS53+BT$4*BT53+BU$4*BU53+BV$4*BV53+BW$4*BW53+BX$4*BX53+BY$4*BY53+BZ$4*BZ53+CA$4*CA53+CB$4*CB53+CC$4*CC53+CD$4*CD53+CE$4*CE53+CF$4*CF53+CG$4*CG53+CH$4*CH53 -> 0 | Q53: =BB$4*BB53+BC$4*BC53+BD$4*BD53 -> 0 | R53: 0 | S53: =FU$4*FU53+FV$4*FV53+FW$4*FW53+FX$4*FX53+FY$4*FY53+FZ$4*FZ53+GA$4*GA53+GB$4*GB53+GC$4*GC53+GD$4*GD53+GE$4*GE53 -> 0 | T53: =BF$4*BF53 -> 0 | AS53: 0 | AT53: 0 | AU53: 0 | AV53: 0 | AW53: 0 | AX53: 0 | AY53: 0 | AZ53: 0 | BF53: 20 | FE53: 8
C54: MOTION | K54: =SUM(K55:K70) -> 147.9135 | M54: 0 | N54: 0 | O54: 0 | P54: 0 | Q54: 0 | R54: 0 | S54: 0 | T54: 0 | AS54: 0 | AT54: 0 | AU54: 0 | AV54: 0 | AW54: 0 | AX54: 0 | AY54: 0 | AZ54: 0 | GH54: =C54 -> MOTION
D55: 8 x 350 mm linear rod | E55: =SUM(N55:T55) -> 4 | F55: h6 diameter tolerance / Ra 0.4 surface roughness / hardened steel = recommended parameters | G55: [ AliExpress ] | I55: [ AliExpress ] | J55: =(8.64+8.64+2.74)/4 -> 5.005 | K55: =E55*J55 -> 20.02 | M55: =IF(E55=0,IF(E55="",0,1),0) -> 0 | N55: 0 | O55: 0 | P55: 0 | Q55: 4 | R55: 0 | S55: 0 | T55: 0 | AS55: 0 | AT55: 0 | AU55: 0 | AV55: 0 | AW55: 0 | AX55: 0 | AY55: 0 | AZ55: 0 | BB55: 1 | BC55: 1 | BD55: 2
D56: 12 x 350 mm linear rod | E56: 2 | F56: h6 diameter tolerance / Ra 0.4 surface roughness / hardened steel = recommended parameters | G56: [ AliExpress ] | I56: [ AliExpress ] | J56: =(13.2+13.2+2.74)/4 -> 7.285 | K56: 14.57 | M56: 0 | N56: 2 | O56: 0 | P56: 0 | Q56: 0 | R56: 0 | S56: 0 | T56: 0 | U56: 1 | V56: 1 | AS56: 2 | AT56: 0 | AU56: 0 | AV56: 0 | AW56: 0 | AX56: 0 | AY56: 0 | AZ56: 0
D57: 12 x 320 mm linear rod | E57: 1 | F57: h6 diameter tolerance / Ra 0.4 surface roughness / hardened steel = recommended parameters | G57: [ AliExpress ] | I57: [ AliExpress ] | J57: =J56 -> 7.285 | K57: 7.285 | M57: 0 | N57: 1 | O57: 0 | P57: 0 | Q57: 0 | R57: 0 | S57: 0 | T57: 0 | AF57: 1 | AS57: 0 | AT57: 0 | AU57: 0 | AV57: 0 | AW57: 0 | AX57: 0 | AY57: 1 | AZ57: 0
D58: LM8LUU linear bearing | E58: 4 | F58: ABEC-5 is recommended minimum | G58: [ AliExpress ] | H58: [ AliExpress ] | I58: [ AliExpress ] | J58: =16.19/4 -> 4.0475 | K58: 16.19 | M58: 0 | N58: 0 | O58: 0 | P58: 0 | Q58: 4 | R58: 0 | S58: 0 | T58: 0 | AS58: 0 | AT58: 0 | AU58: 0 | AV58: 0 | AW58: 0 | AX58: 0 | AY58: 0 | AZ58: 0 | BB58: 1 | BC58: 1 | BD58: 2
D59: LM12UU linear bearing | E59: 3 | F59: ABEC-5 is recommended minimum | G59: [ AliExpress ] | I59: [ AliExpress ] | J59: =14.5/4 -> 3.625 | K59: 10.875 | M59: 0 | N59: 0 | O59: 3 | P59: 0 | Q59: 0 | R59: 0 | S59: 0 | T59: 0 | AS59: 0 | AT59: 0 | AU59: 0 | AV59: 0 | AW59: 0 | AX59: 0 | AY59: 0 | AZ59: 0 | BI59: 2 | BJ59: 2 | BK59: 2 | BO59: 1
D60: LMH12UU linear bearing | E60: 0 | F60: ABEC-5 is recommended minimum | G60: [ AliExpress ] | J60: =10.08/2 -> 5.04 | K60: 0 | M60: 1 | N60: 0 | O60: 0 | P60: 0 | Q60: 0 | R60: 0 | S60: 0 | T60: 0 | AS60: 0 | AT60: 0 | AU60: 0 | AV60: 0 | AW60: 0 | AX60: 0 | AY60: 0 | AZ60: 0 | BG60: 3
D61: T8/8 x 300 mm leadscrew | E61: 3 | G61: [ AliExpress ] | J61: 5.27 | K61: 15.81 | M61: 0 | N61: 3 | O61: 0 | P61: 0 | Q61: 0 | R61: 0 | S61: 0 | T61: 0 | U61: 1 | V61: 1 | AD61: 1 | AE61: 1 | AF61: =1-AD61 -> 0 | AG61: 1 | AS61: 3 | AT61: 0 | AU61: 0 | AV61: 0 | AW61: 0 | AX61: 0 | AY61: 0 | AZ61: 0
D62: T8/8 leadscrew nut | E62: 3 | G62: included with leadscrew | K62: 0 | M62: 0 | N62: 0 | O62: 3 | P62: 0 | Q62: 0 | R62: 0 | S62: 0 | T62: 0 | AS62: 0 | AT62: 0 | AU62: 0 | AV62: 0 | AW62: 0 | AX62: 0 | AY62: 0 | AZ62: 0 | BG62: 3 | BI62: 3 | BJ62: 3 | BK62: 3
D63: 608-2RS ball bearing | E63: 6 | G63: [ AliExpress ] | J63: =6.39/8 -> 0.79875 | K63: 4.7925 | M63: 0 | N63: 6 | O63: 0 | P63: 0 | Q63: 0 | R63: 0 | S63: 0 | T63: 0 | U63: 2 | V63: 2 | AD63: 2 | AE63: 2 | AF63: =2-AD63 -> 0 | AG63: 2 | AS63: 6 | AT63: 0 | AU63: 0 | AV63: 0 | AW63: 0 | AX63: 0 | AY63: 0 | AZ63: 0 | GA63: 4
D64: F695-2RS ball bearing | E64: 32 | F64: There are 28 F695 bearings in the XY motion that need to be better quality, other can theoretically be cheaper. | G64: [ AliExpress ] | J64: =5.46/10 -> 0.546 | K64: 17.472 | M64: 0 | N64: 24 | O64: 0 | P64: 0 | Q64: 8 | R64: 0 | S64: 0 | T64: 0 | AD64: 2 | AE64: 2 | AF64: =2-AD64 -> 0 | AG64: 2 | AH64: 2 | AJ64: -2 | AM64: 4 | AN64: 4 | AO64: 6 | AP64: 6 | AS64: 24 | AT64: 0 | AU64: 0 | AV64: 0 | AW64: 0 | AX64: 0 | AY64: 0 | AZ64: -2 | BB64: 4 | BC64: 4 | BF64: 12
D65: 40T 8mm GT2 pulley | E65: 3 | F65: 40T / 8 mm bore / GT2 / for 6 mm belt / total width 17 mm | G65: [ AliExpress ] | J65: =11.99/3 -> 3.996666667 | K65: 11.99 | M65: 0 | N65: 3 | O65: 0 | P65: 0 | Q65: 0 | R65: 0 | S65: 0 | T65: 0 | U65: 1 | V65: 1 | AD65: 1 | AE65: 1 | AF65: =1-AD65 -> 0 | AG65: 1 | AS65: 3 | AT65: 0 | AU65: 0 | AV65: 0 | AW65: 0 | AX65: 0 | AY65: 0 | AZ65: 0 | BA65: -3
D66: 20T 5mm GT2 pulley | E66: 3 | F66: 20T / 5 mm bore / GT2 / for 6 mm belt | G66: [ AliExpress ] | J66: =7.99/5 -> 1.598 | K66: 4.794 | M66: 0 | N66: 3 | O66: 0 | P66: 0 | Q66: 0 | R66: 0 | S66: 0 | T66: 0 | AE66: 1 | AG66: 1 | AI66: 1 | AJ66: =AI66*2 -> 2 | AO66: 1 | AP66: 1 | AS66: 3 | AT66: 0 | AU66: =Z66+AA66 -> 0 | AV66: =AB66+AC66 -> 0 | AW66: =AK66 -> 0 | AX66: =AL66 -> 0 | AY66: =AF66+AR66 -> 0 | AZ66: =AJ66 -> 2
D67: 6mm GT2 belt 3m | E67: 1 | F67: 6 mm / 3 m / GT2 / open end – 3 m is minimal, 5 m is recommended – Gates or Powge recommended | G67: [ AliExpress ] | J67: 18.99 | K67: 18.99 | M67: 0 | N67: 0 | O67: 0 | P67: 0 | Q67: 1 | R67: =DK$4*DK67+DL$4*DL67+DM$4*DM67+DN$4*DN67+DO$4*DO67+DP$4*DP67+DQ$4*DQ67+DR$4*DR67+DS$4*DS67+DT$4*DT67+DU$4*DU67+DV$4*DV67+DW$4*DW67+DX$4*DX67+DY$4*DY67+DZ$4*DZ67+EA$4*EA67+EB$4*EB67+EC$4*EC67+ED$4*ED67+EE$4*EE67+EF$4*EF67+EG$4*EG67+EH$4*EH67+EI$4*EI67+EJ$4*EJ67+EK$4*EK67+EL$4*EL67+EM$4*EM67+EN$4*EN67+EO$4*EO67+EP$4*EP67+EQ$4*EQ67+ER$4*ER67+ES$4*ES67+ET$4*ET67+EU$4*EU67+EV$4*EV67+EW$4*EW67+EX$4*EX67+EY$4*EY67+EZ$4*EZ67+FA$4*FA67+FB$4*FB67+FC$4*FC67+FD$4*FD67+FE$4*FE67+FF$4*FF67+FG$4*FG67+FH$4*FH67+FI$4*FI67+FJ$4*FJ67+FK$4*FK67+FL$4*FL67+FM$4*FM67+FN$4*FN67+FO$4*FO67+FP$4*FP67+FQ$4*FQ67+FR$4*FR67+FS$4*FS67+FT$4*FT67 -> 0 | S67: 0 | T67: 0 | AS67: 0 | AT67: 0 | AU67: 0 | AV67: 0 | AW67: 0 | AX67: 0 | AY67: 0 | AZ67: 0 | BD67: 1
D68: 6mm GT2 belt 1140 mm closed loop | E68: 1 | F68: 6 mm / 570T / 1140 mm / GT2 / closed loop – recommended length – Gates or Powge recommended | G68: [ AliExpress ] | J68: =(4.99+5.26)/2 -> 5.125 | K68: 5.125 | M68: 0 | N68: 1 | O68: 0 | P68: 0 | Q68: 0 | R68: 0 | S68: 0 | T68: 0 | AD68: 1 | AF68: =1-AD68 -> 0 | AJ68: -1 | AS68: 1 | AT68: 0 | AU68: 0 | AV68: 0 | AW68: 0 | AX68: 0 | AY68: 0 | AZ68: -1
D69: 6mm GT2 belt 220 mm closed loop | E69: 0 | F69: 6 mm / 110T / 220 mm / GT2 / closed loop – minimal length, longer belt will fit too – Gates or Powge recommended | G69: [ AliExpress ] | J69: =(4.99+3.98)/5 -> 1.794 | K69: 0 | M69: 1 | N69: 0 | O69: 0 | P69: 0 | Q69: 0 | R69: 0 | S69: 0 | T69: 0 | AJ69: 3 | AS69: 0 | AT69: 0 | AU69: 0 | AV69: 0 | AW69: 0 | AX69: 0 | AY69: 0 | AZ69: 3
D70: Nema 17 stepper motor | E70: 3 | F70: Stock Creality stepper motors can be used, for the XY motion even with the stock pulleys. | G70: links in the table below | K70: 0 | M70: 0 | N70: 3 | O70: 0 | P70: 0 | Q70: 0 | R70: 0 | S70: 0 | T70: 0 | AE70: 1 | AG70: 1 | AI70: 1 | AJ70: =AI70*2 -> 2 | AO70: 1 | AP70: 1 | AS70: 3 | AT70: 0 | AU70: 0 | AV70: 0 | AW70: 0 | AX70: 0 | AY70: 0 | AZ70: 2
C71: FRAME | K71: =SUM(K72:K85) -> 38.07 | M71: 0 | R71: 0 | AS71: 0 | AT71: 0 | AU71: 0 | AV71: 0 | AW71: 0 | AX71: 0 | AY71: 0 | AZ71: 0 | GH71: =C71 -> FRAME
D72: 2040 x 350 mm V-slot extrusion | E72: =SUM(N72:T72) -> 2 | G72: [ AliExpress ] | J72: 7.45 | K72: =E72*J72 -> 14.9 | M72: =IF(E72=0,IF(E72="",0,1),0) -> 0 | N72: =AS$4*AS72+AT$4*AT72+AU$4*AU72+AV$4*AV72+AW$4*AW72+AX$4*AX72+AY$4*AY72+AZ$4*AZ72+BA$4*BA72 -> 2 | O72: =BG$4*BG72+BH$4*BH72+BI$4*BI72+BJ$4*BJ72+BK$4*BK72+BL$4*BL72+BM$4*BM72+BN$4*BN72+BO$4*BO72+BP$4*BP72+BQ$4*BQ72+BR$4*BR72 -> 0 | P72: =BS$4*BS72+BT$4*BT72+BU$4*BU72+BV$4*BV72+BW$4*BW72+BX$4*BX72+BY$4*BY72+BZ$4*BZ72+CA$4*CA72+CB$4*CB72+CC$4*CC72+CD$4*CD72+CE$4*CE72+CF$4*CF72+CG$4*CG72+CH$4*CH72 -> 0 | Q72: =BB$4*BB72+BC$4*BC72+BD$4*BD72 -> 0 | R72: 0 | S72: =FU$4*FU72+FV$4*FV72+FW$4*FW72+FX$4*FX72+FY$4*FY72+FZ$4*FZ72+GA$4*GA72+GB$4*GB72+GC$4*GC72+GD$4*GD72+GE$4*GE72 -> 0 | T72: =BF$4*BF72 -> 0 | Z72: 1 | AA72: 1 | AB72: 1 | AC72: 1 | AS72: 0 | AT72: 0 | AU72: 2 | AV72: 2 | AW72: 0 | AX72: 0 | AY72: 0 | AZ72: 0
D73: 2040 x 300 mm V-slot extrusion | E73: =SUM(N73:T73) -> 0 | F73: If you are cutting the extrusions, you can use 2040 x 310 mm extrusions here. | G73: [ AliExpress ] | J73: 6.84 | K73: 0 | M73: =IF(E73=0,IF(E73="",0,1),0) -> 1 | N73: 0 | O73: 0 | P73: 0 | Q73: 0 | R73: 0 | S73: 0 | T73: 0 | AB73: 1 | AC73: 1 | AS73: 0 | AT73: 0 | AU73: 0 | AV73: 2 | AW73: 0 | AX73: 0 | AY73: 0 | AZ73: 0
D74: Rear electronics panel | E74: =SUM(N74:T74) -> 1 | F74: Clear or black / polycarbonate or acrylic / recommended thickness 3mm | G74: [ AliExpress ] | J74: 20 | K74: 20 | M74: =IF(E74=0,IF(E74="",0,1),0) -> 0 | N74: 0 | O74: 0 | P74: 1 | Q74: 0 | R74: =DK$4*DK74+DL$4*DL74+DM$4*DM74+DN$4*DN74+DO$4*DO74+DP$4*DP74+DQ$4*DQ74+DR$4*DR74+DS$4*DS74+DT$4*DT74+DU$4*DU74+DV$4*DV74+DW$4*DW74+DX$4*DX74+DY$4*DY74+DZ$4*DZ74+EA$4*EA74+EB$4*EB74+EC$4*EC74+ED$4*ED74+EE$4*EE74+EF$4*EF74+EG$4*EG74+EH$4*EH74+EI$4*EI74+EJ$4*EJ74+EK$4*EK74+EL$4*EL74+EM$4*EM74+EN$4*EN74+EO$4*EO74+EP$4*EP74+EQ$4*EQ74+ER$4*ER74+ES$4*ES74+ET$4*ET74+EU$4*EU74+EV$4*EV74+EW$4*EW74+EX$4*EX74+EY$4*EY74+EZ$4*EZ74+FA$4*FA74+FB$4*FB74+FC$4*FC74+FD$4*FD74+FE$4*FE74+FF$4*FF74+FG$4*FG74+FH$4*FH74+FI$4*FI74+FJ$4*FJ74+FK$4*FK74+FL$4*FL74+FM$4*FM74+FN$4*FN74+FO$4*FO74+FP$4*FP74+FQ$4*FQ74+FR$4*FR74+FS$4*FS74+FT$4*FT74 -> 0 | S74: 0 | T74: 0 | BU74: 1
D75: Enclosure panels - door | E75: =SUM(N75:T75) -> 0 | F75: Clear / polycarbonate / recommended thickness 5mm | G75: [ AliExpress ] | J75: 30 | K75: 0 | M75: =IF(E75=0,IF(E75="",0,1),0) -> 1 | N75: =AS$4*AS75+AT$4*AT75+AU$4*AU75+AV$4*AV75+AW$4*AW75+AX$4*AX75+AY$4*AY75+AZ$4*AZ75+BA$4*BA75 -> 0 | O75: =BG$4*BG75+BH$4*BH75+BI$4*BI75+BJ$4*BJ75+BK$4*BK75+BL$4*BL75+BM$4*BM75+BN$4*BN75+BO$4*BO75+BP$4*BP75+BQ$4*BQ75+BR$4*BR75 -> 0 | P75: =BS$4*BS75+BT$4*BT75+BU$4*BU75+BV$4*BV75+BW$4*BW75+BX$4*BX75+BY$4*BY75+BZ$4*BZ75+CA$4*CA75+CB$4*CB75+CC$4*CC75+CD$4*CD75+CE$4*CE75+CF$4*CF75+CG$4*CG75+CH$4*CH75 -> 0 | Q75: =BB$4*BB75+BC$4*BC75+BD$4*BD75 -> 0 | R75: =DK$4*DK75+DL$4*DL75+DM$4*DM75+DN$4*DN75+DO$4*DO75+DP$4*DP75+DQ$4*DQ75+DR$4*DR75+DS$4*DS75+DT$4*DT75+DU$4*DU75+DV$4*DV75+DW$4*DW75+DX$4*DX75+DY$4*DY75+DZ$4*DZ75+EA$4*EA75+EB$4*EB75+EC$4*EC75+ED$4*ED75+EE$4*EE75+EF$4*EF75+EG$4*EG75+EH$4*EH75+EI$4*EI75+EJ$4*EJ75+EK$4*EK75+EL$4*EL75+EM$4*EM75+EN$4*EN75+EO$4*EO75+EP$4*EP75+EQ$4*EQ75+ER$4*ER75+ES$4*ES75+ET$4*ET75+EU$4*EU75+EV$4*EV75+EW$4*EW75+EX$4*EX75+EY$4*EY75+EZ$4*EZ75+FA$4*FA75+FB$4*FB75+FC$4*FC75+FD$4*FD75+FE$4*FE75+FF$4*FF75+FG$4*FG75+FH$4*FH75+FI$4*FI75+FJ$4*FJ75+FK$4*FK75+FL$4*FL75+FM$4*FM75+FN$4*FN75+FO$4*FO75+FP$4*FP75+FQ$4*FQ75+FR$4*FR75+FS$4*FS75+FT$4*FT75 -> 0 | S75: =FU$4*FU75+FV$4*FV75+FW$4*FW75+FX$4*FX75+FY$4*FY75+FZ$4*FZ75+GA$4*GA75+GB$4*GB75+GC$4*GC75+GD$4*GD75+GE$4*GE75 -> 0 | T75: =BF$4*BF75 -> 0 | BF75: 1
D76: Enclosure panels - side | E76: 0 | F76: Clear / polycarbonate / recommended thickness 4mm | G76: [ AliExpress ] | J76: 25 | K76: 0 | M76: 1 | N76: 0 | O76: 0 | P76: 0 | Q76: 0 | R76: 0 | S76: 0 | T76: 0 | BF76: 2
D77: Enclosure panels - bottom | E77: 0 | F77: Clear or black / polycarbonate / recommended thickness 4mm | G77: [ AliExpress ] | J77: 20 | K77: 0 | M77: 1 | N77: 0 | O77: 0 | P77: 0 | Q77: 0 | R77: 0 | S77: 0 | T77: 0 | BF77: 1
D78: Enclosure panels - top | E78: 0 | F78: Clear / polycarbonate / recommended thickness 4mm | G78: [ AliExpress ] | J78: 20 | K78: 0 | M78: 1 | N78: 0 | O78: 0 | P78: 0 | Q78: 0 | R78: 0 | S78: 0 | T78: 0 | BF78: 1
D79: Enclosure panels - rear | E79: =SUM(N79:T79) -> 0 | F79: Clear or black / polycarbonate / recommended thickness 4mm | G79: [ AliExpress ] | J79: 15 | K79: 0 | M79: 1 | N79: 0 | O79: 0 | P79: 0 | Q79: 0 | R79: 0 | S79: 0 | T79: 0 | BF79: 1
D80: RUBBER FEET | E80: =SUM(N80:T80) -> 4 | G80: [ AliExpress ] | J80: =3.17/4 -> 0.7925 | K80: 3.17 | M80: =IF(E80=0,IF(E80="",0,1),0) -> 0 | N80: 4 | O80: 0 | P80: 0 | Q80: 0 | R80: =DK$4*DK80+DL$4*DL80+DM$4*DM80+DN$4*DN80+DO$4*DO80+DP$4*DP80+DQ$4*DQ80+DR$4*DR80+DS$4*DS80+DT$4*DT80+DU$4*DU80+DV$4*DV80+DW$4*DW80+DX$4*DX80+DY$4*DY80+DZ$4*DZ80+EA$4*EA80+EB$4*EB80+EC$4*EC80+ED$4*ED80+EE$4*EE80+EF$4*EF80+EG$4*EG80+EH$4*EH80+EI$4*EI80+EJ$4*EJ80+EK$4*EK80+EL$4*EL80+EM$4*EM80+EN$4*EN80+EO$4*EO80+EP$4*EP80+EQ$4*EQ80+ER$4*ER80+ES$4*ES80+ET$4*ET80+EU$4*EU80+EV$4*EV80+EW$4*EW80+EX$4*EX80+EY$4*EY80+EZ$4*EZ80+FA$4*FA80+FB$4*FB80+FC$4*FC80+FD$4*FD80+FE$4*FE80+FF$4*FF80+FG$4*FG80+FH$4*FH80+FI$4*FI80+FJ$4*FJ80+FK$4*FK80+FL$4*FL80+FM$4*FM80+FN$4*FN80+FO$4*FO80+FP$4*FP80+FQ$4*FQ80+FR$4*FR80+FS$4*FS80+FT$4*FT80 -> 0 | S80: 0 | T80: 0 | U80: 1 | V80: 1 | X80: 1 | Y80: 1 | Z80: 1 | AA80: 1 | AB80: 1 | AC80: 1 | AS80: =U80+V80+W80+AD80+AH80+AI80+AM80+AN80+AO80+AP80+AQ80 -> 2 | AT80: =X80+Y80 -> 2 | AU80: =Z80+AA80 -> 2 | AV80: =AB80+AC80 -> 2 | AW80: =AK80 -> 0 | AX80: =AL80 -> 0 | AY80: =AF80+AR80 -> 0 | AZ80: =AJ80 -> 0
D81: 2020 x 330 mm V-slot extrusion | E81: 1 | F81: stock Ender 3 Pro extrusion - top frame bar | J81: 0 | K81: 0 | M81: =IF(E81=0,IF(E81="",0,1),0) -> 0 | N81: 0 | O81: 0 | P81: 0 | Q81: 0 | R81: 0 | S81: 0 | T81: 0
D82: 2020 x 345 mm V-slot extrusion | E82: 1 | F82: stock Ender 3 Pro extrusion - X axis / M5 tapped end holes required | J82: 0 | K82: 0 | M82: 0 | N82: 0 | O82: 0 | P82: 0 | Q82: 0 | R82: 0 | S82: 0 | T82: 0
D83: 2040 x 400 mm V-slot extrusion | E83: 2 | F83: stock Ender 3 Pro extrusion - frame vertical supports / M5 tapped end holes required | J83: 0 | K83: 0 | M83: 0 | N83: 0 | O83: 0 | P83: 0 | Q83: 0 | R83: 0 | S83: 0 | T83: 0
D84: 4040 x 350 mm V-slot extrusion | E84: 1 | F84: stock Ender 3 Pro extrusion - Y axis / M5 tapped end holes required | J84: 0 | K84: 0 | M84: 0 | N84: 0 | O84: 0 | P84: 0 | Q84: 0 | R84: 0 | S84: 0 | T84: 0
D85: 4040 x 290 mm V-slot extrusion | E85: 2 | F85: stock Ender 3 Pro extrusion - bottom frame sides / M5 tapped end holes required | J85: 0 | K85: 0 | M85: 0 | N85: 0 | O85: 0 | P85: 0 | Q85: 0 | R85: 0 | S85: 0 | T85: 0
C86: ELECTRONICS | K86: =SUM(K87:K106) -> 50.049 | M86: 0 | R86: 0 | AS86: =U86+V86+W86+AD86+AH86+AI86+AM86+AN86+AO86+AP86+AQ86 -> 0 | AT86: =X86+Y86 -> 0 | AU86: 0 | AV86: 0 | AW86: 0 | AX86: 0 | AY86: 0 | AZ86: 0 | GH86: =C86 -> ELECTRONICS
D87: DIN rail 350 mm | E87: =SUM(N87:T87) -> 2 | G87: [ AliExpress ] | J87: 3.58 | K87: =E87*J87 -> 7.16 | M87: =IF(E87=0,IF(E87="",0,1),0) -> 0 | N87: =AS$4*AS87+AT$4*AT87+AU$4*AU87+AV$4*AV87+AW$4*AW87+AX$4*AX87+AY$4*AY87+AZ$4*AZ87+BA$4*BA87 -> 0 | O87: =BG$4*BG87+BH$4*BH87+BI$4*BI87+BJ$4*BJ87+BK$4*BK87+BL$4*BL87+BM$4*BM87+BN$4*BN87+BO$4*BO87+BP$4*BP87+BQ$4*BQ87+BR$4*BR87 -> 0 | P87: =BS$4*BS87+BT$4*BT87+BU$4*BU87+BV$4*BV87+BW$4*BW87+BX$4*BX87+BY$4*BY87+BZ$4*BZ87+CA$4*CA87+CB$4*CB87+CC$4*CC87+CD$4*CD87+CE$4*CE87+CF$4*CF87+CG$4*CG87+CH$4*CH87 -> 2 | Q87: =BB$4*BB87+BC$4*BC87+BD$4*BD87 -> 0 | R87: 0 | S87: =FU$4*FU87+FV$4*FV87+FW$4*FW87+FX$4*FX87+FY$4*FY87+FZ$4*FZ87+GA$4*GA87+GB$4*GB87+GC$4*GC87+GD$4*GD87+GE$4*GE87 -> 0 | T87: =BF$4*BF87 -> 0 | AS87: 0 | AT87: 0 | AU87: 0 | AV87: 0 | AW87: 0 | AX87: 0 | AY87: 0 | AZ87: 0 | BS87: 2
D88: DIN rail 200 mm | E88: 1 | G88: [ AliExpress ] | J88: 2.93 | K88: 2.93 | M88: 0 | N88: 0 | O88: 0 | P88: 1 | Q88: 0 | R88: 0 | S88: 0 | T88: 0 | AS88: 0 | AT88: 0 | AU88: 0 | AV88: 0 | AW88: 0 | AX88: 0 | AY88: 0 | AZ88: 0 | BS88: 1
D89: 3010 axial FAN | E89: 1 | F89: 24V / dual ball bearing / 12 000 RPM – hotend cooling | G89: [ AliExpress ] | J89: =12.25/2 -> 6.125 | K89: 6.125 | M89: 0 | N89: 0 | O89: 0 | P89: 0 | Q89: 0 | R89: 1 | S89: 0 | T89: 0 | AS89: 0 | AT89: 0 | AU89: 0 | AV89: 0 | AW89: 0 | AX89: 0 | AY89: 0 | AZ89: 0 | EZ89: 1 | FA89: 1 | FB89: 1 | FC89: 1 | FD89: 1
D90: 4010 axial FAN | E90: 0 | F90: 24V – Raspberry Pi cooling | G90: [ AliExpress ] | J90: =12.58/2 -> 6.29 | K90: 0 | M90: 1 | N90: 0 | O90: 0 | P90: 0 | Q90: 0 | R90: 0 | S90: 0 | T90: 0 | AS90: 0 | AT90: 0 | AU90: 0 | AV90: 0 | AW90: 0 | AX90: 0 | AY90: 0 | AZ90: 0 | BY90: 1
D91: 4020 axial FAN | E91: 2 | F91: 24V – AB stepper cooling | G91: [ AliExpress ] | H91: [ Amazon ] | J91: =(9.19+6.01)/4 -> 3.8 | K91: 7.6 | M91: 0 | N91: 0 | O91: 0 | P91: 2 | Q91: 0 | R91: 0 | S91: 0 | T91: 0 | AS91: 0 | AT91: 0 | AU91: 0 | AV91: 0 | AW91: 0 | AX91: 0 | AY91: 0 | AZ91: 0 | BT91: 2
D92: 6015 axial FAN | E92: 2 | F92: 24V – electronics cooling + air circulating fan under bed | G92: [ AliExpress ] | J92: =(8.89+7.13)/4 -> 4.005 | K92: 8.01 | M92: 0 | N92: 0 | O92: 0 | P92: 2 | Q92: 0 | R92: 0 | S92: 0 | T92: 0 | AS92: 0 | AT92: 0 | AU92: 0 | AV92: 0 | AW92: 0 | AX92: 0 | AY92: 0 | AZ92: 0 | BH92: 1 | BL92: 1 | BN92: 1 | BZ92: 2 | CB92: 2 | CC92: 2 | CH92: 2
D93: 4010 radial FAN | E93: 2 | F93: 24V / dual ball bearing / 12 000 RPM - part cooling | G93: [ AliExpress ] | J93: =13.78/2 -> 6.89 | K93: 13.78 | M93: 0 | N93: 0 | O93: 0 | P93: 0 | Q93: 0 | R93: 2 | S93: 0 | T93: 0 | AS93: 0 | AT93: 0 | AU93: 0 | AV93: 0 | AW93: 0 | AX93: 0 | AY93: 0 | AZ93: 0 | EZ93: 2
D94: 4020 radial FAN | E94: 0 | F94: 24V / dual ball bearing / 6 500 RPM – part cooling | G94: [ AliExpress ] | J94: 9.3 | K94: 0 | M94: 1 | N94: 0 | O94: 0 | P94: 0 | Q94: 0 | R94: 0 | S94: 0 | T94: 0 | AS94: 0 | AT94: 0 | AU94: 0 | AV94: 0 | AW94: 0 | AX94: 0 | AY94: 0 | AZ94: 0 | FA94: 2
D95: 5015 radial FAN | E95: 0 | F95: 24V / dual ball bearing / 8 500 RPM – part cooling | G95: [ AliExpress ] | H95: [ Amazon ] | J95: =12.91/2 -> 6.455 | K95: 0 | M95: 1 | N95: 0 | O95: 0 | P95: 0 | Q95: 0 | R95: 0 | S95: 0 | T95: 0 | AS95: 0 | AT95: 0 | AU95: 0 | AV95: 0 | AW95: 0 | AX95: 0 | AY95: 0 | AZ95: 0 | FB95: 2
D96: 12032 radial FAN | E96: 0 | F96: 24V / 3 000 RPM – auxiliary cooling fan | G96: [ AliExpress ] | H96: [ Amazon ] | I96: [ AliExpress ] | J96: =(18.71+3.79)/2 -> 11.25 | K96: 0 | M96: 1 | N96: 0 | O96: 0 | P96: 0 | Q96: 0 | R96: 0 | S96: 0 | T96: 0 | AS96: 0 | AT96: 0 | AU96: 0 | AV96: 0 | AW96: 0 | AX96: 0 | AY96: 0 | AZ96: 0 | GE96: 2
D97: CPAP | E97: 0 | G97: [ AliExpress ] | H97: [ Amazon ] | I97: [ AliExpress ] | J97: 45.42 | K97: 0 | M97: 1 | N97: 0 | O97: 0 | P97: 0 | Q97: 0 | R97: 0 | S97: 0 | T97: 0 | AS97: 0 | AT97: 0 | AU97: 0 | AV97: 0 | AW97: 0 | AX97: 0 | AY97: 0 | AZ97: 0 | FC97: 1
D98: CPAP hose | E98: 0 | G98: [ AliExpress ] | H98: [ Amazon ] | I98: [ AliExpress ] | J98: 14.47 | K98: 0 | M98: 1 | N98: 0 | O98: 0 | P98: 0 | Q98: 0 | R98: 0 | S98: 0 | T98: 0 | FC98: 1
D99: Microswitch | E99: 2 | F99: Omron D2F-L | G99: [ AliExpress ] | J99: =(0.51*4+3.42)/4 -> 1.365 | K99: 2.73 | M99: 0 | N99: 0 | O99: 0 | P99: 2 | Q99: 0 | R99: 0 | S99: 0 | T99: 0 | AS99: =U99+V99+W99+AD99+AH99+AI99+AM99+AN99+AO99+AP99+AQ99 -> 0 | AT99: =X99+Y99 -> 0 | AU99: =Z99+AA99 -> 0 | AV99: =AB99+AC99 -> 0 | AW99: =AK99 -> 0 | AX99: =AL99 -> 0 | AY99: =AF99+AR99 -> 0 | AZ99: =AJ99 -> 0 | BV99: 2 | FE99: 1
D100: JST 2P FEMALE | E100: 0 | G100: [ AliExpress ] | K100: 0 | M100: 1 | N100: 0 | O100: 0 | P100: 0 | Q100: 0 | R100: 0 | S100: 0 | T100: 0 | AS100: 0 | AT100: 0 | AU100: 0 | AV100: 0 | AW100: 0 | AX100: 0 | AY100: 0 | AZ100: 0 | BP100: 4 | BQ100: 2 | FO100: 5 | FQ100: 5
D101: JST 3P FEMALE | E101: 0 | G101: [ AliExpress ] | K101: 0 | M101: 1 | N101: 0 | O101: 0 | P101: 0 | Q101: 0 | R101: 0 | S101: 0 | T101: 0 | AS101: 0 | AT101: 0 | AU101: 0 | AV101: 0 | AW101: 0 | AX101: 0 | AY101: 0 | AZ101: 0 | FO101: 1 | FQ101: 1
D102: WAGO 221-412 | E102: 0 | G102: [ AliExpress ] | J102: =(8.29+2.74)/10 -> 1.103 | K102: 0 | M102: 1 | N102: 0 | O102: 0 | P102: 0 | Q102: 0 | R102: 0 | S102: 0 | T102: 0 | AS102: 0 | AT102: 0 | AU102: 0 | AV102: 0 | AW102: 0 | AX102: 0 | AY102: 0 | AZ102: 0 | BP102: 2 | BQ102: 3
D103: PG7 cable gland | E103: 1 | F103: Or use printed version - in the EXTRAS folder | G103: [ AliExpress ] | J103: =3.01/5 -> 0.602 | K103: 0.602 | M103: 0 | N103: 1 | O103: 0 | P103: 0 | Q103: 0 | R103: 0 | S103: 0 | T103: 0 | AQ103: 1 | AR103: =-1+1 -> 0 | AS103: 1 | AT103: 0 | AU103: 0 | AV103: 0 | AW103: 0 | AX103: 0 | AY103: 0 | AZ103: 0
D104: LED strips | E104: 0.4 | F104: 10 mm width / with adhesive / length in meters | G104: [ AliExpress ] | J104: =5.56/2 -> 2.78 | K104: 1.112 | M104: 0 | N104: 0 | O104: 0 | P104: 0 | Q104: 0 | R104: 0 | S104: 0.4 | T104: 0 | AS104: 0 | AT104: 0 | AU104: 0 | AV104: 0 | AW104: 0 | AX104: 0 | AY104: 0 | AZ104: 0 | FX104: =0.2*2 -> 0.4 | FY104: =0.35+0.35+0.3 -> 1 | FZ104: =FX104+FY104 -> 1.4
D105: AC power inlet | E105: 1 | F105: With kill switch and fuse (AC-08) - reuse from your base Ender 3 | G105: [ AliExpress ] | J105: =(1.12+1)*0 -> 0 | K105: 0 | M105: 0 | N105: 0 | O105: 0 | P105: 1 | Q105: 0 | R105: 0 | S105: 0 | T105: 0 | AS105: 0 | AT105: 0 | AU105: 0 | AV105: 0 | AW105: 0 | AX105: 0 | AY105: 0 | AZ105: 0 | BU105: 1
D106: SEXBOLT KIT | E106: 0 | F106: Original Voron style supported | G106: [ AliExpress ] | J106: 5.42 | K106: 0 | M106: 1 | N106: 0 | O106: 0 | P106: 0 | Q106: 0 | R106: 0 | S106: 0 | T106: 0 | AS106: 0 | AT106: 0 | AU106: 0 | AV106: 0 | AW106: 0 | AX106: 0 | AY106: 0 | AZ106: 0 | BR106: 1
C107: OTHER HARDWARE | K107: =SUM(K108:K111) -> 1.74 | M107: 0 | R107: 0 | AS107: 0 | AT107: 0 | AU107: 0 | AV107: 0 | AW107: 0 | AX107: 0 | AY107: 0 | AZ107: 0 | GH107: =C107 -> OTHER HARDWARE
D108: Bed silicone spacer | E108: =SUM(N108:T108) -> 4 | G108: [ AliExpress ] | J108: =1.74/4 -> 0.435 | K108: =E108*J108 -> 1.74 | M108: =IF(E108=0,IF(E108="",0,1),0) -> 0 | N108: =AS$4*AS108+AT$4*AT108+AU$4*AU108+AV$4*AV108+AW$4*AW108+AX$4*AX108+AY$4*AY108+AZ$4*AZ108+BA$4*BA108 -> 0 | O108: =BG$4*BG108+BH$4*BH108+BI$4*BI108+BJ$4*BJ108+BK$4*BK108+BL$4*BL108+BM$4*BM108+BN$4*BN108+BO$4*BO108+BP$4*BP108+BQ$4*BQ108+BR$4*BR108 -> 4 | P108: =BS$4*BS108+BT$4*BT108+BU$4*BU108+BV$4*BV108+BW$4*BW108+BX$4*BX108+BY$4*BY108+BZ$4*BZ108+CA$4*CA108+CB$4*CB108+CC$4*CC108+CD$4*CD108+CE$4*CE108+CF$4*CF108+CG$4*CG108+CH$4*CH108 -> 0 | Q108: =BB$4*BB108+BC$4*BC108+BD$4*BD108 -> 0 | R108: 0 | S108: =FU$4*FU108+FV$4*FV108+FW$4*FW108+FX$4*FX108+FY$4*FY108+FZ$4*FZ108+GA$4*GA108+GB$4*GB108+GC$4*GC108+GD$4*GD108+GE$4*GE108 -> 0 | T108: =BF$4*BF108 -> 0 | AS108: 0 | AT108: 0 | AU108: 0 | AV108: 0 | AW108: 0 | AX108: 0 | AY108: 0 | AZ108: 0 | BG108: 4 | BI108: 4 | BJ108: 4 | BK108: 4
D109: Bed build plate | E109: 1 | G109: [ AliExpress ] | J109: =9.67*0 -> 0 | K109: =E109*J109 -> 0 | M109: =IF(E109=0,IF(E109="",0,1),0) -> 0 | R109: 0 | AS109: 0 | AT109: 0 | AU109: 0 | AV109: 0 | AW109: 0 | AX109: 0 | AY109: 0 | AZ109: 0
D110: WobbleX WS8 | E110: =SUM(N110:T110) -> 0 | G110: [ AliExpress ] | J110: 18.41 | K110: =E110*J110 -> 0 | M110: =IF(E110=0,IF(E110="",0,1),0) -> 1 | N110: =AS$4*AS110+AT$4*AT110+AU$4*AU110+AV$4*AV110+AW$4*AW110+AX$4*AX110+AY$4*AY110+AZ$4*AZ110+BA$4*BA110 -> 0 | O110: =BG$4*BG110+BH$4*BH110+BI$4*BI110+BJ$4*BJ110+BK$4*BK110+BL$4*BL110+BM$4*BM110+BN$4*BN110+BO$4*BO110+BP$4*BP110+BQ$4*BQ110+BR$4*BR110 -> 0 | P110: =BS$4*BS110+BT$4*BT110+BU$4*BU110+BV$4*BV110+BW$4*BW110+BX$4*BX110+BY$4*BY110+BZ$4*BZ110+CA$4*CA110+CB$4*CB110+CC$4*CC110+CD$4*CD110+CE$4*CE110+CF$4*CF110+CG$4*CG110+CH$4*CH110 -> 0 | Q110: =BB$4*BB110+BC$4*BC110+BD$4*BD110 -> 0 | R110: =DK$4*DK110+DL$4*DL110+DM$4*DM110+DN$4*DN110+DO$4*DO110+DP$4*DP110+DQ$4*DQ110+DR$4*DR110+DS$4*DS110+DT$4*DT110+DU$4*DU110+DV$4*DV110+DW$4*DW110+DX$4*DX110+DY$4*DY110+DZ$4*DZ110+EA$4*EA110+EB$4*EB110+EC$4*EC110+ED$4*ED110+EE$4*EE110+EF$4*EF110+EG$4*EG110+EH$4*EH110+EI$4*EI110+EJ$4*EJ110+EK$4*EK110+EL$4*EL110+EM$4*EM110+EN$4*EN110+EO$4*EO110+EP$4*EP110+EQ$4*EQ110+ER$4*ER110+ES$4*ES110+ET$4*ET110+EU$4*EU110+EV$4*EV110+EW$4*EW110+EX$4*EX110+EY$4*EY110+EZ$4*EZ110+FA$4*FA110+FB$4*FB110+FC$4*FC110+FD$4*FD110+FE$4*FE110+FF$4*FF110+FG$4*FG110+FH$4*FH110+FI$4*FI110+FJ$4*FJ110+FK$4*FK110+FL$4*FL110+FM$4*FM110+FN$4*FN110+FO$4*FO110+FP$4*FP110+FQ$4*FQ110+FR$4*FR110+FS$4*FS110+FT$4*FT110 -> 0 | S110: =FU$4*FU110+FV$4*FV110+FW$4*FW110+FX$4*FX110+FY$4*FY110+FZ$4*FZ110+GA$4*GA110+GB$4*GB110+GC$4*GC110+GD$4*GD110+GE$4*GE110 -> 0 | T110: =BF$4*BF110 -> 0 | BJ110: 3
D111: PROBE/EXTRUDER KIT | E111: =SUM(N111:T111) -> 1 | G111: links in the table below | K111: =E111*J111 -> 0 | M111: =IF(E111=0,IF(E111="",0,1),0) -> 0 | N111: =AS$4*AS111+AT$4*AT111+AU$4*AU111+AV$4*AV111+AW$4*AW111+AX$4*AX111+AY$4*AY111+AZ$4*AZ111+BA$4*BA111 -> 0 | O111: =BG$4*BG111+BH$4*BH111+BI$4*BI111+BJ$4*BJ111+BK$4*BK111+BL$4*BL111+BM$4*BM111+BN$4*BN111+BO$4*BO111+BP$4*BP111+BQ$4*BQ111+BR$4*BR111 -> 0 | P111: =BS$4*BS111+BT$4*BT111+BU$4*BU111+BV$4*BV111+BW$4*BW111+BX$4*BX111+BY$4*BY111+BZ$4*BZ111+CA$4*CA111+CB$4*CB111+CC$4*CC111+CD$4*CD111+CE$4*CE111+CF$4*CF111+CG$4*CG111+CH$4*CH111 -> 0 | Q111: =BB$4*BB111+BC$4*BC111+BD$4*BD111 -> 0 | R111: 1 | S111: =FU$4*FU111+FV$4*FV111+FW$4*FW111+FX$4*FX111+FY$4*FY111+FZ$4*FZ111+GA$4*GA111+GB$4*GB111+GC$4*GC111+GD$4*GD111+GE$4*GE111 -> 0 | T111: =BF$4*BF111 -> 0 | AS111: 0 | AT111: 0 | AU111: 0 | AV111: 0 | AW111: 0 | AX111: 0 | AY111: 0 | AZ111: 0 | EF111: 1 | EG111: 1 | EH111: 1 | EI111: 1 | EO111: 1 | EP111: 1 | ER111: 1 | ES111: 1 | ET111: 1 | EU111: 1 | EV111: 1 | EW111: 1 | FF111: 1 | GC111: 1
C114: LOOKING FOR SOMETHING ELSE? BOARD, HOTEND, EXTRUDER, PROBE, STEPPERS OR PLANNING UPGRADES?
C115: Section below contains unnecessary parts and components like all of the supported boards, hotends, extruders and probes but also other components that are not specific to the current E3 NG.
C116: If you are buying upgrades, buying it from the list bellow helps supporting the project and doesn’t cost you anything extra. If you choose to do so, thank you very much, you are helping to keep the project alive and growing!
C118: MOTHERBOARDS, SBC | GH118: =C118 -> MOTHERBOARDS, SBC
C119: DIRECTLY SUPPORTED BOARDS | GH119: =C119 -> DIRECTLY SUPPORTED BOARDS
D120: BTT Octopus v1.1 | G120: [ AliExpress ] | H120: [ Amazon ]
D121: BTT SKR3EZ | G121: [ AliExpress ] | H121: [ Amazon ]
D122: BTT SKR mini E3 v2 | G122: [ AliExpress ] | H122: [ Amazon ]
D123: BTT EXP-MOT | G123: [ AliExpress ]
C124: OTHER BOARDS | GH124: =C124 -> OTHER BOARDS
D125: BTT Kraken | G125: [ AliExpress ]
D126: BTT Manta E3EZ | H126: [ Amazon ]
D127: BTT Manta M4P | G127: [ AliExpress ] | H127: [ Amazon ]
D128: BTT Manta M5P | G128: [ AliExpress ] | H128: [ Amazon ]
D129: BTT Manta M8P v1.1 | G129: [ AliExpress ] | H129: [ Amazon ]
D130: BTT Manta M8P v2.0 | G130: [ AliExpress ] | H130: [ Amazon ]
D131: BTT Octopus Pro v1.0 | G131: [ AliExpress ] | H131: [ Amazon ]
D132: BTT Octopus Max EZ v1.0 | G132: [ AliExpress ] | H132: [ Amazon ]
D133: BTT Pico v1.0 | G133: [ AliExpress ] | H133: [ Amazon ]
D134: BTT SKR V1.4 / Turbo | G134: [ AliExpress ] | H134: [ Amazon ]
D135: BTT SKR 3 | G135: [ AliExpress ] | H135: [ Amazon ]
D136: BTT SKR mini E3 v3 | G136: [ AliExpress ] | H136: [ Amazon ]
D137: BTT SKR PRO v1.2 | G137: [ AliExpress ] | H137: [ Amazon ]
D138: BTT SKRat v1.0 | G138: [ AliExpress ]
C139: SBC | GH139: =C139 -> SBC
D140: BTT CB1 | G140: [ AliExpress ] | H140: [ Amazon ]
D141: BTT CB2 | G141: [ AliExpress ]
D142: BTT Pi4B | G142: [ AliExpress ] | H142: [ Amazon ]
D143: BTT Pi v1.2 | G143: [ AliExpress ] | H143: [ Amazon ]
D144: BTT Pi v2.0 | G144: [ AliExpress ]
D145: Raspberry Pi 4 | H145: [ Amazon ]
C146: DRIVERS | GH146: =C146 -> DRIVERS
D147: TMC2209 | G147: [ AliExpress ] | H147: [ Amazon ]
D148: TMC5160T | G148: [ AliExpress ] | H148: [ Amazon ]
D149: TMC5160T PRO/PLUS | G149: [ AliExpress ] | H149: [ Amazon ]
D150: EZ DRIVERS | G150: [ AliExpress ] | H150: [ Amazon ]
C151: OTHER ELECTRONICS
D152: BTT KNOMI v1.0 | G152: [ AliExpress ] | H152: [ Amazon ]
D153: BTT KNOMI v2.0 | G153: [ AliExpress ] | H153: [ Amazon ]
D154: BTT PiggyBack36 v1.0 | G154: [ AliExpress ]
D155: Mellow Fly-MiniAB board | G155: [ AliExpress ]
D156: BTT EBB36 / EBB42 CAN v1.2 | G156: [ AliExpress ] | H156: [ Amazon ]
C157: HOTENDS | GH157: =C157 -> HOTENDS
C158: DIRECTLY SUPPORTED HOTENDS | GH158: =C158 -> DIRECTLY SUPPORTED HOTENDS
D159: BambuLab | G159: [ AliExpress ] | J159: 16.03
D160: Creality MK8/CR10 | G160: [ AliExpress ] | J160: 5.71
D161: Creality Spider V3 | H161: [ Amazon ] | J161: 34.71
D162: E3D V6 | G162: [ AliExpress ] | J162: 4.29
D163: E3D V6 Volcano | G163: [ AliExpress ] | J163: 5.56
D164: E3D Revo Voron | G164: [ AliExpress ] | J164: 107.45
D165: Phaetus Dragonfly BMS | G165: [ AliExpress ] | H165: [ Amazon ] | J165: 53.91
D166: Phaetus Dragon 1 SF
D167: Phaetus Dragon 1 HF
D168: Phaetus Dragon HF
D169: Phaetus Rapido HF | G169: [ AliExpress ] | H169: [ Amazon ] | J169: 77.22
D170: Phaetus Rapido V2 HF | G170: [ AliExpress ] | J170: 74.31
D171: Phaetus Dragon UHF | H171: [ Amazon ]
D172: Phaetus Rapido UHF | G172: [ AliExpress ] | H172: [ Amazon ] | J172: 85.02
D173: Phaetus Rapido V2 UHF | G173: [ AliExpress ] | J173: 82.06
D174: Trianglelab V6DM heatsink | G174: [ AliExpress ] | J174: 9.6
D175: Triandlelab CHC | G175: [ AliExpress ] | J175: =22.88+3.98 -> 26.86
D176: Trianglelab CHC Pro | G176: [ AliExpress ] | J176: 30.9
D177: Trianglelab TCHC TD6S | G177: [ AliExpress ] | J177: 36.21
D178: Trianglelab CHCB-V TD6S | G178: [ AliExpress ] | J178: 46.17
D179: Trianglelab Dragon ACE | G179: [ trianglelab ]
D180: Trianglelab Dragon ACE+
D181: Trianglelab Rapido ACE | G181: [ AliExpress ]
D182: VZ - Goliath | G182: [ AliExpress ] | J182: 121.5
C183: OTHER HOTENDS | GH183: =C183 -> OTHER HOTENDS
C187: ACCESSORIES | GH187: =C187 -> ACCESSORIES
D188: Meltzone Extender | G188: [ AliExpress ]
D189: HT-NTC100K Thermistor | G189: [ AliExpress ]
D190: Heater cartridge 24V 50W | G190: [ AliExpress ]
D191: Heater cartridge 24V 70W | G191: [ AliExpress ]
C192: FILAMENT EXTRUDERS | GH192: =C192 -> FILAMENT EXTRUDERS
D193: BMG gear kit - cheap | F193: Cheap clone extruder with metal gears, tested. | G193: [ AliExpress ]
D194: BMG gear kit - cheap | G194: [ AliExpress ]
D195: Sherpa gear kit precise | G195: [ AliExpress ]
D196: Sherpa gear kit precise | G196: [ AliExpress ]
D197: HGX gear kit | G197: [ AliExpress ]
D198: HGX 2.0 gear kit | G198: [ AliExpress ]
D199: Haldis HGX 2.0 extruder | G199: [ AliExpress ]
D200: LOD Orbiter v2.0 | G200: [ AliExpress ]
D201: SLS Sherpa Mini | G201: [ AliExpress ]
D202: CNC Vz-Hextrudort | G202: [ AliExpress ]
D203: CNC Sherpa Micro | G203: [ AliExpress ]
D204: Voron M4 kit | G204: [ AliExpress ]
C205: BED PROBES | GH205: =C205 -> BED PROBES
C206: DIRECTLY SUPPORTED PROBES | GH206: =C206 -> DIRECTLY SUPPORTED PROBES
... 39 more rows

Sheet PRINTED PARTS
D1: BACK TO: | H1: GO TO: | FF1: 2024/10/25 – RH3D
U2: FRAME BOTTOM | AM2: TOP FRAME | AS2: FRAME | BB2: XY MOTION | BE2: ENCLOSURE | BG2: BED | BS2: ELECTRONICS | CI2: HOTEND | DD2: EXTRUDER | DX2: PART COOLING | EC2: BED PROBE | EM2: ACCESSORY | ES2: BRACES | ET2: HORIZ | EU2: HANDL | EV2: LED | EY2: SPOOL | EZ2: FILTER | FA2: VorM4 | FB2: ELE.sh | FC2: RSCS
C3: NAME | E3: FILENAME | F3: PCS | G3: COL | H3: NOTE | I3: W [g] MAIN | J3: W [g] ACCENT | K3: W [g] | M3: HIDE | N3: FRAME | O3: BED | P3: ELECTRONICS | Q3: XY MOTION | R3: TOOLHEAD | S3: OTHER | T3: ENCL | U3: fr right | V3: fr left | W3: fr bottom | X3: re left | Y3: re right | Z3: re L 2040 | AA3: re R 2040 | AB3: left ulti | AC3: right ulti | AD3: LS1140 | AE3: LS1040 | AF3: LS1140_3 | AG3: LS1040_3 | AH3: belt idler | AI3: N17 | AJ3: 3Z N17 | AK3: E3 fit | AL3: 4040 fix | AM3: fr right | AN3: fr left | AO3: rear A | AP3: rear B | AQ3: re mid | AR3: re mid 3Z | AS3: BARE | AT3: + print | AU3: ="+ 2040" -> + 2040 | AV3: + ulti | AW3: ="+ E3" -> + E3 | AX3: ="+ E3v2" -> + E3v2 | AY3: + TRIPPLE | AZ3: + 3Z N17 | BA3: + PR 40T | BB3: Y left | BC3: Y right | BD3: TH base | BE3: V1 | BF3: V2 | BG3: METAL | BH3: + FAN | BI3: Stock-FX | BJ3: Stock-WX | BK3: Stock-SD | BL3: + FAN | BM3: PRINTED | BN3: + FAN | BO3: TRIPPLE Z | BP3: Wago-DC | BQ3: Wago-AC | BR3: SEXBOLT | BS3: PANEL | BT3: COOLING | BU3: grill+AC | BV3: XY stop | BW3: 30PSU | BX3: 50PSU | BY3: RPI4 | BZ3: skr3ez | CA3: expm | CB3: octo | CC3: miniv2 | CD3: rs15 | CE3: ssr | CF3: LT933 | CG3: LT623 | CI3: Bamb | CJ3: MK8 | CK3: SPV3 | CL3: SPV3V | CM3: nXG_H | CN3: nXG_U | CO3: CHC | CP3: CHCV | CQ3: V6 | CR3: V6_V | CS3: Goliat | CT3: revov | CU3: Dfly | CV3: Drag1 | CW3: Dr2HF | CX3: Dr2U | CY3: rapHF | CZ3: raUH | DA3: Mosq | DB3: ACE | DC3: ACE+ | DD3: Shmin | DE3: =int | DF3: Shmic | DG3: =int | DH3: LGX | DI3: LGXlit | DJ3: BMG | DK3: ORB1 | DL3: ORB2 | DM3: Hextr | DN3: =int | DO3: =hel | DP3: Proto | DQ3: =int | DR3: Proto | DS3: =int | DT3: Hum | DU3: =int | DV3: Titan | DW3: BOW | DX3: 4010 | DY3: 4020 | DZ3: 5015 | EA3: CPAP | EB3: RSCS | EC3: Klicky | ED3: =PCB | EE3: Beac | EF3: Bdsen | EG3: BLTou | EH3: CRTo | EI3: Biqu | EJ3: Pinda | EK3: EDDY | EL3: None | EM3: JST | EN3: adxl | EO3: BB+C | EP3: AD+C | EQ3: cable | ER3: none | ES3: Yes | ET3: Yes | EU3: Yes | EV3: FRM | EW3: ENC | EX3: ALL | EY3: Yes | EZ3: Yes | FA3: Yes | FB3: Cut | FC3: Yes | FF3: PERSONAL NOTES
AS4: 1 | AT4: =IF(CONFIGURATOR!$E$8="Printed verticals",1,0) -> 0 | AU4: =IF(CONFIGURATOR!$E$8="2040 extrusion upgrade",1,0) -> 1 | AV4: =IF(CONFIGURATOR!$E$8="Ultimate frame",1,0) -> 0 | AW4: =IF(CONFIGURATOR!$E$6="Creality Ender 3",1,0) -> 0 | AX4: =IF(CONFIGURATOR!$E$6="Creality Ender 3 V2",1,0) -> 0 | AY4: =IF(CONFIGURATOR!$E$9="3x12 mm rod",1,0) -> 1 | AZ4: =IF(CONFIGURATOR!$E$12="3 independent steppers",1,0) -> 0 | BA4: =IF(CONFIGURATOR!$E$13="Printed",1,0) -> 0 | BB4: 1 | BC4: 1 | BD4: 1 | BE4: =IF(CONFIGURATOR!$E$7="Yes - V1",1,0) -> 0 | BF4: =IF(CONFIGURATOR!$E$7="Yes - V2",1,0) -> 0 | BG4: =IF(CONFIGURATOR!$E$10="Custom metal bed carriage",1,0) -> 0 | BH4: =IF(CONFIGURATOR!$E$10="Custom metal bed carriage",IF(CONFIGURATOR!$E$37="Yes",1,0),0) -> 0 | BI4: =IF(CONFIGURATOR!$E$10="Stock E3 bed carriage",IF(CONFIGURATOR!$E$11="Flexi joint",1,0),IF(CONFIGURATOR!$E$10="All printed",IF(CONFIGURATOR!$E$11="Flexi joint",1,0),0)) -> 1 | BJ4: =IF(CONFIGURATOR!$E$10="Stock E3 bed carriage",IF(CONFIGURATOR!$E$11="WobbleX",1,0),IF(CONFIGURATOR!$E$10="All printed",IF(CONFIGURATOR!$E$11="WobbleX",1,0),0)) -> 0 | BK4: =IF(CONFIGURATOR!$E$10="Stock E3 bed carriage",IF(CONFIGURATOR!$E$11="None",1,0),IF(CONFIGURATOR!$E$10="All printed",IF(CONFIGURATOR!$E$11="None",1,0),0)) -> 0 | BL4: =IF((CONFIGURATOR!$E$10="Stock E3 bed carriage"),IF(CONFIGURATOR!$E$37="Yes",1,0),0) -> 0 | BM4: =IF((CONFIGURATOR!$E$10="All printed"),1,0) -> 0 | BN4: =IF((CONFIGURATOR!$E$10="All printed"),IF(CONFIGURATOR!$E$37="Yes",1,0),0) -> 0 | BO4: =IF(CONFIGURATOR!$E$9="3x12 mm rod",IF(CONFIGURATOR!$E$10="Custom metal bed carriage",0,1),0) -> 1 | BP4: =IF(CONFIGURATOR!$E$36="Yes - DC bed heater",1,0) -> 0 | BQ4: =IF(CONFIGURATOR!$E$36="Yes - AC bed heater",1,0) -> 0 | BR4: =IF(CONFIGURATOR!$E$38="Yes",IF(CONFIGURATOR!$E$10="Custom metal bed carriage",0,1),0) -> 0 | BS4: 1 | BT4: =IF(CONFIGURATOR!$E$26="AB stepper cooling",1,0) -> 1 | BU4: 1 | BV4: 1 | BW4: =IF(CONFIGURATOR!$E$14="30 mm",1,0) -> 1 | BX4: =IF(CONFIGURATOR!$E$14="50 mm",1,0) -> 0 | BY4: 0 | BZ4: =IF(CONFIGURATOR!$E$15="BTT SKR3EZ",1,0) -> 0 | CA4: 0 | CB4: =IF(CONFIGURATOR!$E$15="BTT Octopus v1.1",1,0) -> 1 | CC4: =IF(CONFIGURATOR!$E$15="BTT SKR mini E3 v2",1,0) -> 0 | CD4: 0 | CE4: 0 | CF4: 0 | CG4: 0 | CH4: 0 | CI4: =IF(CONFIGURATOR!$E$18="BambuLab",1,0) -> 0 | CJ4: =IF(CONFIGURATOR!$E$18="Creality MK8",1,0) -> 0 | CK4: =IF(CONFIGURATOR!$E$18="Creality Spider V3",1,0) -> 0 | CL4: =IF(CONFIGURATOR!$E$18="Creality Spider V3 Volcano",1,0) -> 0 | CM4: =IF(CONFIGURATOR!$E$18="DropEffect neXtG HF",1,0) -> 0 | CN4: =IF(CONFIGURATOR!$E$18="DropEffect neXtG UHF",1,0) -> 0 | CO4: =IF(CONFIGURATOR!$E$18="CHC",1,0) -> 0 | CP4: =IF(CONFIGURATOR!$E$18="CHC Pro",1,0) -> 0 | CQ4: =IF(CONFIGURATOR!$E$18="E3D V6",1,0) -> 0 | CR4: =IF(CONFIGURATOR!$E$18="E3D V6 Volcano",1,0) -> 0 | CS4: =IF(CONFIGURATOR!$E$18="Goliath AIR",1,0) -> 0 | CT4: =IF(CONFIGURATOR!$E$18="Revo Voron",1,0) -> 0 | CU4: =IF(CONFIGURATOR!$E$18="Phaetus BMS Dragonfly",1,0) -> 0 | CV4: =IF(CONFIGURATOR!$E$18="Phaetus Dragon 1 SF/HF",1,0) -> 0 | CW4: =IF(CONFIGURATOR!$E$18="Phaetus Dragon 2 HF",1,0) -> 0 | CX4: =IF(CONFIGURATOR!$E$18="Phaetus Dragon 2 UHF",1,0) -> 0 | CY4: =IF(CONFIGURATOR!$E$18="Phaetus Rapido HF",1,0) -> 0 | CZ4: =IF(CONFIGURATOR!$E$18="Phaetus Rapido UHF",1,0) -> 1 | DA4: =IF(CONFIGURATOR!$E$18="SliceEngineering Mosquito",1,0) -> 0 | DB4: =IF(CONFIGURATOR!$E$18="TriangleLab Dragon ACE",1,0) -> 0 | DC4: =IF(CONFIGURATOR!$E$18="TriangleLab Dragon ACE+",1,0) -> 0 | DD4: =IF(CONFIGURATOR!$E$19="Sherpa mini",1,0) -> 0 | DE4: =IF(CONFIGURATOR!$E$19="Integrated Sherpa mini",1,0) -> 0 | DF4: =IF(CONFIGURATOR!$E$19="Sherpa micro",1,0) -> 0 | DG4: =IF(CONFIGURATOR!$E$19="Integrated Sherpa micro",1,0) -> 1 | DH4: =IF(CONFIGURATOR!$E$19="BMG LGX",1,0) -> 0 | DI4: =IF(CONFIGURATOR!$E$19="BMG LGX Lite",1,0) -> 0 | DJ4: =IF(CONFIGURATOR!$E$19="BMG Dualgear",1,0) -> 0 | DK4: =IF(CONFIGURATOR!$E$19="Orbiter 1.0",1,0) -> 0 | DL4: =IF(CONFIGURATOR!$E$19="Orbiter 2.0",1,0) -> 0 | DM4: =IF(CONFIGURATOR!$E$19="VzHextrudort",1,0) -> 0 | DN4: =IF(CONFIGURATOR!$E$19="Integrated VzHextrudort low",1,0) -> 0 | DO4: =IF(CONFIGURATOR!$E$19="Integrated VzHextrudort helical",1,0) -> 0 | DP4: =IF(CONFIGURATOR!$E$19="ProtoXtruder",1,0) -> 0 | DQ4: =IF(CONFIGURATOR!$E$19="Integrated ProtoXtruder",1,0) -> 0 | DR4: =IF(CONFIGURATOR!$E$19="ProtoXtruder 2.0",1,0) -> 0 | DS4: =IF(CONFIGURATOR!$E$19="Integrated ProtoXtruder 2.0",1,0) -> 0 | DT4: =IF(CONFIGURATOR!$E$19="Hummingbird",1,0) -> 0 | DU4: =IF(CONFIGURATOR!$E$19="Integrated Hummingbird",1,0) -> 0 | DV4: =IF(CONFIGURATOR!$E$19="E3D Titan Extruder",1,0) -> 0 | DW4: =IF(CONFIGURATOR!$E$19="Bowden",1,0) -> 0 | DX4: =IF(CONFIGURATOR!$E$21="2x 4010",1,0) -> 1 | DY4: =IF(CONFIGURATOR!$E$21="2x 4020",1,0) -> 0 | DZ4: =IF(CONFIGURATOR!$E$21="2x 5015",1,0) -> 0 | EA4: =IF(CONFIGURATOR!$E$21="CPAP",1,0) -> 0 | EB4: =IF(CONFIGURATOR!$E$21="RSCS only",1,0) -> 0 | EC4: =IF(CONFIGURATOR!$E$22="Klicky probe",1,0) -> 0 | ED4: =IF(CONFIGURATOR!$E$22="KlickyPCB",1,0) -> 0 | EE4: =IF(CONFIGURATOR!$E$22="Beacon scanner",1,0) -> 0 | EF4: =IF(CONFIGURATOR!$E$22="BDsensor",1,0) -> 1 | EG4: =IF(CONFIGURATOR!$E$22="BLTouch",1,0) -> 0 | EH4: =IF(CONFIGURATOR!$E$22="CR Touch",1,0) -> 0 | EI4: =IF(CONFIGURATOR!$E$22="Biqu MicroProbe",1,0) -> 0 | EJ4: =IF(CONFIGURATOR!$E$22="P.I.N.D.A. / SuperPINDA",1,0) -> 0 | EK4: =IF(CONFIGURATOR!$E$22="BTT EDDY",1,0) -> 0 | EL4: =IF(CONFIGURATOR!$E$22="No probe",1,0) -> 0 | EM4: =IF(CONFIGURATOR!$E$23="Breakout Board",1,0) -> 0 | EN4: =IF(CONFIGURATOR!$E$23="Accelerometer",1,0) -> 0 | EO4: =IF(CONFIGURATOR!$E$23="Breakout + cable",1,0) -> 0 | EP4: =IF(CONFIGURATOR!$E$23="Accel + cable",1,0) -> 1 | EQ4: =IF(CONFIGURATOR!$E$23="Cable guide",1,0) -> 0 | ER4: =IF(CONFIGURATOR!$E$23="n",1,0) -> 0 | ES4: =IF(CONFIGURATOR!$E$27="Yes",1,0) -> 0 | ET4: =IF(CONFIGURATOR!$E$28="Yes",1,0) -> 1 | EU4: =IF(CONFIGURATOR!$E$29="Yes",1,0) -> 1 | EV4: =IF(CONFIGURATOR!$E$30="Frame LED",1,0) -> 1 | EW4: =IF(CONFIGURATOR!$E$30="Enclosure LED",1,0) -> 0 | EX4: =IF(CONFIGURATOR!$E$30="Both LEDs",1,0) -> 0 | EY4: =IF(CONFIGURATOR!$E$31="Yes",1,0) -> 0 | EZ4: =IF(CONFIGURATOR!$E$32="Yes",1,0) -> 0 | FA4: =IF(CONFIGURATOR!$E$33="Yes",1,0) -> 0 | FB4: =IF(CONFIGURATOR!$E$34="2mm sheet",1,0) -> 1 | FC4: =IF(CONFIGURATOR!$E$35="Yes",1,0) -> 0
C5: FRAME – BOTTOM | I5: =SUM(I6:I32) -> 322.45 | J5: =SUM(J6:J32) -> 13.81 | M5: =M6*M7*M8*M9*M10*M11*M12*M13*M14*M15*M16*M17*M18*M19*M20*M21*M22*M23*M24*M25*M26*M27*M28*M29*M32 -> 0 | N5: =AS$4*AS5+AT$4*AT5+AU$4*AU5+AV$4*AV5+AW$4*AW5+AX$4*AX5+AY$4*AY5+AZ$4*AZ5+BA$4*BA5 -> 0 | O5: =BG$4*BG5+BH$4*BH5+BI$4*BI5+BJ$4*BJ5+BK$4*BK5+BL$4*BL5+BM$4*BM5+BN$4*BN5+BO$4*BO5+BP$4*BP5+BQ$4*BQ5+BR$4*BR5 -> 0 | P5: =BS$4*BS5+BT$4*BT5+BU$4*BU5+BV$4*BV5+BW$4*BW5+BX$4*BX5+BY$4*BY5+BZ$4*BZ5+CA$4*CA5+CB$4*CB5+CC$4*CC5+CD$4*CD5+CE$4*CE5+CF$4*CF5+CG$4*CG5+CH$4*CH5 -> 0 | Q5: =BB$4*BB5+BC$4*BC5+BD$4*BD5 -> 0 | R5: =CI$4*CI5+CJ$4*CJ5+CK$4*CK5+CL$4*CL5+CM$4*CM5+CN$4*CN5+CO$4*CO5+CP$4*CP5+CQ$4*CQ5+CR$4*CR5+CS$4*CS5+CT$4*CT5+CU$4*CU5+CV$4*CV5+CW$4*CW5+CX$4*CX5+CY$4*CY5+CZ$4*CZ5+DA$4*DA5+DB$4*DB5+DC$4*DC5+DD$4*DD5+DE$4*DE5+DF$4*DF5+DG$4*DG5+DH$4*DH5+DI$4*DI5+DJ$4*DJ5+DK$4*DK5+DL$4*DL5+DM$4*DM5+DN$4*DN5+DO$4*DO5+DP$4*DP5+DQ$4*DQ5+DR$4*DR5+DS$4*DS5+DT$4*DT5+DU$4*DU5+DV$4*DV5+DW$4*DW5+DX$4*DX5+DY$4*DY5+DZ$4*DZ5+EA$4*EA5+EB$4*EB5+EC$4*EC5+ED$4*ED5+EE$4*EE5+EF$4*EF5+EG$4*EG5+EH$4*EH5+EI$4*EI5+EJ$4*EJ5+EK$4*EK5+EL$4*EL5+EM$4*EM5+EN$4*EN5+EO$4*EO5+EP$4*EP5+EQ$4*EQ5+ER$4*ER5 -> 3 | S5: =ES$4*ES5+ET$4*ET5+EU$4*EU5+EV$4*EV5+EW$4*EW5+EX$4*EX5+EY$4*EY5+EZ$4*EZ5+FA$4*FA5+FB$4*FB5+FC$4*FC5 -> 0 | T5: =BF$4*BF5 -> 0 | AS5: =U5+V5+W5+AD5+AH5+AI5+AM5+AN5+AO5+AP5+AQ5 -> 0 | AT5: =X5+Y5 -> 0 | AU5: =Z5+AA5 -> 0 | AV5: =AB5+AC5 -> 0 | AW5: =AK5 -> 0 | AX5: =AL5 -> 0 | AY5: =AF5+AR5 -> 0 | AZ5: =AJ5 -> 0 | CI5: 1 | CJ5: 1 | CK5: 1 | CL5: 2 | CM5: 1 | CN5: 2 | CO5: 1 | CP5: 3 | CQ5: 1 | CR5: 3 | CS5: 3 | CT5: 1 | CU5: 1 | CV5: 1 | CW5: 2 | CX5: 3 | CY5: 2 | CZ5: 3 | DA5: 1 | DB5: 2 | DC5: 3 | FF5: =C5 -> FRAME – BOTTOM
D6: Front corner left | E6: frame_bottom_front_left_body.stl | F6: =SUM(N6:T6) -> 1 | G6: M | I6: =IF($G6="M",$K6*$F6,0) -> 67.1 | J6: =IF($G6="A",$K6*$F6,0) -> 0 | K6: 67.1 | M6: =IF(F6=0,IF(F6="",0,1),0) -> 0 | N6: 1 | O6: 0 | P6: 0 | Q6: 0 | R6: 0 | S6: 0 | T6: 0 | V6: 1 | AS6: 1 | AT6: 0 | AU6: 0 | AV6: 0 | AW6: 0 | AX6: 0 | AY6: 0 | AZ6: 0
D7: Front corner left – top bearing mount | E7: frame_bottom_front_left_cap.stl | F7: 1 | G7: M | I7: 9.76 | J7: 0 | K7: 9.76 | M7: 0 | N7: 1 | O7: 0 | P7: 0 | Q7: 0 | R7: 0 | S7: 0 | T7: 0 | V7: 1 | AS7: 1 | AT7: 0 | AU7: 0 | AV7: 0 | AW7: 0 | AX7: 0 | AY7: 0 | AZ7: 0
D8: Front corner right | E8: frame_bottom_front_right_body.stl | F8: 1 | G8: M | I8: 67.09 | J8: 0 | K8: 67.09 | M8: 0 | N8: 1 | O8: 0 | P8: 0 | Q8: 0 | R8: 0 | S8: 0 | T8: 0 | U8: 1 | AS8: 1 | AT8: 0 | AU8: 0 | AV8: 0 | AW8: 0 | AX8: 0 | AY8: 0 | AZ8: 0
D9: Front corner right – top bearing mount | E9: frame_bottom_front_right_cap.stl | F9: 1 | G9: M | I9: 9.75 | J9: 0 | K9: 9.75 | M9: 0 | N9: 1 | O9: 0 | P9: 0 | Q9: 0 | R9: 0 | S9: 0 | T9: 0 | U9: 1 | AS9: 1 | AT9: 0 | AU9: 0 | AV9: 0 | AW9: 0 | AX9: 0 | AY9: 0 | AZ9: 0
D10: Front corners – Z rod lock | E10: frame_bottom_front_rod_lock.stl | F10: 2 | G10: A | I10: 0 | J10: 4.5 | K10: 2.25 | M10: 0 | N10: 2 | O10: 0 | P10: 0 | Q10: 0 | R10: =CI$4*CI10+CJ$4*CJ10+CK$4*CK10+CL$4*CL10+CM$4*CM10+CN$4*CN10+CO$4*CO10+CP$4*CP10+CQ$4*CQ10+CR$4*CR10+CS$4*CS10+CT$4*CT10+CU$4*CU10+CV$4*CV10+CW$4*CW10+CX$4*CX10+CY$4*CY10+CZ$4*CZ10+DA$4*DA10+DB$4*DB10+DC$4*DC10+DD$4*DD10+DE$4*DE10+DF$4*DF10+DG$4*DG10+DH$4*DH10+DI$4*DI10+DJ$4*DJ10+DK$4*DK10+DL$4*DL10+DM$4*DM10+DN$4*DN10+DO$4*DO10+DP$4*DP10+DQ$4*DQ10+DR$4*DR10+DS$4*DS10+DT$4*DT10+DU$4*DU10+DV$4*DV10+DW$4*DW10+DX$4*DX10+DY$4*DY10+DZ$4*DZ10+EA$4*EA10+EB$4*EB10+EC$4*EC10+ED$4*ED10+EE$4*EE10+EF$4*EF10+EG$4*EG10+EH$4*EH10+EI$4*EI10+EJ$4*EJ10+EK$4*EK10+EL$4*EL10+EM$4*EM10+EN$4*EN10+EO$4*EO10+EP$4*EP10+EQ$4*EQ10+ER$4*ER10 -> 0 | S10: 0 | T10: 0 | U10: 1 | V10: 1 | AS10: 2 | AT10: 0 | AU10: 0 | AV10: 0 | AW10: 0 | AX10: 0 | AY10: 0 | AZ10: 0
D11: Front skirt | E11: frame_bottom_front_skirt.stl | F11: 1 | G11: M | I11: 51.52 | J11: 0 | K11: 51.52 | M11: 0 | N11: 1 | O11: 0 | P11: 0 | Q11: 0 | R11: =CI$4*CI11+CJ$4*CJ11+CK$4*CK11+CL$4*CL11+CM$4*CM11+CN$4*CN11+CO$4*CO11+CP$4*CP11+CQ$4*CQ11+CR$4*CR11+CS$4*CS11+CT$4*CT11+CU$4*CU11+CV$4*CV11+CW$4*CW11+CX$4*CX11+CY$4*CY11+CZ$4*CZ11+DA$4*DA11+DB$4*DB11+DC$4*DC11+DD$4*DD11+DE$4*DE11+DF$4*DF11+DG$4*DG11+DH$4*DH11+DI$4*DI11+DJ$4*DJ11+DK$4*DK11+DL$4*DL11+DM$4*DM11+DN$4*DN11+DO$4*DO11+DP$4*DP11+DQ$4*DQ11+DR$4*DR11+DS$4*DS11+DT$4*DT11+DU$4*DU11+DV$4*DV11+DW$4*DW11+DX$4*DX11+DY$4*DY11+DZ$4*DZ11+EA$4*EA11+EB$4*EB11+EC$4*EC11+ED$4*ED11+EE$4*EE11+EF$4*EF11+EG$4*EG11+EH$4*EH11+EI$4*EI11+EJ$4*EJ11+EK$4*EK11+EL$4*EL11+EM$4*EM11+EN$4*EN11+EO$4*EO11+EP$4*EP11+EQ$4*EQ11+ER$4*ER11 -> 0 | S11: 0 | T11: 0 | W11: 1 | AS11: 1 | AT11: 0 | AU11: 0 | AV11: 0 | AW11: 0 | AX11: 0 | AY11: 0 | AZ11: 0
D12: Rear corner left | E12: frame_bottom_rear_left_body.stl | F12: 0 | G12: M | I12: 0 | J12: 0 | K12: 58.05 | M12: 1 | N12: 0 | O12: 0 | P12: 0 | Q12: 0 | R12: 0 | S12: 0 | T12: 0 | X12: 1 | AS12: 0 | AT12: 1 | AU12: 0 | AV12: 0 | AW12: 0 | AX12: 0 | AY12: 0 | AZ12: 0
D13: Rear frame stand left | E13: frame_bottom_rear_left_vertical.stl | F13: 0 | G13: M | I13: 0 | J13: 0 | K13: 82.38 | M13: 1 | N13: 0 | O13: 0 | P13: 0 | Q13: 0 | R13: 0 | S13: 0 | T13: 0 | X13: 1 | AS13: 0 | AT13: 1 | AU13: 0 | AV13: 0 | AW13: 0 | AX13: 0 | AY13: 0 | AZ13: 0
D14: Rear corner right | E14: frame_bottom_rear_right_body.stl | F14: 0 | G14: M | I14: 0 | J14: 0 | K14: 58.09 | M14: 1 | N14: 0 | O14: 0 | P14: 0 | Q14: 0 | R14: 0 | S14: 0 | T14: 0 | Y14: 1 | AS14: 0 | AT14: 1 | AU14: 0 | AV14: 0 | AW14: 0 | AX14: 0 | AY14: 0 | AZ14: 0
D15: Rear frame stand right | E15: frame_bottom_rear_right_vertical.stl | F15: 0 | G15: M | I15: 0 | J15: 0 | K15: 82.39 | M15: 1 | N15: 0 | O15: 0 | P15: 0 | Q15: 0 | R15: 0 | S15: 0 | T15: 0 | Y15: 1 | AS15: 0 | AT15: 1 | AU15: 0 | AV15: 0 | AW15: 0 | AX15: 0 | AY15: 0 | AZ15: 0
D16: Rear corner left 2040 x 350 mm | E16: frame_bottom_rear_left_2040.stl | F16: 1 | G16: M | I16: 26.91 | J16: 0 | K16: 26.91 | M16: 0 | N16: 1 | O16: 0 | P16: 0 | Q16: 0 | R16: 0 | S16: 0 | T16: 0 | Z16: 1 | AB16: 1 | AS16: 0 | AT16: 0 | AU16: 1 | AV16: 1 | AW16: 0 | AX16: 0 | AY16: 0 | AZ16: 0
D17: Rear corner right 2040 x 350 mm | E17: frame_bottom_rear_right_2040.stl | F17: 1 | G17: M | I17: 26.93 | J17: 0 | K17: 26.93 | M17: 0 | N17: 1 | O17: 0 | P17: 0 | Q17: 0 | R17: 0 | S17: 0 | T17: 0 | AA17: 1 | AC17: 1 | AS17: 0 | AT17: 0 | AU17: 1 | AV17: 1 | AW17: 0 | AX17: 0 | AY17: 0 | AZ17: 0
D18: Z stepper mount – Nema 17 | E18: frame_bottom_z_stepper.stl | F18: 1 | G18: A | I18: 0 | J18: 9.31 | K18: 9.31 | M18: 0 | N18: 1 | O18: 0 | P18: 0 | Q18: 0 | R18: 0 | S18: 0 | T18: 0 | AI18: 1 | AJ18: 2 | AS18: 1 | AT18: 0 | AU18: 0 | AV18: 0 | AW18: 0 | AX18: 0 | AY18: 0 | AZ18: 2
D19: Z belt idler | E19: frame_bottom_z_idler.stl | F19: 1 | G19: M | I19: 7.57 | J19: 0 | K19: 7.57 | M19: 0 | N19: 1 | O19: 0 | P19: 0 | Q19: 0 | R19: 0 | S19: 0 | T19: 0 | AH19: 1 | AJ19: -1 | AS19: 1 | AT19: 0 | AU19: 0 | AV19: 0 | AW19: 0 | AX19: 0 | AY19: 0 | AZ19: -1
D20: Rear leadscrew support top | E20: frame_bottom_rear_z_upper_1140mm.stl | F20: 1 | G20: M | I20: 15.3 | J20: 0 | K20: 15.3 | M20: 0 | N20: 1 | O20: 0 | P20: 0 | Q20: 0 | R20: 0 | S20: 0 | T20: 0 | AD20: 1 | AE20: -1 | AF20: 0 | AG20: -1 | AS20: 1 | AT20: 0 | AU20: 0 | AV20: 0 | AW20: 0 | AX20: 0 | AY20: 0 | AZ20: 0
D21: Rear leadscrew support top 1040 belt | E21: frame_bottom_rear_z_upper_1040mm.stl | F21: 0 | G21: M | I21: 0 | J21: 0 | K21: 24.4 | M21: 1 | N21: 0 | O21: 0 | P21: 0 | Q21: 0 | R21: 0 | S21: 0 | T21: 0 | AE21: 1 | AG21: 1 | AS21: 0 | AT21: 0 | AU21: 0 | AV21: 0 | AW21: 0 | AX21: 0 | AY21: 0 | AZ21: 0
D22: Rear leadscrew support bottom | E22: frame_bottom_rear_z_lower_dual.stl | F22: 0 | G22: M | I22: 0 | J22: 0 | K22: 15.24 | M22: 1 | N22: 0 | O22: 0 | P22: 0 | Q22: 0 | R22: 0 | S22: 0 | T22: 0 | AD22: 1 | AE22: 0 | AF22: -1 | AG22: -1 | AS22: 1 | AT22: 0 | AU22: 0 | AV22: 0 | AW22: 0 | AX22: 0 | AY22: -1 | AZ22: 0
D23: Rear leadscrew support bottom rod | E23: frame_bottom_rear_z_lower_triple.stl | F23: 1 | G23: M | I23: 22.66 | J23: 0 | K23: 22.66 | M23: 0 | N23: 1 | O23: 0 | P23: 0 | Q23: 0 | R23: 0 | S23: 0 | T23: 0 | AF23: 1 | AG23: 1 | AS23: 0 | AT23: 0 | AU23: 0 | AV23: 0 | AW23: 0 | AX23: 0 | AY23: 1 | AZ23: 0
D24: Ender 3 OG rear spacer left | E24: frame_bottom_E3_fix_left.stl | F24: 0 | G24: M | I24: 0 | J24: 0 | K24: 36.79 | M24: 1 | N24: 0 | O24: 0 | P24: 0 | Q24: 0 | R24: 0 | S24: 0 | T24: 0 | AK24: 1 | AS24: 0 | AT24: 0 | AU24: 0 | AV24: 0 | AW24: 1 | AX24: 0 | AY24: 0 | AZ24: 0
D25: Ender 3 OG rear spacer right | E25: frame_bottom_E3_fix_right.stl | F25: 0 | G25: M | I25: 0 | J25: 0 | K25: 38.42 | M25: 1 | N25: 0 | O25: 0 | P25: 0 | Q25: 0 | R25: 0 | S25: 0 | T25: 0 | AK25: 1 | AS25: 0 | AT25: 0 | AU25: 0 | AV25: 0 | AW25: 1 | AX25: 0 | AY25: 0 | AZ25: 0
D26: 2040 extrusion spacer | E26: frame_optional_2040_spacer_5mm.stl | F26: 0 | G26: A | I26: 0 | J26: 0 | K26: 2.62 | M26: 1 | N26: 0 | O26: 0 | P26: 0 | Q26: 0 | R26: 0 | S26: 0 | T26: 0 | AB26: 2 | AC26: 2 | AS26: 0 | AT26: 0 | AU26: 0 | AV26: 4 | AW26: 0 | AX26: 0 | AY26: 0 | AZ26: 0
D27: 4040 extrusion spacer | E27: frame_optional_4040_spacer_10mm.stl | F27: 0 | G27: A | I27: 0 | J27: 0 | K27: 8.07 | M27: 1 | N27: 0 | O27: 0 | P27: 0 | Q27: 0 | R27: 0 | S27: 0 | T27: 0 | AL27: 2 | AS27: 0 | AT27: 0 | AU27: 0 | AV27: 0 | AW27: 0 | AX27: 2 | AY27: 0 | AZ27: 0
D28: Z leadscrew pulley – 40T | E28: frame_bottom_Z_40T_pulley.stl | F28: 0 | G28: A | I28: 0 | J28: 0 | K28: 5.96 | M28: 1 | N28: 0 | O28: 0 | P28: 0 | Q28: 0 | R28: 0 | S28: 0 | T28: 0 | AS28: 0 | AT28: 0 | AU28: 0 | AV28: 0 | AW28: 0 | AX28: 0 | AY28: 0 | AZ28: 0 | BA28: 3
D29: Z leadscrew aluminium pulley – spacer | E29: frame_bottom_pulley_spacer.stl | F29: 3 | G29: M | I29: 3.66 | J29: 0 | K29: 1.22 | M29: 0 | N29: 3 | O29: 0 | P29: 0 | Q29: 0 | R29: 0 | S29: 0 | T29: 0 | U29: 1 | V29: 1 | AD29: 1 | AE29: 0 | AF29: 0 | AG29: 0 | AS29: 3 | AT29: 0 | AU29: 0 | AV29: 0 | AW29: 0 | AX29: 0 | AY29: 0 | AZ29: 0 | BA29: -3
D30: Bottom corner brace | E30: frame_optional_corner_brace_bottom.stl | F30: 0 | G30: A | I30: 0 | J30: 0 | K30: 18.23 | M30: =IF(F30=0,IF(F30="",0,1),0) -> 1 | N30: =AS$4*AS30+AT$4*AT30+AU$4*AU30+AV$4*AV30+AW$4*AW30+AX$4*AX30+AY$4*AY30+AZ$4*AZ30+BA$4*BA30 -> 0 | O30: =BG$4*BG30+BH$4*BH30+BI$4*BI30+BJ$4*BJ30+BK$4*BK30+BL$4*BL30+BM$4*BM30+BN$4*BN30+BO$4*BO30+BP$4*BP30+BQ$4*BQ30+BR$4*BR30 -> 0 | P30: =BS$4*BS30+BT$4*BT30+BU$4*BU30+BV$4*BV30+BW$4*BW30+BX$4*BX30+BY$4*BY30+BZ$4*BZ30+CA$4*CA30+CB$4*CB30+CC$4*CC30+CD$4*CD30+CE$4*CE30+CF$4*CF30+CG$4*CG30+CH$4*CH30 -> 0 | Q30: =BB$4*BB30+BC$4*BC30+BD$4*BD30 -> 0 | R30: =CI$4*CI30+CJ$4*CJ30+CK$4*CK30+CL$4*CL30+CM$4*CM30+CN$4*CN30+CO$4*CO30+CP$4*CP30+CQ$4*CQ30+CR$4*CR30+CS$4*CS30+CT$4*CT30+CU$4*CU30+CV$4*CV30+CW$4*CW30+CX$4*CX30+CY$4*CY30+CZ$4*CZ30+DA$4*DA30+DB$4*DB30+DC$4*DC30+DD$4*DD30+DE$4*DE30+DF$4*DF30+DG$4*DG30+DH$4*DH30+DI$4*DI30+DJ$4*DJ30+DK$4*DK30+DL$4*DL30+DM$4*DM30+DN$4*DN30+DO$4*DO30+DP$4*DP30+DQ$4*DQ30+DR$4*DR30+DS$4*DS30+DT$4*DT30+DU$4*DU30+DV$4*DV30+DW$4*DW30+DX$4*DX30+DY$4*DY30+DZ$4*DZ30+EA$4*EA30+EB$4*EB30+EC$4*EC30+ED$4*ED30+EE$4*EE30+EF$4*EF30+EG$4*EG30+EH$4*EH30+EI$4*EI30+EJ$4*EJ30+EK$4*EK30+EL$4*EL30+EM$4*EM30+EN$4*EN30+EO$4*EO30+EP$4*EP30+EQ$4*EQ30+ER$4*ER30 -> 0 | S30: =ES$4*ES30+ET$4*ET30+EU$4*EU30+EV$4*EV30+EW$4*EW30+EX$4*EX30+EY$4*EY30+EZ$4*EZ30+FA$4*FA30+FB$4*FB30+FC$4*FC30 -> 0 | T30: =BF$4*BF30 -> 0 | AS30: =U30+V30+W30+AD30+AH30+AI30+AM30+AN30+AO30+AP30+AQ30 -> 0 | AT30: =X30+Y30 -> 0 | AU30: =Z30+AA30 -> 0 | AV30: =AB30+AC30 -> 0 | AW30: =AK30 -> 0 | AX30: =AL30 -> 0 | AY30: =AF30+AR30 -> 0 | AZ30: =AJ30 -> 0 | ES30: 2
D31: 20mm extrusion - drill guide | E31: frame_20_extrusion_drill_guide.stl | F31: 1 | G31: M | I31: 8.23 | J31: 0 | K31: 8.23 | M31: =IF(F31=0,IF(F31="",0,1),0) -> 0 | N31: =AS$4*AS31+AT$4*AT31+AU$4*AU31+AV$4*AV31+AW$4*AW31+AX$4*AX31+AY$4*AY31+AZ$4*AZ31+BA$4*BA31 -> 1 | O31: =BG$4*BG31+BH$4*BH31+BI$4*BI31+BJ$4*BJ31+BK$4*BK31+BL$4*BL31+BM$4*BM31+BN$4*BN31+BO$4*BO31+BP$4*BP31+BQ$4*BQ31+BR$4*BR31 -> 0 | P31: =BS$4*BS31+BT$4*BT31+BU$4*BU31+BV$4*BV31+BW$4*BW31+BX$4*BX31+BY$4*BY31+BZ$4*BZ31+CA$4*CA31+CB$4*CB31+CC$4*CC31+CD$4*CD31+CE$4*CE31+CF$4*CF31+CG$4*CG31+CH$4*CH31 -> 0 | Q31: =BB$4*BB31+BC$4*BC31+BD$4*BD31 -> 0 | R31: =CI$4*CI31+CJ$4*CJ31+CK$4*CK31+CL$4*CL31+CM$4*CM31+CN$4*CN31+CO$4*CO31+CP$4*CP31+CQ$4*CQ31+CR$4*CR31+CS$4*CS31+CT$4*CT31+CU$4*CU31+CV$4*CV31+CW$4*CW31+CX$4*CX31+CY$4*CY31+CZ$4*CZ31+DA$4*DA31+DB$4*DB31+DC$4*DC31+DD$4*DD31+DE$4*DE31+DF$4*DF31+DG$4*DG31+DH$4*DH31+DI$4*DI31+DJ$4*DJ31+DK$4*DK31+DL$4*DL31+DM$4*DM31+DN$4*DN31+DO$4*DO31+DP$4*DP31+DQ$4*DQ31+DR$4*DR31+DS$4*DS31+DT$4*DT31+DU$4*DU31+DV$4*DV31+DW$4*DW31+DX$4*DX31+DY$4*DY31+DZ$4*DZ31+EA$4*EA31+EB$4*EB31+EC$4*EC31+ED$4*ED31+EE$4*EE31+EF$4*EF31+EG$4*EG31+EH$4*EH31+EI$4*EI31+EJ$4*EJ31+EK$4*EK31+EL$4*EL31+EM$4*EM31+EN$4*EN31+EO$4*EO31+EP$4*EP31+EQ$4*EQ31+ER$4*ER31 -> 0 | S31: =ES$4*ES31+ET$4*ET31+EU$4*EU31+EV$4*EV31+EW$4*EW31+EX$4*EX31+EY$4*EY31+EZ$4*EZ31+FA$4*FA31+FB$4*FB31+FC$4*FC31 -> 0 | T31: =BF$4*BF31 -> 0 | Z31: 1 | AB31: 1 | AS31: =U31+V31+W31+AD31+AH31+AI31+AM31+AN31+AO31+AP31+AQ31 -> 0 | AT31: =X31+Y31 -> 0 | AU31: =Z31+AA31 -> 1 | AV31: =AB31+AC31 -> 1 | AW31: =AK31 -> 0 | AX31: =AL31 -> 0 | AY31: =AF31+AR31 -> 0 | AZ31: =AJ31 -> 0
D32: 40mm extrusion - drill guide | E32: frame_40_extrusion_drill_guide.stl | F32: 1 | G32: M | I32: 5.97 | J32: 0 | K32: 5.97 | M32: 0 | N32: 1 | O32: 0 | P32: 0 | Q32: 0 | R32: 0 | S32: 0 | T32: 0 | Z32: 1 | AB32: 1 | AS32: 0 | AT32: 0 | AU32: 1 | AV32: 1 | AW32: 0 | AX32: 0 | AY32: 0 | AZ32: 0 | ES32: 2
C33: FRAME – TOP | I33: =SUM(I34:I45) -> 149.13 | J33: =SUM(J34:J45) -> 68.34 | M33: =M34*M35*M36*M37*M38*M39*M40*M41*M42*M43*M44*M45 -> 0 | N33: 0 | O33: 0 | P33: 0 | Q33: 0 | R33: 0 | S33: 0 | T33: 0 | AS33: 0 | AT33: 0 | AU33: 0 | AV33: 0 | AW33: 0 | AX33: 0 | AY33: 0 | AZ33: 0 | FF33: =C33 -> FRAME – TOP
D34: Front corner left | E34: frame_top_front_left_body.stl | F34: =SUM(N34:T34) -> 1 | G34: M | I34: =IF($G34="M",$K34*$F34,0) -> 38.86 | J34: =IF($G34="A",$K34*$F34,0) -> 0 | K34: 38.86 | M34: =IF(F34=0,IF(F34="",0,1),0) -> 0 | N34: 1 | O34: 0 | P34: 0 | Q34: 0 | R34: 0 | S34: 0 | T34: 0 | AN34: 1 | AS34: =U34+V34+W34+AD34+AH34+AI34+AM34+AN34+AO34+AP34+AQ34 -> 1 | AT34: =X34+Y34 -> 0 | AU34: =Z34+AA34 -> 0 | AV34: =AB34+AC34 -> 0 | AW34: =AK34 -> 0 | AX34: =AL34 -> 0 | AY34: =AF34+AR34 -> 0 | AZ34: =AJ34 -> 0
D35: Front corner left – tensioner | E35: frame_top_front_left_tensioner.stl | F35: 1 | G35: A | I35: 0 | J35: 6.49 | K35: 6.49 | M35: 0 | N35: 1 | O35: 0 | P35: 0 | Q35: 0 | R35: 0 | S35: 0 | T35: 0 | AN35: 1 | AS35: 1 | AT35: 0 | AU35: 0 | AV35: 0 | AW35: 0 | AX35: 0 | AY35: 0 | AZ35: 0
D36: Front corner right | E36: frame_top_front_right_body.stl | F36: 1 | G36: M | I36: 44.18 | J36: 0 | K36: 44.18 | M36: 0 | N36: 1 | O36: 0 | P36: 0 | Q36: 0 | R36: 0 | S36: 0 | T36: 0 | AM36: 1 | AS36: 1 | AT36: 0 | AU36: 0 | AV36: 0 | AW36: 0 | AX36: 0 | AY36: 0 | AZ36: 0
D37: Front corner right – tensioner | E37: frame_top_front_right_tensioner.stl | F37: 1 | G37: A | I37: 0 | J37: 6.5 | K37: 6.5 | M37: 0 | N37: 1 | O37: 0 | P37: 0 | Q37: 0 | R37: 0 | S37: 0 | T37: 0 | AM37: 1 | AS37: 1 | AT37: 0 | AU37: 0 | AV37: 0 | AW37: 0 | AX37: 0 | AY37: 0 | AZ37: 0
D38: Rear corner left top | E38: frame_top_rear_B_left_top.stl | F38: 1 | G38: M | I38: 23.41 | J38: 0 | K38: 23.41 | M38: 0 | N38: 1 | O38: 0 | P38: 0 | Q38: 0 | R38: 0 | S38: 0 | T38: 0 | AP38: 1 | AS38: 1 | AT38: 0 | AU38: 0 | AV38: 0 | AW38: 0 | AX38: 0 | AY38: 0 | AZ38: 0
D39: Rear corner left middle | E39: frame_top_rear_B_left_middle.stl | F39: 1 | G39: A | I39: 0 | J39: 25.54 | K39: 25.54 | M39: 0 | N39: 1 | O39: 0 | P39: 0 | Q39: 0 | R39: 0 | S39: 0 | T39: 0 | AP39: 1 | AS39: 1 | AT39: 0 | AU39: 0 | AV39: 0 | AW39: 0 | AX39: 0 | AY39: 0 | AZ39: 0
D40: Rear corner left bottom | E40: frame_top_rear_B_left_bottom.stl | F40: 1 | G40: A | I40: 0 | J40: 6.68 | K40: 6.68 | M40: 0 | N40: 1 | O40: 0 | P40: 0 | Q40: 0 | R40: 0 | S40: 0 | T40: 0 | AP40: 1 | AS40: 1 | AT40: 0 | AU40: 0 | AV40: 0 | AW40: 0 | AX40: 0 | AY40: 0 | AZ40: 0
D41: Rear corner right top | E41: frame_top_rear_A_right_top.stl | F41: 1 | G41: M | I41: 5.63 | J41: 0 | K41: 5.63 | M41: 0 | N41: 1 | O41: 0 | P41: 0 | Q41: 0 | R41: 0 | S41: 0 | T41: 0 | AO41: 1 | AS41: 1 | AT41: 0 | AU41: 0 | AV41: 0 | AW41: 0 | AX41: 0 | AY41: 0 | AZ41: 0
D42: Rear corner right middle | E42: frame_top_rear_A_right_middle.stl | F42: 1 | G42: M | I42: 37.05 | J42: 0 | K42: 37.05 | M42: 0 | N42: 1 | O42: 0 | P42: 0 | Q42: 0 | R42: 0 | S42: 0 | T42: 0 | AO42: 1 | AS42: 1 | AT42: 0 | AU42: 0 | AV42: 0 | AW42: 0 | AX42: 0 | AY42: 0 | AZ42: 0
D43: Rear corner right bottom | E43: frame_top_rear_A_right_bottom.stl | F43: 1 | G43: A | I43: 0 | J43: 23.13 | K43: 23.13 | M43: 0 | N43: 1 | O43: 0 | P43: 0 | Q43: 0 | R43: 0 | S43: 0 | T43: 0 | AO43: 1 | AS43: 1 | AT43: 0 | AU43: 0 | AV43: 0 | AW43: 0 | AX43: 0 | AY43: 0 | AZ43: 0
D44: Stock stepper 5mm spacer | E44: frame_optional_stepper_spacer_5mm.stl | F44: 0 | G44: A | I44: 0 | J44: 0 | K44: 4.71 | M44: 1 | N44: 0 | O44: 0 | P44: 0 | Q44: 0 | R44: 0 | S44: 0 | T44: 0 | AS44: 0 | AT44: 0 | AU44: 0 | AV44: 0 | AW44: 0 | AX44: 0 | AY44: 0 | AZ44: 0
D45: Top corner brace | E45: frame_optional_corner_brace_top.stl | F45: 0 | G45: M | I45: 0 | J45: 0 | K45: 14.35 | M45: 1 | N45: 0 | O45: 0 | P45: 0 | Q45: 0 | R45: 0 | S45: 0 | T45: 0 | AS45: 0 | AT45: 0 | AU45: 0 | AV45: 0 | AW45: 0 | AX45: 0 | AY45: 0 | AZ45: 0 | ES45: 2
C46: BED ASSEMBLY | I46: =SUM(I47:I71) -> 22.21 | J46: =SUM(J47:J71) -> 119.64 | M46: =M47*M48*M49*M50*M51*M52*M53*M54*M55*M56*M57*M58*M59*M60*M61*M62*M63*M64*M65*M66*M67*M68*M69*M70*M71 -> 0 | N46: 0 | O46: 0 | P46: 0 | Q46: 0 | R46: 0 | S46: 0 | T46: 0 | AS46: 0 | AT46: 0 | AU46: 0 | AV46: 0 | AW46: 0 | AX46: 0 | AY46: 0 | AZ46: 0 | FF46: =C46 -> BED ASSEMBLY
D47: Left arm | E47: bed_arm_left_solid.stl | F47: =SUM(N47:T47) -> 0 | G47: A | I47: =IF($G47="M",$K47*$F47,0) -> 0 | J47: =IF($G47="A",$K47*$F47,0) -> 0 | K47: 40.13 | M47: =IF(F47=0,IF(F47="",0,1),0) -> 1 | N47: 0 | O47: 0 | P47: 0 | Q47: 0 | R47: 0 | S47: 0 | T47: 0 | AS47: =U47+V47+W47+AD47+AH47+AI47+AM47+AN47+AO47+AP47+AQ47 -> 0 | AT47: =X47+Y47 -> 0 | AU47: =Z47+AA47 -> 0 | AV47: =AB47+AC47 -> 0 | AW47: =AK47 -> 0 | AX47: =AL47 -> 0 | AY47: =AF47+AR47 -> 0 | AZ47: =AJ47 -> 0 | BK47: 1
D48: Right arm | E48: bed_arm_right_solid.stl | F48: 0 | G48: A | I48: 0 | J48: 0 | K48: 40.05 | M48: 1 | N48: 0 | O48: 0 | P48: 0 | Q48: 0 | R48: 0 | S48: 0 | T48: 0 | AS48: 0 | AT48: 0 | AU48: 0 | AV48: 0 | AW48: 0 | AX48: 0 | AY48: 0 | AZ48: 0 | BK48: 1
D49: Rear arm | E49: bed_arm_rear_solid.stl | F49: 0 | G49: A | I49: 0 | J49: 0 | K49: 36 | M49: 1 | N49: 0 | O49: 0 | P49: 0 | Q49: 0 | R49: 0 | S49: 0 | T49: 0 | AS49: 0 | AT49: 0 | AU49: 0 | AV49: 0 | AW49: 0 | AX49: 0 | AY49: 0 | AZ49: 0 | BK49: 1 | BO49: =-1*BK4 -> 0
D50: Rear arm 3 rods | E50: bed_arm_rear_solid_triple.stl | F50: 0 | G50: A | I50: 0 | J50: 0 | K50: 39.31 | M50: 1 | N50: 0 | O50: 0 | P50: 0 | Q50: 0 | R50: 0 | S50: 0 | T50: 0 | AS50: 0 | AT50: 0 | AU50: 0 | AV50: 0 | AW50: 0 | AX50: 0 | AY50: 0 | AZ50: 0 | BO50: =1*BK4 -> 0
D51: Left arm – flexi | E51: bed_arm_left_flexi.stl | F51: 1 | G51: A | I51: 0 | J51: 37.98 | K51: 37.98 | M51: 0 | N51: 0 | O51: 1 | P51: 0 | Q51: 0 | R51: 0 | S51: 0 | T51: 0 | AS51: 0 | AT51: 0 | AU51: 0 | AV51: 0 | AW51: 0 | AX51: 0 | AY51: 0 | AZ51: 0 | BI51: 1
D52: Right arm – flexi | E52: bed_arm_right_flexi.stl | F52: 1 | G52: A | I52: 0 | J52: 37.87 | K52: 37.87 | M52: 0 | N52: 0 | O52: 1 | P52: 0 | Q52: 0 | R52: 0 | S52: 0 | T52: 0 | AS52: 0 | AT52: 0 | AU52: 0 | AV52: 0 | AW52: 0 | AX52: 0 | AY52: 0 | AZ52: 0 | BI52: 1
D53: Rear arm – flexi | E53: bed_arm_rear_flexi.stl | F53: 0 | G53: A | I53: 0 | J53: 0 | K53: 33.67 | M53: 1 | N53: 0 | O53: 0 | P53: 0 | Q53: 0 | R53: 0 | S53: 0 | T53: 0 | AS53: 0 | AT53: 0 | AU53: 0 | AV53: 0 | AW53: 0 | AX53: 0 | AY53: 0 | AZ53: 0 | BI53: 1 | BO53: =-1*BI4 -> -1
D54: Rear arm 3 rods – flexi | E54: bed_arm_rear_flexi_triple.stl | F54: 1 | G54: A | I54: 0 | J54: 36.83 | K54: 36.83 | M54: 0 | N54: 0 | O54: 1 | P54: 0 | Q54: 0 | R54: 0 | S54: 0 | T54: 0 | AS54: 0 | AT54: 0 | AU54: 0 | AV54: 0 | AW54: 0 | AX54: 0 | AY54: 0 | AZ54: 0 | BO54: =1*BI4 -> 1
D55: Arm flexi insert – front | E55: bed_arm_insert_flexi_front.stl | F55: 2 | G55: M | I55: 10.6 | J55: 0 | K55: 5.3 | M55: 0 | N55: 0 | O55: 2 | P55: 0 | Q55: 0 | R55: 0 | S55: 0 | T55: 0 | AS55: 0 | AT55: 0 | AU55: 0 | AV55: 0 | AW55: 0 | AX55: 0 | AY55: 0 | AZ55: 0 | BI55: 2
D56: Arm flexi insert – rear | E56: bed_arm_insert_flexi_rear.stl | F56: 1 | G56: M | I56: 4.87 | J56: 0 | K56: 4.87 | M56: 0 | N56: 0 | O56: 1 | P56: 0 | Q56: 0 | R56: 0 | S56: 0 | T56: 0 | AS56: 0 | AT56: 0 | AU56: 0 | AV56: 0 | AW56: 0 | AX56: 0 | AY56: 0 | AZ56: 0 | BI56: 1
D57: Left arm – WobbleX | E57: bed_arm_left_wobblex.stl | F57: 0 | G57: A | I57: 0 | J57: 0 | K57: 40.09 | M57: 1 | N57: 0 | O57: 0 | P57: 0 | Q57: 0 | R57: 0 | S57: 0 | T57: 0 | AS57: 0 | AT57: 0 | AU57: 0 | AV57: 0 | AW57: 0 | AX57: 0 | AY57: 0 | AZ57: 0 | BJ57: 1
D58: Right arm – WobbleX | E58: bed_arm_right_wobblex.stl | F58: 0 | G58: A | I58: 0 | J58: 0 | K58: 40 | M58: 1 | N58: 0 | O58: 0 | P58: 0 | Q58: 0 | R58: 0 | S58: 0 | T58: 0 | AS58: 0 | AT58: 0 | AU58: 0 | AV58: 0 | AW58: 0 | AX58: 0 | AY58: 0 | AZ58: 0 | BJ58: 1
D59: Rear arm – WobbleX | E59: bed_arm_rear_wobblex.stl | F59: 0 | G59: A | I59: 0 | J59: 0 | K59: 35.94 | M59: 1 | N59: 0 | O59: 0 | P59: 0 | Q59: 0 | R59: 0 | S59: 0 | T59: 0 | AS59: 0 | AT59: 0 | AU59: 0 | AV59: 0 | AW59: 0 | AX59: 0 | AY59: 0 | AZ59: 0 | BJ59: 1 | BO59: =-1*BJ4 -> 0
D60: Rear arm 3 rods – WobbleX | E60: bed_arm_rear_wobblex_triple.stl | F60: 0 | G60: A | I60: 0 | J60: 0 | K60: 39.3 | M60: 1 | N60: 0 | O60: 0 | P60: 0 | Q60: 0 | R60: 0 | S60: 0 | T60: 0 | AS60: 0 | AT60: 0 | AU60: 0 | AV60: 0 | AW60: 0 | AX60: 0 | AY60: 0 | AZ60: 0 | BO60: =1*BJ4 -> 0
D61: Front arms screw cover | E61: bed_arm_cover.stl | F61: 2 | G61: A | I61: 0 | J61: 1.54 | K61: 0.77 | M61: 0 | N61: 0 | O61: 2 | P61: 0 | Q61: 0 | R61: 0 | S61: 0 | T61: 0 | AS61: 0 | AT61: 0 | AU61: 0 | AV61: 0 | AW61: 0 | AX61: 0 | AY61: 0 | AZ61: 0 | BI61: 2 | BJ61: 2 | BK61: 2
D62: Printed bed carriage | E62: bed_carriage_printed.stl | F62: 0 | G62: M | I62: 0 | J62: 0 | K62: 122.99 | M62: 1 | N62: 0 | O62: 0 | P62: 0 | Q62: 0 | R62: 0 | S62: 0 | T62: 0 | AS62: 0 | AT62: 0 | AU62: 0 | AV62: 0 | AW62: 0 | AX62: 0 | AY62: 0 | AZ62: 0 | BM62: 1
D63: Cable strain relief | E63: bed_cable_strain_relief.stl | F63: 1 | G63: A | I63: 0 | J63: 5.42 | K63: 5.42 | M63: 0 | N63: 0 | O63: 1 | P63: 0 | Q63: 0 | R63: 0 | S63: 0 | T63: 0 | AS63: 0 | AT63: 0 | AU63: 0 | AV63: 0 | AW63: 0 | AX63: 0 | AY63: 0 | AZ63: 0 | BI63: 1 | BJ63: 1 | BK63: 1 | BM63: -1
D64: 6015 air blower | E64: bed_fan_6015_01.stl | F64: 0 | G64: A | I64: 0 | J64: 0 | K64: 40.47 | M64: 1 | N64: 0 | O64: 0 | P64: 0 | Q64: 0 | R64: 0 | S64: 0 | T64: 0 | AS64: 0 | AT64: 0 | AU64: 0 | AV64: 0 | AW64: 0 | AX64: 0 | AY64: 0 | AZ64: 0 | BL64: 1
D65: 6015 air blower screw spacer | E65: bed_fan_6015_02.stl | F65: 0 | G65: A | I65: 0 | J65: 0 | K65: 0.3 | M65: 1 | N65: 0 | O65: 0 | P65: 0 | Q65: 0 | R65: 0 | S65: 0 | T65: 0 | AS65: 0 | AT65: 0 | AU65: 0 | AV65: 0 | AW65: 0 | AX65: 0 | AY65: 0 | AZ65: 0 | BL65: 2
D66: 6015 air blower screw spacer | E66: bed_fan_6015_03.stl | F66: 0 | G66: A | I66: 0 | J66: 0 | K66: 0.23 | M66: 1 | N66: 0 | O66: 0 | P66: 0 | Q66: 0 | R66: 0 | S66: 0 | T66: 0 | AS66: 0 | AT66: 0 | AU66: 0 | AV66: 0 | AW66: 0 | AX66: 0 | AY66: 0 | AZ66: 0 | BL66: 1
D67: Wago mount DC | E67: bed_wago221_DC.stl | F67: 0 | G67: A | I67: 0 | J67: 0 | K67: 5.23 | M67: 1 | N67: 0 | O67: 0 | P67: 0 | Q67: 0 | R67: 0 | S67: 0 | T67: 0 | AS67: 0 | AT67: 0 | AU67: 0 | AV67: 0 | AW67: 0 | AX67: 0 | AY67: 0 | AZ67: 0 | BP67: 1
D68: Wago mount AC | E68: bed_wago221_AC.stl | F68: 0 | G68: A | I68: 0 | J68: 0 | K68: 6.16 | M68: 1 | N68: 0 | O68: 0 | P68: 0 | Q68: 0 | R68: 0 | S68: 0 | T68: 0 | AS68: 0 | AT68: 0 | AU68: 0 | AV68: 0 | AW68: 0 | AX68: 0 | AY68: 0 | AZ68: 0 | BQ68: 1
D69: Left arm – drill guide | E69: bed_carriage_stock_drill_left.stl | F69: 1 | G69: M | I69: 1.63 | J69: 0 | K69: 1.63 | M69: 0 | N69: 0 | O69: 1 | P69: 0 | Q69: 0 | R69: 0 | S69: 0 | T69: 0 | AS69: 0 | AT69: 0 | AU69: 0 | AV69: 0 | AW69: 0 | AX69: 0 | AY69: 0 | AZ69: 0 | BI69: 1 | BJ69: 1 | BK69: 1 | BM69: -1
D70: Right arm – drill guide | E70: bed_carriage_stock_drill_right.stl | F70: 1 | G70: M | I70: 1.63 | J70: 0 | K70: 1.63 | M70: 0 | N70: =AS$4*AS70+AT$4*AT70+AU$4*AU70+AV$4*AV70+AW$4*AW70+AX$4*AX70+AY$4*AY70+AZ$4*AZ70+BA$4*BA70 -> 0 | O70: =BG$4*BG70+BH$4*BH70+BI$4*BI70+BJ$4*BJ70+BK$4*BK70+BL$4*BL70+BM$4*BM70+BN$4*BN70+BO$4*BO70+BP$4*BP70+BQ$4*BQ70+BR$4*BR70 -> 1 | P70: =BS$4*BS70+BT$4*BT70+BU$4*BU70+BV$4*BV70+BW$4*BW70+BX$4*BX70+BY$4*BY70+BZ$4*BZ70+CA$4*CA70+CB$4*CB70+CC$4*CC70+CD$4*CD70+CE$4*CE70+CF$4*CF70+CG$4*CG70+CH$4*CH70 -> 0 | Q70: =BB$4*BB70+BC$4*BC70+BD$4*BD70 -> 0 | R70: 0 | S70: =ES$4*ES70+ET$4*ET70+EU$4*EU70+EV$4*EV70+EW$4*EW70+EX$4*EX70+EY$4*EY70+EZ$4*EZ70+FA$4*FA70+FB$4*FB70+FC$4*FC70 -> 0 | T70: =BF$4*BF70 -> 0 | AS70: 0 | AT70: 0 | AU70: 0 | AV70: 0 | AW70: 0 | AX70: 0 | AY70: 0 | AZ70: 0 | BI70: 1 | BJ70: 1 | BK70: 1 | BM70: -1
D71: Rear arm – drill guide | E71: bed_carriage_stock_drill_rear.stl | F71: 1 | G71: M | I71: 3.48 | J71: 0 | K71: 3.48 | M71: 0 | N71: 0 | O71: 1 | P71: 0 | Q71: 0 | R71: 0 | S71: 0 | T71: 0 | AS71: 0 | AT71: 0 | AU71: 0 | AV71: 0 | AW71: 0 | AX71: 0 | AY71: 0 | AZ71: 0 | BI71: 1 | BJ71: 1 | BK71: 1 | BM71: -1
C72: XY MOTION | I72: =SUM(I73:I76) -> 1.04 | J72: =SUM(J73:J76) -> 46.65 | M72: =M73*M74*M75*M76 -> 0 | N72: 0 | O72: 0 | P72: 0 | Q72: 0 | R72: 0 | S72: 0 | T72: 0 | AS72: 0 | AT72: 0 | AU72: 0 | AV72: 0 | AW72: 0 | AX72: 0 | AY72: 0 | AZ72: 0 | FF72: =C72 -> XY MOTION
D73: Y gantry left | E73: y_gantry_left.stl | F73: =SUM(N73:T73) -> 1 | G73: A | I73: =IF($G73="M",$K73*$F73,0) -> 0 | J73: =IF($G73="A",$K73*$F73,0) -> 17.79 | K73: 17.79 | M73: =IF(F73=0,IF(F73="",0,1),0) -> 0 | N73: 0 | O73: 0 | P73: 0 | Q73: 1 | R73: 0 | S73: 0 | T73: 0 | AS73: =U73+V73+W73+AD73+AH73+AI73+AM73+AN73+AO73+AP73+AQ73 -> 0 | AT73: =X73+Y73 -> 0 | AU73: =Z73+AA73 -> 0 | AV73: =AB73+AC73 -> 0 | AW73: =AK73 -> 0 | AX73: 0 | AY73: =AF73+AR73 -> 0 | AZ73: =AJ73 -> 0 | BB73: 1
D74: Y gantry right | E74: y_gantry_right.stl | F74: =SUM(N74:T74) -> 1 | G74: A | I74: =IF($G74="M",$K74*$F74,0) -> 0 | J74: =IF($G74="A",$K74*$F74,0) -> 17.47 | K74: 17.47 | M74: =IF(F74=0,IF(F74="",0,1),0) -> 0 | N74: 0 | O74: 0 | P74: 0 | Q74: 1 | R74: 0 | S74: 0 | T74: 0 | AS74: =U74+V74+W74+AD74+AH74+AI74+AM74+AN74+AO74+AP74+AQ74 -> 0 | AT74: =X74+Y74 -> 0 | AU74: =Z74+AA74 -> 0 | AV74: =AB74+AC74 -> 0 | AW74: 0 | AX74: 0 | AY74: =AF74+AR74 -> 0 | AZ74: =AJ74 -> 0 | BC74: 1
D75: Toolhead base | E75: toolhead_base.stl | F75: =SUM(N75:T75) -> 1 | G75: A | I75: =IF($G75="M",$K75*$F75,0) -> 0 | J75: =IF($G75="A",$K75*$F75,0) -> 11.39 | K75: 11.39 | M75: =IF(F75=0,IF(F75="",0,1),0) -> 0 | N75: 0 | O75: 0 | P75: 0 | Q75: 1 | R75: 0 | S75: 0 | T75: 0 | AS75: =U75+V75+W75+AD75+AH75+AI75+AM75+AN75+AO75+AP75+AQ75 -> 0 | AT75: =X75+Y75 -> 0 | AU75: =Z75+AA75 -> 0 | AV75: =AB75+AC75 -> 0 | AW75: 0 | AX75: 0 | AY75: =AF75+AR75 -> 0 | AZ75: =AJ75 -> 0 | BD75: 1
D76: Toolhead belt lock | E76: toolhead_base_belt_lock.stl | F76: =SUM(N76:T76) -> 4 | G76: M | I76: =IF($G76="M",$K76*$F76,0) -> 1.04 | J76: =IF($G76="A",$K76*$F76,0) -> 0 | K76: 0.26 | M76: =IF(F76=0,IF(F76="",0,1),0) -> 0 | N76: 0 | O76: 0 | P76: 0 | Q76: 4 | R76: =CI$4*CI76+CJ$4*CJ76+CK$4*CK76+CL$4*CL76+CM$4*CM76+CN$4*CN76+CO$4*CO76+CP$4*CP76+CQ$4*CQ76+CR$4*CR76+CS$4*CS76+CT$4*CT76+CU$4*CU76+CV$4*CV76+CW$4*CW76+CX$4*CX76+CY$4*CY76+CZ$4*CZ76+DA$4*DA76+DB$4*DB76+DC$4*DC76+DD$4*DD76+DE$4*DE76+DF$4*DF76+DG$4*DG76+DH$4*DH76+DI$4*DI76+DJ$4*DJ76+DK$4*DK76+DL$4*DL76+DM$4*DM76+DN$4*DN76+DO$4*DO76+DP$4*DP76+DQ$4*DQ76+DR$4*DR76+DS$4*DS76+DT$4*DT76+DU$4*DU76+DV$4*DV76+DW$4*DW76+DX$4*DX76+DY$4*DY76+DZ$4*DZ76+EA$4*EA76+EB$4*EB76+EC$4*EC76+ED$4*ED76+EE$4*EE76+EF$4*EF76+EG$4*EG76+EH$4*EH76+EI$4*EI76+EJ$4*EJ76+EK$4*EK76+EL$4*EL76+EM$4*EM76+EN$4*EN76+EO$4*EO76+EP$4*EP76+EQ$4*EQ76+ER$4*ER76 -> 0 | S76: 0 | T76: 0 | AS76: =U76+V76+W76+AD76+AH76+AI76+AM76+AN76+AO76+AP76+AQ76 -> 0 | AT76: =X76+Y76 -> 0 | AU76: =Z76+AA76 -> 0 | AV76: =AB76+AC76 -> 0 | AW76: 0 | AX76: 0 | AY76: =AF76+AR76 -> 0 | AZ76: =AJ76 -> 0 | BD76: 4
C77: TOOLHEAD | I77: =SUM(I78:I156) -> 3.22 | J77: =SUM(J78:J156) -> 42.43 | M77: =M78*M97*M123*M137*M153 -> 0 | N77: 0 | O77: 0 | P77: 0 | Q77: 0 | R77: 0 | S77: 0 | T77: 0 | AS77: =U77+V77+W77+AD77+AH77+AI77+AM77+AN77+AO77+AP77+AQ77 -> 0 | AT77: =X77+Y77 -> 0 | AU77: =Z77+AA77 -> 0 | AV77: =AB77+AC77 -> 0 | AW77: 0 | AX77: 0 | AY77: =AF77+AR77 -> 0 | AZ77: =AJ77 -> 0 | FF77: =C77 -> TOOLHEAD
C78: HOTEND | I78: =IF($G78="M",$K78*$F78,0) -> 0 | J78: =IF($G78="A",$K78*$F78,0) -> 0 | M78: =M79*M80*M81*M82*M83*M84*M85*M86*M87*M88*M89*M90*M91*M92*M94*M95*M96 -> 0 | N78: 0 | O78: 0 | P78: 0 | Q78: 0 | R78: 0 | S78: 0 | T78: 0 | AS78: 0 | AT78: 0 | AU78: 0 | AV78: 0 | AW78: 0 | AX78: 0 | AY78: 0 | AZ78: 0 | FF78: =C78 -> HOTEND
D79: Bambu Lab | E79: toolhead_hotend_bambulab.stl | F79: =SUM(N79:T79) -> 0 | G79: A | I79: 0 | J79: 0 | K79: 8.32 | M79: =IF(F79=0,IF(F79="",0,1),0) -> 1 | N79: 0 | O79: 0 | P79: 0 | Q79: 0 | R79: 0 | S79: 0 | T79: 0 | AS79: =U79+V79+W79+AD79+AH79+AI79+AM79+AN79+AO79+AP79+AQ79 -> 0 | AT79: =X79+Y79 -> 0 | AU79: =Z79+AA79 -> 0 | AV79: =AB79+AC79 -> 0 | AW79: =AK79 -> 0 | AX79: =AL79 -> 0 | AY79: =AF79+AR79 -> 0 | AZ79: =AJ79 -> 0 | CI79: 1
D80: Phaetus Dragonfly BMS | E80: toolhead_hotend_dragonfly.stl | F80: 0 | G80: A | I80: 0 | J80: 0 | K80: 8.12 | M80: 1 | N80: 0 | O80: 0 | P80: 0 | Q80: 0 | R80: 0 | S80: 0 | T80: 0 | AS80: 0 | AT80: 0 | AU80: 0 | AV80: 0 | AW80: 0 | AX80: 0 | AY80: 0 | AZ80: 0 | CU80: 1
D81: Creality MK8 / CR10 | E81: toolhead_hotend_MK8.stl | F81: 0 | G81: A | I81: 0 | J81: 0 | K81: 9.3 | M81: 1 | N81: 0 | O81: 0 | P81: 0 | Q81: 0 | R81: 0 | S81: 0 | T81: 0 | AS81: 0 | AT81: 0 | AU81: 0 | AV81: 0 | AW81: 0 | AX81: 0 | AY81: 0 | AZ81: 0 | CJ81: 1
D82: Phaetus Dragon 1 | E82: toolhead_hotend_dragon_1.stl | F82: 0 | G82: A | I82: 0 | J82: 0 | K82: 9.49 | M82: 1 | N82: 0 | O82: 0 | P82: 0 | Q82: 0 | R82: 0 | S82: 0 | T82: 0 | AS82: 0 | AT82: 0 | AU82: 0 | AV82: 0 | AW82: 0 | AX82: 0 | AY82: 0 | AZ82: 0 | CM82: 1 | CV82: 1
D83: Creality Spider V3 | E83: toolhead_hotend_spiderV3.stl | F83: 0 | G83: A | I83: 0 | J83: 0 | K83: 7.21 | M83: 1 | N83: 0 | O83: 0 | P83: 0 | Q83: 0 | R83: 0 | S83: 0 | T83: 0 | AS83: 0 | AT83: 0 | AU83: 0 | AV83: 0 | AW83: 0 | AX83: 0 | AY83: 0 | AZ83: 0 | CK83: 1
D84: E3D V6 | E84: toolhead_hotend_E3D_V6_a.stl | F84: 0 | G84: A | I84: 0 | J84: 0 | K84: 7.65 | M84: 1 | N84: 0 | O84: 0 | P84: 0 | Q84: 0 | R84: 0 | S84: 0 | T84: 0 | AS84: 0 | AT84: 0 | AU84: 0 | AV84: 0 | AW84: 0 | AX84: 0 | AY84: 0 | AZ84: 0 | CO84: 1 | CQ84: 1
E85: toolhead_hotend_E3D_V6_b.stl | F85: 0 | G85: A | I85: 0 | J85: 0 | K85: 0.75 | M85: 1 | N85: 0 | O85: 0 | P85: 0 | Q85: 0 | R85: 0 | S85: 0 | T85: 0 | AS85: 0 | AT85: 0 | AU85: 0 | AV85: 0 | AW85: 0 | AX85: 0 | AY85: 0 | AZ85: 0 | CO85: 1 | CQ85: 1
D86: Creality Spider V3 + Volcano | E86: toolhead_hotend_spiderV3.stl | F86: 0 | G86: A | I86: 0 | J86: 0 | K86: 8.18 | M86: 1 | N86: 0 | O86: 0 | P86: 0 | Q86: 0 | R86: 0 | S86: 0 | T86: 0 | AS86: 0 | AT86: 0 | AU86: 0 | AV86: 0 | AW86: 0 | AX86: 0 | AY86: 0 | AZ86: 0 | CL86: 1
D87: Trianglelabs Dragon ACE | E87: toolhead_hotend_dragon_ace_HF.stl | F87: 0 | G87: A | I87: 0 | J87: 0 | K87: 10.05 | M87: 1 | N87: 0 | O87: 0 | P87: 0 | Q87: 0 | R87: 0 | S87: 0 | T87: 0 | AS87: 0 | AT87: 0 | AU87: 0 | AV87: 0 | AW87: 0 | AX87: 0 | AY87: 0 | AZ87: 0 | DB87: 1
D88: Phaetus Dragon HF | E88: toolhead_hotend_dragon_2_HF.stl | F88: 0 | G88: A | I88: 0 | J88: 0 | K88: 9.39 | M88: 1 | N88: 0 | O88: 0 | P88: 0 | Q88: 0 | R88: 0 | S88: 0 | T88: 0 | AS88: 0 | AT88: 0 | AU88: 0 | AV88: 0 | AW88: 0 | AX88: 0 | AY88: 0 | AZ88: 0 | CN88: 1 | CW88: 1
D89: Phaetus Rapido HF | E89: toolhead_hotend_rapido_HF.stl | F89: 0 | G89: A | I89: 0 | J89: 0 | K89: 9.11 | M89: 1 | N89: 0 | O89: 0 | P89: 0 | Q89: 0 | R89: 0 | S89: 0 | T89: 0 | AS89: 0 | AT89: 0 | AU89: 0 | AV89: 0 | AW89: 0 | AX89: 0 | AY89: 0 | AZ89: 0 | CY89: 1
D90: E3D V6 Volcano | E90: toolhead_hotend_E3D_V6_a.stl | F90: 0 | G90: A | I90: 0 | J90: 0 | K90: 7.91 | M90: 1 | N90: 0 | O90: 0 | P90: 0 | Q90: 0 | R90: 0 | S90: 0 | T90: 0 | AS90: 0 | AT90: 0 | AU90: 0 | AV90: 0 | AW90: 0 | AX90: 0 | AY90: 0 | AZ90: 0 | CP90: 1 | CR90: 1
E91: toolhead_hotend_E3D_V6_b.stl | F91: 0 | G91: A | I91: 0 | J91: 0 | K91: 0.77 | M91: 1 | N91: 0 | O91: 0 | P91: 0 | Q91: 0 | R91: 0 | S91: 0 | T91: 0 | AS91: 0 | AT91: 0 | AU91: 0 | AV91: 0 | AW91: 0 | AX91: 0 | AY91: 0 | AZ91: 0 | CP91: 1 | CR91: 1
D92: Trianglelabs Dragon ACE+ | E92: toolhead_hotend_dragon_ace_UHF.stl | F92: 0 | G92: A | I92: 0 | J92: 0 | K92: 9.71 | M92: 1 | N92: 0 | O92: 0 | P92: 0 | Q92: 0 | R92: 0 | S92: 0 | T92: 0 | AS92: 0 | AT92: 0 | AU92: 0 | AV92: 0 | AW92: 0 | AX92: 0 | AY92: 0 | AZ92: 0 | DC92: 1
D93: E3D Revo Voron | E93: toolhead_hotend_revo_voron.stl | F93: 0 | G93: A | I93: 0 | J93: 0 | K93: 9.35 | M93: 1 | N93: 0 | O93: 0 | P93: 0 | Q93: =BB$4*BB93+BC$4*BC93+BD$4*BD93 -> 0 | R93: =CI$4*CI93+CJ$4*CJ93+CK$4*CK93+CL$4*CL93+CM$4*CM93+CN$4*CN93+CO$4*CO93+CP$4*CP93+CQ$4*CQ93+CR$4*CR93+CS$4*CS93+CT$4*CT93+CU$4*CU93+CV$4*CV93+CW$4*CW93+CX$4*CX93+CY$4*CY93+CZ$4*CZ93+DA$4*DA93+DB$4*DB93+DC$4*DC93+DD$4*DD93+DE$4*DE93+DF$4*DF93+DG$4*DG93+DH$4*DH93+DI$4*DI93+DJ$4*DJ93+DK$4*DK93+DL$4*DL93+DM$4*DM93+DN$4*DN93+DO$4*DO93+DP$4*DP93+DQ$4*DQ93+DR$4*DR93+DS$4*DS93+DT$4*DT93+DU$4*DU93+DV$4*DV93+DW$4*DW93+DX$4*DX93+DY$4*DY93+DZ$4*DZ93+EA$4*EA93+EB$4*EB93+EC$4*EC93+ED$4*ED93+EE$4*EE93+EF$4*EF93+EG$4*EG93+EH$4*EH93+EI$4*EI93+EJ$4*EJ93+EK$4*EK93+EL$4*EL93+EM$4*EM93+EN$4*EN93+EO$4*EO93+EP$4*EP93+EQ$4*EQ93+ER$4*ER93 -> 0 | S93: =ES$4*ES93+ET$4*ET93+EU$4*EU93+EV$4*EV93+EW$4*EW93+EX$4*EX93+EY$4*EY93+EZ$4*EZ93+FA$4*FA93+FB$4*FB93+FC$4*FC93 -> 0 | T93: =BF$4*BF93 -> 0 | AS93: 0 | AT93: 0 | AU93: 0 | AV93: 0 | AW93: 0 | AX93: 0 | AY93: 0 | AZ93: 0 | CT93: 1
D94: Phaetus Dragon UHF | E94: toolhead_hotend_dragon_2_UHF.stl | F94: 0 | G94: A | I94: 0 | J94: 0 | K94: 8.75 | M94: 1 | N94: 0 | O94: 0 | P94: 0 | Q94: 0 | R94: 0 | S94: 0 | T94: 0 | AS94: 0 | AT94: 0 | AU94: 0 | AV94: 0 | AW94: 0 | AX94: 0 | AY94: 0 | AZ94: 0 | CX94: 1
D95: Phaetus Rapido UHF | E95: toolhead_hotend_rapido_UHF.stl | F95: 1 | G95: A | I95: 0 | J95: 8.54 | K95: 8.54 | M95: 0 | N95: 0 | O95: 0 | P95: 0 | Q95: 0 | R95: 1 | S95: 0 | T95: 0 | AS95: 0 | AT95: 0 | AU95: 0 | AV95: 0 | AW95: 0 | AX95: 0 | AY95: 0 | AZ95: 0 | CZ95: 1
D96: Goliath | E96: toolhead_hotend_goliath.stl | F96: 0 | G96: A | I96: 0 | J96: 0 | K96: 7.52 | M96: 1 | N96: 0 | O96: 0 | P96: 0 | Q96: 0 | R96: 0 | S96: 0 | T96: 0 | AS96: 0 | AT96: 0 | AU96: 0 | AV96: 0 | AW96: 0 | AX96: 0 | AY96: 0 | AZ96: 0 | CS96: 1
C97: EXTRUDER | I97: 0 | J97: 0 | M97: =M98*M99*M100*M101*M102*M103*M104*M105*M106*M107*M108*M109*M110*M111*M112*M113*M114*M115*M116*M117*M118*M119*M120*M121*M122 -> 0 | N97: 0 | O97: 0 | P97: 0 | Q97: 0 | R97: 0 | S97: 0 | T97: 0 | AS97: 0 | AT97: 0 | AU97: 0 | AV97: 0 | AW97: 0 | AX97: 0 | AY97: 0 | AZ97: 0 | FF97: =C97 -> EXTRUDER
D98: Sherpa micro | E98: toolhead_extruder_sherpa_micro.stl | F98: =SUM(N98:T98) -> 0 | G98: A | I98: 0 | J98: 0 | K98: 4.57 | M98: =IF(F98=0,IF(F98="",0,1),0) -> 1 | N98: 0 | O98: 0 | P98: 0 | Q98: 0 | R98: 0 | S98: 0 | T98: 0 | AS98: =U98+V98+W98+AD98+AH98+AI98+AM98+AN98+AO98+AP98+AQ98 -> 0 | AT98: =X98+Y98 -> 0 | AU98: =Z98+AA98 -> 0 | AV98: =AB98+AC98 -> 0 | AW98: =AK98 -> 0 | AX98: =AL98 -> 0 | AY98: =AF98+AR98 -> 0 | AZ98: =AJ98 -> 0 | DF98: 1
D99: Sherpa mini | E99: toolhead_extruder_sherpa_mini.stl | F99: 0 | G99: A | I99: 0 | J99: 0 | K99: 4.51 | M99: 1 | N99: 0 | O99: 0 | P99: 0 | Q99: 0 | R99: 0 | S99: 0 | T99: 0 | AS99: 0 | AT99: 0 | AU99: 0 | AV99: 0 | AW99: 0 | AX99: 0 | AY99: 0 | AZ99: 0 | DD99: 1 | DP99: 1 | DR99: 1
D100: Orbiter 2.0 | E100: toolhead_extruder_orbiter_2.stl | F100: 0 | G100: A | I100: 0 | J100: 0 | K100: 4.56 | M100: 1 | N100: 0 | O100: 0 | P100: 0 | Q100: 0 | R100: 0 | S100: 0 | T100: 0 | AS100: 0 | AT100: 0 | AU100: 0 | AV100: 0 | AW100: 0 | AX100: 0 | AY100: 0 | AZ100: 0 | DL100: 1
D101: LGX | E101: toolhead_extruder_LGX.stl | F101: 0 | G101: A | I101: 0 | J101: 0 | K101: 4.46 | M101: 1 | N101: 0 | O101: 0 | P101: 0 | Q101: 0 | R101: 0 | S101: 0 | T101: 0 | AS101: 0 | AT101: 0 | AU101: 0 | AV101: 0 | AW101: 0 | AX101: 0 | AY101: 0 | AZ101: 0 | DH101: 1 | DI101: 1 | DM101: 1 | DT101: 1
D102: ProtoXtruder 1 integrated | E102: toolhead_extruder_integr_ProtoXtruder_1_a.stl | F102: 0 | G102: A | I102: 0 | J102: 0 | K102: 8.42 | M102: 1 | N102: 0 | O102: 0 | P102: 0 | Q102: 0 | R102: 0 | S102: 0 | T102: 0 | AS102: 0 | AT102: 0 | AU102: 0 | AV102: 0 | AW102: 0 | AX102: 0 | AY102: 0 | AZ102: 0 | DQ102: 1
E103: toolhead_extruder_integr_ProtoXtruder_1_b.stl | F103: 0 | G103: A | I103: 0 | J103: 0 | K103: 1.5 | M103: 1 | N103: 0 | O103: 0 | P103: 0 | Q103: 0 | R103: 0 | S103: 0 | T103: 0 | AS103: 0 | AT103: 0 | AU103: 0 | AV103: 0 | AW103: 0 | AX103: 0 | AY103: 0 | AZ103: 0 | DQ103: 1
D104: ProtoXtruder 2 integrated | E104: toolhead_extruder_integr_ProtoXtruder_2_a.stl | F104: 0 | G104: A | I104: 0 | J104: 0 | K104: 8.7 | M104: 1 | N104: 0 | O104: 0 | P104: 0 | Q104: 0 | R104: 0 | S104: 0 | T104: 0 | AS104: 0 | AT104: 0 | AU104: 0 | AV104: 0 | AW104: 0 | AX104: 0 | AY104: 0 | AZ104: 0 | DS104: 1
E105: toolhead_extruder_integr_ProtoXtruder_2_b.stl | F105: 0 | G105: A | I105: 0 | J105: 0 | K105: 1.18 | M105: 1 | N105: 0 | O105: 0 | P105: 0 | Q105: 0 | R105: 0 | S105: 0 | T105: 0 | AS105: 0 | AT105: 0 | AU105: 0 | AV105: 0 | AW105: 0 | AX105: 0 | AY105: 0 | AZ105: 0 | DS105: 1
D106: Hummingbird integrated | E106: toolhead_extruder_integr_Hummingbird_a.stl | F106: 0 | G106: A | I106: 0 | J106: 0 | K106: 10.48 | M106: 1 | N106: 0 | O106: 0 | P106: 0 | Q106: 0 | R106: 0 | S106: 0 | T106: 0 | AS106: 0 | AT106: 0 | AU106: 0 | AV106: 0 | AW106: 0 | AX106: 0 | AY106: 0 | AZ106: 0 | DU106: 1
E107: toolhead_extruder_integr_Hummingbird_b.stl | F107: 0 | G107: A | I107: 0 | J107: 0 | K107: 1.5 | M107: 1 | N107: 0 | O107: 0 | P107: 0 | Q107: 0 | R107: 0 | S107: 0 | T107: 0 | AS107: 0 | AT107: 0 | AU107: 0 | AV107: 0 | AW107: 0 | AX107: 0 | AY107: 0 | AZ107: 0 | DU107: 1
D108: Sherpa micro integrated | E108: toolhead_extruder_integr_sherpa_micro_a.stl | F108: 1 | G108: A | I108: 0 | J108: 8.44 | K108: 8.44 | M108: 0 | N108: 0 | O108: 0 | P108: 0 | Q108: 0 | R108: 1 | S108: 0 | T108: 0 | AS108: 0 | AT108: 0 | AU108: 0 | AV108: 0 | AW108: 0 | AX108: 0 | AY108: 0 | AZ108: 0 | DG108: 1
E109: toolhead_extruder_integr_sherpa_micro_b.stl | F109: 1 | G109: A | I109: 0 | J109: 1.05 | K109: 1.05 | M109: 0 | N109: 0 | O109: 0 | P109: 0 | Q109: 0 | R109: 1 | S109: 0 | T109: 0 | AS109: 0 | AT109: 0 | AU109: 0 | AV109: 0 | AW109: 0 | AX109: 0 | AY109: 0 | AZ109: 0 | DG109: 1
D110: Sherpa mini integrated | E110: toolhead_extruder_integr_sherpa_mini_a.stl | F110: 0 | G110: A | I110: 0 | J110: 0 | K110: 9.24 | M110: 1 | N110: 0 | O110: 0 | P110: 0 | Q110: 0 | R110: 0 | S110: 0 | T110: 0 | AS110: 0 | AT110: 0 | AU110: 0 | AV110: 0 | AW110: 0 | AX110: 0 | AY110: 0 | AZ110: 0 | DE110: 1
E111: toolhead_extruder_integr_sherpa_mini_b.stl | F111: 0 | G111: A | I111: =IF($G111="M",$K111*$F111,0) -> 0 | J111: =IF($G111="A",$K111*$F111,0) -> 0 | K111: 1.05 | M111: 1 | N111: 0 | O111: 0 | P111: 0 | Q111: 0 | R111: 0 | S111: 0 | T111: 0 | AS111: 0 | AT111: 0 | AU111: 0 | AV111: 0 | AW111: 0 | AX111: 0 | AY111: 0 | AZ111: 0 | DE111: 1
D112: VzHextrudort low integrated | E112: toolhead_extruder_integr_vzhextrudort_low_a.stl | F112: 0 | G112: A | I112: 0 | J112: 0 | K112: 10.02 | M112: 1 | N112: 0 | O112: 0 | P112: 0 | Q112: 0 | R112: 0 | S112: 0 | T112: 0 | AS112: 0 | AT112: 0 | AU112: 0 | AV112: 0 | AW112: 0 | AX112: 0 | AY112: 0 | AZ112: 0 | DN112: 1
E113: toolhead_extruder_integr_vzhextrudort_low_b.stl | F113: 0 | G113: A | I113: 0 | J113: 0 | K113: 0.91 | M113: 1 | N113: 0 | O113: 0 | P113: 0 | Q113: 0 | R113: 0 | S113: 0 | T113: 0 | AS113: 0 | AT113: 0 | AU113: 0 | AV113: 0 | AW113: 0 | AX113: 0 | AY113: 0 | AZ113: 0 | DN113: 1
D114: VzHextrudort helical integrated | E114: toolhead_extruder_integr_vzhextrudort_helical_a.stl | F114: 0 | G114: A | I114: 0 | J114: 0 | K114: 9.12 | M114: 1 | N114: 0 | O114: 0 | P114: 0 | Q114: 0 | R114: 0 | S114: 0 | T114: 0 | AS114: 0 | AT114: 0 | AU114: 0 | AV114: 0 | AW114: 0 | AX114: 0 | AY114: 0 | AZ114: 0 | DO114: 1
E115: toolhead_extruder_integr_vzhextrudort_helical_b.stl | F115: 0 | G115: A | I115: 0 | J115: 0 | K115: 2.12 | M115: 1 | N115: 0 | O115: 0 | P115: 0 | Q115: 0 | R115: 0 | S115: 0 | T115: 0 | AS115: 0 | AT115: 0 | AU115: 0 | AV115: 0 | AW115: 0 | AX115: 0 | AY115: 0 | AZ115: 0 | DO115: 1
D116: Bowden setup – blank | E116: toolhead_extruder_bowden_blank.stl | F116: 0 | G116: A | I116: 0 | J116: 0 | K116: 4.46 | M116: 1 | N116: 0 | O116: 0 | P116: 0 | Q116: 0 | R116: 0 | S116: 0 | T116: 0 | AS116: 0 | AT116: 0 | AU116: 0 | AV116: 0 | AW116: 0 | AX116: 0 | AY116: 0 | AZ116: 0 | DW116: 1
D117: Bowden extruder – 1/8‘ thread | E117: toolhead_extruder_bowden_1_8.stl | F117: 0 | G117: A | I117: 0 | J117: 0 | K117: 5.22 | M117: 1 | N117: 0 | O117: 0 | P117: 0 | Q117: 0 | R117: 0 | S117: 0 | T117: 0 | AS117: 0 | AT117: 0 | AU117: 0 | AV117: 0 | AW117: 0 | AX117: 0 | AY117: 0 | AZ117: 0 | DW117: 1
D118: Bowden extruder – M6 thread | E118: toolhead_extruder_bowden_M6.stl | F118: 0 | G118: A | I118: 0 | J118: 0 | K118: 5.12 | M118: 1 | N118: 0 | O118: 0 | P118: 0 | Q118: 0 | R118: 0 | S118: 0 | T118: 0 | AS118: 0 | AT118: 0 | AU118: 0 | AV118: 0 | AW118: 0 | AX118: 0 | AY118: 0 | AZ118: 0 | DW118: 1
D119: Bowden extruder – spider V3 | E119: toolhead_extruder_bowden_spiderV3.stl | F119: 0 | G119: A | I119: 0 | J119: 0 | K119: 5.74 | M119: 1 | N119: 0 | O119: 0 | P119: 0 | Q119: 0 | R119: 0 | S119: 0 | T119: 0 | AS119: 0 | AT119: 0 | AU119: 0 | AV119: 0 | AW119: 0 | AX119: 0 | AY119: 0 | AZ119: 0 | DW119: 1
D120: Bowden extruder – phaetus | E120: toolhead_extruder_bowden_phaetus.stl | F120: 0 | G120: A | I120: 0 | J120: 0 | K120: 5.59 | M120: 1 | N120: 0 | O120: 0 | P120: 0 | Q120: 0 | R120: 0 | S120: 0 | T120: 0 | AS120: 0 | AT120: 0 | AU120: 0 | AV120: 0 | AW120: 0 | AX120: 0 | AY120: 0 | AZ120: 0 | DW120: 1
D121: Bowden extruder – ECAS04 | E121: toolhead_extruder_bowden_ECAS04.stl | F121: 0 | G121: A | I121: 0 | J121: 0 | K121: 5.6 | M121: 1 | N121: 0 | O121: 0 | P121: 0 | Q121: 0 | R121: 0 | S121: 0 | T121: 0 | AS121: 0 | AT121: 0 | AU121: 0 | AV121: 0 | AW121: 0 | AX121: 0 | AY121: 0 | AZ121: 0 | DW121: 1
D122: Bowden extruder – clip | E122: toolhead_extruder_bowden_clip.stl | F122: 0 | G122: A | I122: 0 | J122: 0 | K122: 5.33 | M122: 1 | N122: 0 | O122: 0 | P122: 0 | Q122: 0 | R122: 0 | S122: 0 | T122: 0 | AS122: 0 | AT122: 0 | AU122: 0 | AV122: 0 | AW122: 0 | AX122: 0 | AY122: 0 | AZ122: 0 | DW122: 1
C123: COOLING | I123: 0 | J123: 0 | M123: =M124*M125*M126*M127*M128*M129*M130*M131*M132*M133*M134*M135*M136 -> 0 | N123: 0 | O123: 0 | P123: 0 | Q123: 0 | R123: 0 | S123: 0 | T123: 0 | AS123: 0 | AT123: 0 | AU123: 0 | AV123: 0 | AW123: 0 | AX123: 0 | AY123: 0 | AZ123: 0 | FF123: =C123 -> COOLING
D124: 2x 4010 S | E124: toolhead_fanduct_4010_S.stl | F124: =SUM(N124:T124) -> 0 | G124: A | I124: 0 | J124: 0 | K124: 14.64 | M124: =IF(F124=0,IF(F124="",0,1),0) -> 1 | N124: 0 | O124: 0 | P124: 0 | Q124: 0 | R124: 0 | S124: 0 | T124: 0 | AS124: =U124+V124+W124+AD124+AH124+AI124+AM124+AN124+AO124+AP124+AQ124 -> 0 | AT124: =X124+Y124 -> 0 | AU124: =Z124+AA124 -> 0 | AV124: =AB124+AC124 -> 0 | AW124: =AK124 -> 0 | AX124: =AL124 -> 0 | AY124: =AF124+AR124 -> 0 | AZ124: =AJ124 -> 0 | DX124: =IF($R$5=1,1,0) -> 0
D125: 2x 4010 M | E125: toolhead_fanduct_4010_M.stl | F125: 0 | G125: A | I125: 0 | J125: 0 | K125: 17.55 | M125: 1 | N125: 0 | O125: 0 | P125: 0 | Q125: 0 | R125: 0 | S125: 0 | T125: 0 | AS125: 0 | AT125: 0 | AU125: 0 | AV125: 0 | AW125: 0 | AX125: 0 | AY125: 0 | AZ125: 0 | DX125: =IF($R$5=2,1,0) -> 0
D126: 2x 4010 L | E126: toolhead_fanduct_4010_L.stl | F126: 1 | G126: A | I126: 0 | J126: 19.85 | K126: 19.85 | M126: 0 | N126: 0 | O126: 0 | P126: 0 | Q126: 0 | R126: 1 | S126: 0 | T126: 0 | AS126: 0 | AT126: 0 | AU126: 0 | AV126: 0 | AW126: 0 | AX126: 0 | AY126: 0 | AZ126: 0 | DX126: =IF($R$5=3,1,0) -> 1
D127: 2x 4020 S | E127: toolhead_fanduct_4020_S.stl | F127: 0 | G127: A | I127: 0 | J127: 0 | K127: 16.22 | M127: 1 | N127: 0 | O127: 0 | P127: 0 | Q127: 0 | R127: 0 | S127: 0 | T127: 0 | AS127: 0 | AT127: 0 | AU127: 0 | AV127: 0 | AW127: 0 | AX127: 0 | AY127: 0 | AZ127: 0 | DY127: =IF($R$5=1,1,0) -> 0
D128: 2x 4020 M | E128: toolhead_fanduct_4020_M.stl | F128: 0 | G128: A | I128: 0 | J128: 0 | K128: 20.28 | M128: 1 | N128: 0 | O128: 0 | P128: 0 | Q128: 0 | R128: 0 | S128: 0 | T128: 0 | AS128: 0 | AT128: 0 | AU128: 0 | AV128: 0 | AW128: 0 | AX128: 0 | AY128: 0 | AZ128: 0 | DY128: =IF($R$5=2,1,0) -> 0
D129: 2x 4020 L | E129: toolhead_fanduct_4020_L.stl | F129: 0 | G129: A | I129: 0 | J129: 0 | K129: 22.07 | M129: 1 | N129: 0 | O129: 0 | P129: 0 | Q129: 0 | R129: 0 | S129: 0 | T129: 0 | AS129: 0 | AT129: 0 | AU129: 0 | AV129: 0 | AW129: 0 | AX129: 0 | AY129: 0 | AZ129: 0 | DY129: =IF($R$5=3,1,0) -> 1
D130: 2x 5015 S | E130: toolhead_fanduct_5015_S.stl | F130: 0 | G130: A | I130: 0 | J130: 0 | K130: 29.23 | M130: 1 | N130: 0 | O130: 0 | P130: 0 | Q130: 0 | R130: 0 | S130: 0 | T130: 0 | AS130: 0 | AT130: 0 | AU130: 0 | AV130: 0 | AW130: 0 | AX130: 0 | AY130: 0 | AZ130: 0 | DZ130: =IF($R$5=1,1,0) -> 0
D131: 2x 5015 M | E131: toolhead_fanduct_5015_M.stl | F131: 0 | G131: A | I131: 0 | J131: 0 | K131: 32.16 | M131: 1 | N131: 0 | O131: 0 | P131: 0 | Q131: 0 | R131: 0 | S131: 0 | T131: 0 | AS131: 0 | AT131: 0 | AU131: 0 | AV131: 0 | AW131: 0 | AX131: 0 | AY131: 0 | AZ131: 0 | DZ131: =IF($R$5=2,1,0) -> 0
D132: 2x 5015 L | E132: toolhead_fanduct_5015_L.stl | F132: 0 | G132: A | I132: 0 | J132: 0 | K132: 34.51 | M132: 1 | N132: 0 | O132: 0 | P132: 0 | Q132: 0 | R132: 0 | S132: 0 | T132: 0 | AS132: 0 | AT132: 0 | AU132: 0 | AV132: 0 | AW132: 0 | AX132: 0 | AY132: 0 | AZ132: 0 | DZ132: =IF($R$5=3,1,0) -> 1
D133: CPAP S | E133: toolhead_fanduct_CPAP_S.stl | F133: 0 | G133: A | I133: 0 | J133: 0 | K133: 19.5 | M133: 1 | N133: 0 | O133: 0 | P133: 0 | Q133: 0 | R133: 0 | S133: 0 | T133: 0 | AS133: 0 | AT133: 0 | AU133: 0 | AV133: 0 | AW133: 0 | AX133: 0 | AY133: 0 | AZ133: 0 | EA133: =IF($R$5=1,1,0) -> 0
D134: CPAP M | E134: toolhead_fanduct_CPAP_M.stl | F134: 0 | G134: A | I134: 0 | J134: 0 | K134: 20.64 | M134: 1 | N134: 0 | O134: 0 | P134: 0 | Q134: 0 | R134: 0 | S134: 0 | T134: 0 | AS134: 0 | AT134: 0 | AU134: 0 | AV134: 0 | AW134: 0 | AX134: 0 | AY134: 0 | AZ134: 0 | EA134: =IF($R$5=2,1,0) -> 0
D135: CPAP L | E135: toolhead_fanduct_CPAP_L.stl | F135: 0 | G135: A | I135: 0 | J135: 0 | K135: 22.47 | M135: 1 | N135: =AS$4*AS135+AT$4*AT135+AU$4*AU135+AV$4*AV135+AW$4*AW135+AX$4*AX135+AY$4*AY135+AZ$4*AZ135+BA$4*BA135 -> 0 | O135: =BG$4*BG135+BH$4*BH135+BI$4*BI135+BJ$4*BJ135+BK$4*BK135+BL$4*BL135+BM$4*BM135+BN$4*BN135+BO$4*BO135+BP$4*BP135+BQ$4*BQ135+BR$4*BR135 -> 0 | P135: =BS$4*BS135+BT$4*BT135+BU$4*BU135+BV$4*BV135+BW$4*BW135+BX$4*BX135+BY$4*BY135+BZ$4*BZ135+CA$4*CA135+CB$4*CB135+CC$4*CC135+CD$4*CD135+CE$4*CE135+CF$4*CF135+CG$4*CG135+CH$4*CH135 -> 0 | Q135: =BB$4*BB135+BC$4*BC135+BD$4*BD135 -> 0 | R135: 0 | S135: =ES$4*ES135+ET$4*ET135+EU$4*EU135+EV$4*EV135+EW$4*EW135+EX$4*EX135+EY$4*EY135+EZ$4*EZ135+FA$4*FA135+FB$4*FB135+FC$4*FC135 -> 0 | T135: =BF$4*BF135 -> 0 | AS135: 0 | AT135: 0 | AU135: 0 | AV135: 0 | AW135: 0 | AX135: 0 | AY135: 0 | AZ135: 0 | EA135: =IF($R$5=3,1,0) -> 1
D136: CPAP hose adapter | E136: toolhead_fanduct_CPAP_adapter.stl | F136: 0 | G136: A | I136: 0 | J136: 0 | K136: 1.43 | M136: 1 | N136: 0 | O136: 0 | P136: 0 | Q136: 0 | R136: 0 | S136: 0 | T136: 0 | AS136: 0 | AT136: 0 | AU136: 0 | AV136: 0 | AW136: 0 | AX136: 0 | AY136: 0 | AZ136: 0 | EA136: 1
C137: PROBE | I137: 0 | J137: 0 | M137: =M138*M139*M140*M141*M142*M143*M144*M145*M146*M147*M148*M149*M150*M151*M152 -> 0 | N137: 0 | O137: 0 | P137: 0 | Q137: 0 | R137: 0 | S137: 0 | T137: 0 | AS137: 0 | AT137: 0 | AU137: 0 | AV137: 0 | AW137: 0 | AX137: 0 | AY137: 0 | AZ137: 0 | FF137: =C137 -> PROBE
D138: Klicky | E138: toolhead_probe_klicky.stl | F138: =SUM(N138:T138) -> 0 | G138: A | I138: 0 | J138: 0 | K138: 2.77 | M138: =IF(F138=0,IF(F138="",0,1),0) -> 1 | N138: 0 | O138: 0 | P138: 0 | Q138: 0 | R138: 0 | S138: 0 | T138: 0 | AS138: =U138+V138+W138+AD138+AH138+AI138+AM138+AN138+AO138+AP138+AQ138 -> 0 | AT138: =X138+Y138 -> 0 | AU138: =Z138+AA138 -> 0 | AV138: =AB138+AC138 -> 0 | AW138: =AK138 -> 0 | AX138: =AL138 -> 0 | AY138: =AF138+AR138 -> 0 | AZ138: =AJ138 -> 0 | EC138: 1
D139: KlickyPCB S+M | E139: toolhead_probe_klicky_PCB_S_M.stl | F139: 0 | G139: A | I139: 0 | J139: 0 | K139: 2.55 | M139: 1 | N139: 0 | O139: 0 | P139: 0 | Q139: 0 | R139: 0 | S139: 0 | T139: 0 | AS139: 0 | AT139: 0 | AU139: 0 | AV139: 0 | AW139: 0 | AX139: 0 | AY139: 0 | AZ139: 0 | ED139: =IF($R$5<>3,1,0) -> 0
D140: KlickyPCB L | E140: toolhead_probe_klicky_PCB_L.stl | F140: 0 | G140: A | I140: 0 | J140: 0 | K140: 3.59 | M140: 1 | N140: 0 | O140: 0 | P140: 0 | Q140: 0 | R140: 0 | S140: 0 | T140: 0 | AS140: 0 | AT140: 0 | AU140: 0 | AV140: 0 | AW140: 0 | AX140: 0 | AY140: 0 | AZ140: 0 | ED140: =IF($R$5=3,1,0) -> 1
D141: Beacon scanner S | E141: toolhead_probe_beacon_S.stl | F141: 0 | G141: A | I141: 0 | J141: 0 | K141: 3.28 | M141: 1 | N141: 0 | O141: 0 | P141: 0 | Q141: 0 | R141: =CI$4*CI141+CJ$4*CJ141+CK$4*CK141+CL$4*CL141+CM$4*CM141+CN$4*CN141+CO$4*CO141+CP$4*CP141+CQ$4*CQ141+CR$4*CR141+CS$4*CS141+CT$4*CT141+CU$4*CU141+CV$4*CV141+CW$4*CW141+CX$4*CX141+CY$4*CY141+CZ$4*CZ141+DA$4*DA141+DB$4*DB141+DC$4*DC141+DD$4*DD141+DE$4*DE141+DF$4*DF141+DG$4*DG141+DH$4*DH141+DI$4*DI141+DJ$4*DJ141+DK$4*DK141+DL$4*DL141+DM$4*DM141+DN$4*DN141+DO$4*DO141+DP$4*DP141+DQ$4*DQ141+DR$4*DR141+DS$4*DS141+DT$4*DT141+DU$4*DU141+DV$4*DV141+DW$4*DW141+DX$4*DX141+DY$4*DY141+DZ$4*DZ141+EA$4*EA141+EB$4*EB141+EC$4*EC141+ED$4*ED141+EE$4*EE141+EF$4*EF141+EG$4*EG141+EH$4*EH141+EI$4*EI141+EJ$4*EJ141+EK$4*EK141+EL$4*EL141+EM$4*EM141+EN$4*EN141+EO$4*EO141+EP$4*EP141+EQ$4*EQ141+ER$4*ER141 -> 0 | S141: 0 | T141: 0 | AS141: 0 | AT141: 0 | AU141: 0 | AV141: 0 | AW141: 0 | AX141: 0 | AY141: 0 | AZ141: 0 | EE141: 1
D142: Beacon scanner M | E142: toolhead_probe_beacon_M.stl | F142: 0 | G142: A | I142: 0 | J142: 0 | K142: 2.16 | M142: 1 | N142: 0 | O142: 0 | P142: 0 | Q142: 0 | R142: 0 | S142: 0 | T142: 0 | AS142: 0 | AT142: 0 | AU142: 0 | AV142: 0 | AW142: 0 | AX142: 0 | AY142: 0 | AZ142: 0 | EE142: =IF($R$5=2,1,0) -> 0
D143: Beacon scanner L | E143: toolhead_probe_beacon_L.stl | F143: 0 | G143: A | I143: =IF($G143="M",$K143*$F143,0) -> 0 | J143: =IF($G143="A",$K143*$F143,0) -> 0 | K143: 3.26 | M143: 1 | N143: 0 | O143: 0 | P143: 0 | Q143: 0 | R143: 0 | S143: 0 | T143: 0 | AS143: 0 | AT143: 0 | AU143: 0 | AV143: 0 | AW143: 0 | AX143: 0 | AY143: 0 | AZ143: 0 | EE143: =IF($R$5=3,1,0) -> 1
D144: BDSensor S | E144: toolhead_probe_bdsensor_S.stl | F144: 0 | G144: A | I144: 0 | J144: 0 | K144: 1.93 | M144: 1 | N144: 0 | O144: 0 | P144: 0 | Q144: 0 | R144: 0 | S144: 0 | T144: 0 | AS144: 0 | AT144: 0 | AU144: 0 | AV144: 0 | AW144: 0 | AX144: 0 | AY144: 0 | AZ144: 0 | EF144: =IF($R$5=1,1,0) -> 0
D145: BDSensor M | E145: toolhead_probe_bdsensor_M.stl | F145: 0 | G145: A | I145: 0 | J145: 0 | K145: 2.5 | M145: 1 | N145: 0 | O145: 0 | P145: 0 | Q145: 0 | R145: 0 | S145: 0 | T145: 0 | AS145: 0 | AT145: 0 | AU145: 0 | AV145: 0 | AW145: 0 | AX145: 0 | AY145: 0 | AZ145: 0 | EF145: =IF($R$5=2,1,0) -> 0
D146: BDSensor L | E146: toolhead_probe_bdsensor_L.stl | F146: 1 | G146: A | I146: 0 | J146: 2.81 | K146: 2.81 | M146: 0 | N146: 0 | O146: 0 | P146: 0 | Q146: 0 | R146: 1 | S146: 0 | T146: 0 | AS146: 0 | AT146: 0 | AU146: 0 | AV146: 0 | AW146: 0 | AX146: 0 | AY146: 0 | AZ146: 0 | EF146: =IF($R$5=3,1,0) -> 1
D147: BTT Eddy S | E147: toolhead_probe_btt_eddy_S.stl | F147: 0 | G147: A | I147: 0 | J147: 0 | K147: 2.14 | M147: 1 | N147: 0 | O147: 0 | P147: 0 | Q147: 0 | R147: 0 | S147: =ES$4*ES147+ET$4*ET147+EU$4*EU147+EV$4*EV147+EW$4*EW147+EX$4*EX147+EY$4*EY147+EZ$4*EZ147+FA$4*FA147+FB$4*FB147+FC$4*FC147 -> 0 | T147: =BF$4*BF147 -> 0 | AS147: 0 | AT147: 0 | AU147: 0 | AV147: 0 | AW147: 0 | AX147: 0 | AY147: 0 | AZ147: 0 | EK147: =IF($R$5=1,1,0) -> 0
D148: BTT Eddy M+L | E148: toolhead_probe_btt_eddy_M_L.stl | F148: 0 | G148: A | I148: 0 | J148: 0 | K148: 1.92 | M148: 1 | N148: 0 | O148: 0 | P148: 0 | Q148: 0 | R148: 0 | S148: 0 | T148: 0 | AS148: 0 | AT148: 0 | AU148: 0 | AV148: 0 | AW148: 0 | AX148: 0 | AY148: 0 | AZ148: 0 | EK148: =IF($R$5<>1,1,0) -> 1
D149: Biqu microprobe | E149: toolhead_probe_biqu_micro.stl | F149: 0 | G149: A | I149: 0 | J149: 0 | K149: 1.66 | M149: 1 | N149: 0 | O149: 0 | P149: 0 | Q149: 0 | R149: 0 | S149: 0 | T149: 0 | AS149: 0 | AT149: 0 | AU149: 0 | AV149: 0 | AW149: 0 | AX149: 0 | AY149: 0 | AZ149: 0 | EI149: 1
D150: BLTouch | E150: toolhead_probe_bltouch.stl | F150: 0 | G150: A | I150: 0 | J150: 0 | K150: 2.36 | M150: 1 | N150: 0 | O150: 0 | P150: 0 | Q150: 0 | R150: 0 | S150: 0 | T150: 0 | AS150: 0 | AT150: 0 | AU150: 0 | AV150: 0 | AW150: 0 | AX150: 0 | AY150: 0 | AZ150: 0 | EG150: 1 | EH150: 1
D151: CR touch | E151: toolhead_probe_bltouch.stl | F151: 0 | G151: A | I151: 0 | J151: 0 | K151: 2.36 | M151: 1 | N151: 0 | O151: 0 | P151: 0 | Q151: 0 | R151: 0 | S151: 0 | T151: 0 | AS151: 0 | AT151: 0 | AU151: 0 | AV151: 0 | AW151: 0 | AX151: 0 | AY151: 0 | AZ151: 0
D152: P.I.N.D.A. / SuperPINDA | E152: toolhead_probe_pinda.stl | F152: 0 | G152: A | I152: 0 | J152: 0 | K152: 4.68 | M152: 1 | N152: 0 | O152: 0 | P152: 0 | Q152: 0 | R152: 0 | S152: 0 | T152: 0 | AS152: 0 | AT152: 0 | AU152: 0 | AV152: 0 | AW152: 0 | AX152: 0 | AY152: 0 | AZ152: 0 | EJ152: 1
C153: ACCESSORIES | I153: 0 | J153: 0 | M153: =M154*M155*M156 -> 0 | N153: 0 | O153: 0 | P153: 0 | Q153: 0 | R153: 0 | S153: 0 | T153: 0 | AS153: 0 | AT153: 0 | AU153: 0 | AV153: 0 | AW153: 0 | AX153: 0 | AY153: 0 | AZ153: 0 | FF153: =C153 -> ACCESSORIES
D154: Breakout | E154: toolhead_accessories_breakout.stl | F154: =SUM(N154:T154) -> 0 | G154: A | I154: 0 | J154: 0 | K154: 1.59 | M154: =IF(F154=0,IF(F154="",0,1),0) -> 1 | N154: 0 | O154: 0 | P154: 0 | Q154: 0 | R154: 0 | S154: 0 | T154: 0 | AS154: 0 | AT154: 0 | AU154: 0 | AV154: 0 | AW154: 0 | AX154: 0 | AY154: 0 | AZ154: 0 | EM154: 1 | EO154: 1
D155: Accelerometer | E155: toolhead_accessories_accelerometer.stl | F155: =SUM(N155:T155) -> 1 | G155: A | I155: 0 | J155: 1.74 | K155: 1.74 | M155: =IF(F155=0,IF(F155="",0,1),0) -> 0 | N155: =AS$4*AS155+AT$4*AT155+AU$4*AU155+AV$4*AV155+AW$4*AW155+AX$4*AX155+AY$4*AY155+AZ$4*AZ155+BA$4*BA155 -> 0 | O155: =BG$4*BG155+BH$4*BH155+BI$4*BI155+BJ$4*BJ155+BK$4*BK155+BL$4*BL155+BM$4*BM155+BN$4*BN155+BO$4*BO155+BP$4*BP155+BQ$4*BQ155+BR$4*BR155 -> 0 | P155: =BS$4*BS155+BT$4*BT155+BU$4*BU155+BV$4*BV155+BW$4*BW155+BX$4*BX155+BY$4*BY155+BZ$4*BZ155+CA$4*CA155+CB$4*CB155+CC$4*CC155+CD$4*CD155+CE$4*CE155+CF$4*CF155+CG$4*CG155+CH$4*CH155 -> 0 | Q155: =BB$4*BB155+BC$4*BC155+BD$4*BD155 -> 0 | R155: 1 | S155: =ES$4*ES155+ET$4*ET155+EU$4*EU155+EV$4*EV155+EW$4*EW155+EX$4*EX155+EY$4*EY155+EZ$4*EZ155+FA$4*FA155+FB$4*FB155+FC$4*FC155 -> 0 | T155: =BF$4*BF155 -> 0 | AS155: 0 | AT155: 0 | AU155: 0 | AV155: 0 | AW155: 0 | AX155: 0 | AY155: 0 | AZ155: 0 | EN155: 1 | EP155: 1
D156: Cable holder | E156: toolhead_accessories_cable.stl | F156: =SUM(N156:T156) -> 1 | G156: M | I156: 3.22 | J156: 0 | K156: 3.22 | M156: =IF(F156=0,IF(F156="",0,1),0) -> 0 | N156: 0 | O156: 0 | P156: 0 | Q156: 0 | R156: 1 | S156: 0 | T156: 0 | AS156: 0 | AT156: 0 | AU156: 0 | AV156: 0 | AW156: 0 | AX156: 0 | AY156: 0 | AZ156: 0 | EO156: 1 | EP156: 1 | EQ156: 1
C157: BACKPACK + ELECTRONICS | I157: =SUM(I158:I202) -> 288.18 | J157: =SUM(J158:J202) -> 413.05 | M157: =M158*M159*M160*M161*M162*M163*M164*M165*M166*M167*M168*M169*M170*M171*M172*M173*M174*M175*M176*M177*M178*M179*M180*M181*M182*M183*M184*M185*M186*M187*M188*M189*M190*M191*M192*M193*M194*M195*M196*M197*M198*M199*M200*M201*M202 -> 0 | N157: 0 | O157: 0 | P157: 0 | Q157: 0 | R157: 0 | S157: 0 | T157: 0 | AS157: 0 | AT157: 0 | AU157: 0 | AV157: 0 | AW157: 0 | AX157: 0 | AY157: 0 | AZ157: 0 | FF157: =C157 -> BACKPACK + ELECTRONICS
D158: Panel left top | E158: electronics_panel_upper_left.stl | F158: =SUM(N158:T158) -> 1 | G158: M | I158: =IF($G158="M",$K158*$F158,0) -> 59.37 | J158: =IF($G158="A",$K158*$F158,0) -> 0 | K158: 59.37 | M158: =IF(F158=0,IF(F158="",0,1),0) -> 0 | N158: 0 | O158: 0 | P158: 1 | Q158: 0 | R158: 0 | S158: 0 | T158: 0 | AS158: =U158+V158+W158+AD158+AH158+AI158+AM158+AN158+AO158+AP158+AQ158 -> 0 | AT158: =X158+Y158 -> 0 | AU158: =Z158+AA158 -> 0 | AV158: =AB158+AC158 -> 0 | AW158: =AK158 -> 0 | AX158: =AL158 -> 0 | AY158: =AF158+AR158 -> 0 | AZ158: =AJ158 -> 0 | BS158: 1
D159: Panel left bottom | E159: electronics_panel_lower_left.stl | F159: 1 | G159: M | I159: 61.4 | J159: 0 | K159: 61.4 | M159: 0 | N159: 0 | O159: 0 | P159: 1 | Q159: 0 | R159: 0 | S159: 0 | T159: 0 | AS159: 0 | AT159: 0 | AU159: 0 | AV159: 0 | AW159: 0 | AX159: 0 | AY159: 0 | AZ159: 0 | BS159: 1
D160: Panel right top | E160: electronics_panel_upper_right.stl | F160: 1 | G160: M | I160: 59.69 | J160: 0 | K160: 59.69 | M160: 0 | N160: 0 | O160: 0 | P160: 1 | Q160: 0 | R160: 0 | S160: 0 | T160: 0 | AS160: 0 | AT160: 0 | AU160: 0 | AV160: 0 | AW160: 0 | AX160: 0 | AY160: 0 | AZ160: 0 | BS160: 1
D161: Panel right bottom | E161: electronics_panel_lower_right.stl | F161: 1 | G161: M | I161: 60.9 | J161: 0 | K161: 60.9 | M161: 0 | N161: 0 | O161: 0 | P161: 1 | Q161: 0 | R161: 0 | S161: 0 | T161: 0 | AS161: 0 | AT161: 0 | AU161: 0 | AV161: 0 | AW161: 0 | AX161: 0 | AY161: 0 | AZ161: 0 | BS161: 1
D162: Panel glue strip middle top | E162: electronics_panel_glue_strip_upper.stl | F162: 1 | G162: M | I162: 4.78 | J162: 0 | K162: 4.78 | M162: 0 | N162: 0 | O162: 0 | P162: 1 | Q162: 0 | R162: 0 | S162: 0 | T162: 0 | AS162: 0 | AT162: 0 | AU162: 0 | AV162: 0 | AW162: 0 | AX162: 0 | AY162: 0 | AZ162: 0 | BS162: 1
D163: Panel glue strip middle bottom | E163: electronics_panel_glue_strip_lower.stl | F163: 1 | G163: M | I163: 3.49 | J163: 0 | K163: 3.49 | M163: 0 | N163: 0 | O163: 0 | P163: 1 | Q163: 0 | R163: 0 | S163: 0 | T163: 0 | AS163: 0 | AT163: 0 | AU163: 0 | AV163: 0 | AW163: 0 | AX163: 0 | AY163: 0 | AZ163: 0 | BS163: 1
D164: Panel glue strip sides | E164: electronics_panel_glue_strip_middle.stl | F164: 2 | G164: M | I164: 11.68 | J164: 0 | K164: 5.84 | M164: 0 | N164: 0 | O164: 0 | P164: 2 | Q164: 0 | R164: 0 | S164: 0 | T164: 0 | AS164: 0 | AT164: 0 | AU164: 0 | AV164: 0 | AW164: 0 | AX164: 0 | AY164: 0 | AZ164: 0 | BS164: 2
D165: Top cover left | E165: electronics_top_B.stl | F165: 0 | G165: A | I165: 0 | J165: 0 | K165: 47.05 | M165: 1 | N165: 0 | O165: 0 | P165: 0 | Q165: 0 | R165: 0 | S165: 0 | T165: 0 | AQ165: 1 | AR165: -1 | AS165: 1 | AT165: 0 | AU165: 0 | AV165: 0 | AW165: 0 | AX165: 0 | AY165: -1 | AZ165: 0
D166: Top cover left – rod support | E166: electronics_top_B_triple.stl | F166: 1 | G166: A | I166: 0 | J166: 76.67 | K166: 76.67 | M166: 0 | N166: 1 | O166: 0 | P166: 0 | Q166: 0 | R166: 0 | S166: 0 | T166: 0 | AR166: 1 | AS166: 0 | AT166: 0 | AU166: 0 | AV166: 0 | AW166: 0 | AX166: 0 | AY166: 1 | AZ166: 0
D167: Top cover right | E167: electronics_top_A.stl | F167: 1 | G167: A | I167: 0 | J167: 44.77 | K167: 44.77 | M167: 0 | N167: 1 | O167: 0 | P167: 0 | Q167: 0 | R167: 0 | S167: 0 | T167: 0 | AQ167: 1 | AR167: 0 | AS167: 1 | AT167: 0 | AU167: 0 | AV167: 0 | AW167: 0 | AX167: 0 | AY167: 0 | AZ167: 0
D168: Y endstop mount | E168: electronics_Y_endstop.stl | F168: 1 | G168: M | I168: 2.59 | J168: 0 | K168: 2.59 | M168: 0 | N168: 0 | O168: 0 | P168: 1 | Q168: 0 | R168: 0 | S168: 0 | T168: 0 | AS168: 0 | AT168: 0 | AU168: 0 | AV168: 0 | AW168: 0 | AX168: 0 | AY168: 0 | AZ168: 0 | BV168: 1
D169: Bed cable cover | E169: electronics_panel_cable_bed.stl | F169: 1 | G169: M | I169: 2.91 | J169: 0 | K169: 2.91 | M169: 0 | N169: 0 | O169: 0 | P169: 1 | Q169: 0 | R169: 0 | S169: 0 | T169: 0 | AS169: 0 | AT169: 0 | AU169: 0 | AV169: 0 | AW169: 0 | AX169: 0 | AY169: 0 | AZ169: 0 | BS169: 1
D170: Z stepper cable cover left | E170: electronics_panel_cable_cover_left.stl | F170: 0 | G170: A | I170: 0 | J170: 0 | K170: 1.09 | M170: 1 | N170: 0 | O170: 0 | P170: 0 | Q170: 0 | R170: 0 | S170: 0 | T170: 0 | AJ170: 1 | AS170: 0 | AT170: 0 | AU170: 0 | AV170: 0 | AW170: 0 | AX170: 0 | AY170: 0 | AZ170: 1 | BS170: 0
D171: Z stepper cable cover right | E171: electronics_panel_cable_cover_right.stl | F171: 1 | G171: A | I171: 0 | J171: 1.09 | K171: 1.09 | M171: 0 | N171: 0 | O171: 0 | P171: 1 | Q171: 0 | R171: 0 | S171: 0 | T171: 0 | AS171: 0 | AT171: 0 | AU171: 0 | AV171: 0 | AW171: 0 | AX171: 0 | AY171: 0 | AZ171: 0 | BS171: 1
D172: Z stepper cable cover right backer | E172: electronics_panel_cable_cover_backer.stl | F172: 1 | G172: A | I172: 0 | J172: 0.32 | K172: 0.32 | M172: 0 | N172: 0 | O172: 0 | P172: 1 | Q172: 0 | R172: 0 | S172: 0 | T172: 0 | AJ172: 1 | AS172: 0 | AT172: 0 | AU172: 0 | AV172: 0 | AW172: 0 | AX172: 0 | AY172: 0 | AZ172: 1 | BS172: 1
D173: 3 rods – top mount | E173: electronics_panel_rod_mount.stl | F173: 1 | G173: M | I173: 7.93 | J173: 0 | K173: 7.93 | M173: 0 | N173: 1 | O173: 0 | P173: 0 | Q173: 0 | R173: 0 | S173: 0 | T173: 0 | AS173: 0 | AT173: 0 | AU173: 0 | AV173: 0 | AW173: 0 | AX173: 0 | AY173: 1 | AZ173: 0
D174: Klicky probe dock | E174: electronics_panel_klicky_dock.stl | F174: 0 | G174: M | I174: 0 | J174: 0 | K174: 10.55 | M174: 1 | N174: 0 | O174: 0 | P174: 0 | Q174: 0 | R174: 0 | S174: 0 | T174: 0 | AS174: 0 | AT174: 0 | AU174: 0 | AV174: 0 | AW174: 0 | AX174: 0 | AY174: =AF174+AR174 -> 0 | AZ174: 0 | EC174: 1
D175: KlickyPCB probe dock | E175: electronics_panel_klicky_PCB_dock.stl | F175: 0 | G175: M | I175: 0 | J175: 0 | K175: 9.21 | M175: 1 | N175: 0 | O175: 0 | P175: 0 | Q175: 0 | R175: 0 | S175: 0 | T175: 0 | AS175: 0 | AT175: 0 | AU175: 0 | AV175: 0 | AW175: 0 | AX175: 0 | AY175: 0 | AZ175: 0 | ED175: 1
D176: Side vents B top | E176: electronics_vent_B_upper.stl | F176: 1 | G176: A | I176: 0 | J176: 13.63 | K176: 13.63 | M176: 0 | N176: 0 | O176: 0 | P176: 1 | Q176: 0 | R176: 0 | S176: 0 | T176: 0 | AS176: 0 | AT176: 0 | AU176: 0 | AV176: 0 | AW176: 0 | AX176: 0 | AY176: 0 | AZ176: 0 | BU176: 1
D177: Side vents B bottom | E177: electronics_vent_B_lower.stl | F177: 1 | G177: A | I177: 0 | J177: 17.57 | K177: 17.57 | M177: 0 | N177: 0 | O177: 0 | P177: 1 | Q177: 0 | R177: 0 | S177: 0 | T177: 0 | AS177: 0 | AT177: 0 | AU177: 0 | AV177: 0 | AW177: 0 | AX177: 0 | AY177: 0 | AZ177: 0 | BU177: 1
D178: Side vents A top | E178: electronics_vent_A_upper.stl | F178: 1 | G178: A | I178: 0 | J178: 12.11 | K178: 12.11 | M178: 0 | N178: 0 | O178: 0 | P178: 1 | Q178: 0 | R178: 0 | S178: 0 | T178: 0 | AS178: 0 | AT178: 0 | AU178: 0 | AV178: 0 | AW178: 0 | AX178: 0 | AY178: 0 | AZ178: 0 | BU178: 1
D179: Side vents A bottom | E179: electronics_vent_A_lower.stl | F179: 1 | G179: A | I179: 0 | J179: 17.59 | K179: 17.59 | M179: 0 | N179: 0 | O179: 0 | P179: 1 | Q179: 0 | R179: 0 | S179: 0 | T179: 0 | AS179: 0 | AT179: 0 | AU179: 0 | AV179: 0 | AW179: 0 | AX179: 0 | AY179: 0 | AZ179: 0 | BU179: 1
D180: Side vents bottom left | E180: electronics_vent_bottom_left.stl | F180: 1 | G180: A | I180: 0 | J180: 17.23 | K180: 17.23 | M180: 0 | N180: 0 | O180: 0 | P180: 1 | Q180: 0 | R180: 0 | S180: 0 | T180: 0 | AS180: 0 | AT180: 0 | AU180: 0 | AV180: 0 | AW180: 0 | AX180: 0 | AY180: 0 | AZ180: 0 | BU180: 1
D181: Side vents bottom right | E181: electronics_vent_bottom_right.stl | F181: 1 | G181: A | I181: 0 | J181: 17.52 | K181: 17.52 | M181: 0 | N181: 0 | O181: 0 | P181: 1 | Q181: 0 | R181: 0 | S181: 0 | T181: 0 | AS181: 0 | AT181: 0 | AU181: 0 | AV181: 0 | AW181: 0 | AX181: 0 | AY181: 0 | AZ181: 0 | BU181: 1
D182: Side vents – panel latch | E182: electronics_vent_panel_latch.stl | F182: 6 | G182: A | I182: 0 | J182: 37.5 | K182: 6.25 | M182: 0 | N182: 0 | O182: 0 | P182: 6 | Q182: 0 | R182: 0 | S182: 0 | T182: 0 | AS182: 0 | AT182: 0 | AU182: 0 | AV182: 0 | AW182: 0 | AX182: 0 | AY182: 0 | AZ182: 0 | BU182: 6
D183: Electronics plug mount | E183: electronics_power_switch_front.stl | F183: 1 | G183: M | I183: 4.42 | J183: 0 | K183: 4.42 | M183: 0 | N183: 0 | O183: 0 | P183: 1 | Q183: 0 | R183: 0 | S183: 0 | T183: 0 | AS183: 0 | AT183: 0 | AU183: 0 | AV183: 0 | AW183: 0 | AX183: 0 | AY183: 0 | AZ183: 0 | BU183: =IF($AX$4=0,1,0) -> 1
D184: Electronics plug mount backer | E184: electronics_power_switch_backer.stl | F184: 1 | G184: M | I184: 9.02 | J184: 0 | K184: 9.02 | M184: 0 | N184: 0 | O184: 0 | P184: 1 | Q184: 0 | R184: 0 | S184: 0 | T184: 0 | AS184: 0 | AT184: 0 | AU184: 0 | AV184: 0 | AW184: 0 | AX184: 0 | AY184: 0 | AZ184: 0 | BU184: =IF($AX$4=0,1,0) -> 1
D185: Electronics plug mount - E3 V2 | E185: electronics_power_switch_e3v2_front.stl | F185: 0 | G185: M | I185: 0 | J185: 0 | K185: 4.72 | M185: =IF(F185=0,IF(F185="",0,1),0) -> 1 | N185: =AS$4*AS185+AT$4*AT185+AU$4*AU185+AV$4*AV185+AW$4*AW185+AX$4*AX185+AY$4*AY185+AZ$4*AZ185+BA$4*BA185 -> 0 | O185: =BG$4*BG185+BH$4*BH185+BI$4*BI185+BJ$4*BJ185+BK$4*BK185+BL$4*BL185+BM$4*BM185+BN$4*BN185+BO$4*BO185+BP$4*BP185+BQ$4*BQ185+BR$4*BR185 -> 0 | P185: =BS$4*BS185+BT$4*BT185+BU$4*BU185+BV$4*BV185+BW$4*BW185+BX$4*BX185+BY$4*BY185+BZ$4*BZ185+CA$4*CA185+CB$4*CB185+CC$4*CC185+CD$4*CD185+CE$4*CE185+CF$4*CF185+CG$4*CG185+CH$4*CH185 -> 0 | Q185: =BB$4*BB185+BC$4*BC185+BD$4*BD185 -> 0 | R185: =CI$4*CI185+CJ$4*CJ185+CK$4*CK185+CL$4*CL185+CM$4*CM185+CN$4*CN185+CO$4*CO185+CP$4*CP185+CQ$4*CQ185+CR$4*CR185+CS$4*CS185+CT$4*CT185+CU$4*CU185+CV$4*CV185+CW$4*CW185+CX$4*CX185+CY$4*CY185+CZ$4*CZ185+DA$4*DA185+DB$4*DB185+DC$4*DC185+DD$4*DD185+DE$4*DE185+DF$4*DF185+DG$4*DG185+DH$4*DH185+DI$4*DI185+DJ$4*DJ185+DK$4*DK185+DL$4*DL185+DM$4*DM185+DN$4*DN185+DO$4*DO185+DP$4*DP185+DQ$4*DQ185+DR$4*DR185+DS$4*DS185+DT$4*DT185+DU$4*DU185+DV$4*DV185+DW$4*DW185+DX$4*DX185+DY$4*DY185+DZ$4*DZ185+EA$4*EA185+EB$4*EB185+EC$4*EC185+ED$4*ED185+EE$4*EE185+EF$4*EF185+EG$4*EG185+EH$4*EH185+EI$4*EI185+EJ$4*EJ185+EK$4*EK185+EL$4*EL185+EM$4*EM185+EN$4*EN185+EO$4*EO185+EP$4*EP185+EQ$4*EQ185+ER$4*ER185 -> 0 | S185: =ES$4*ES185+ET$4*ET185+EU$4*EU185+EV$4*EV185+EW$4*EW185+EX$4*EX185+EY$4*EY185+EZ$4*EZ185+FA$4*FA185+FB$4*FB185+FC$4*FC185 -> 0 | T185: =BF$4*BF185 -> 0 | BU185: =IF($AX$4=1,1,0) -> 0
D186: Electronics plug mount backer - E3 V2 | E186: electronics_power_switch_e3v2_backer.stl | F186: 0 | G186: M | I186: 0 | J186: 0 | K186: 9.06 | M186: 1 | N186: 0 | O186: 0 | P186: 0 | Q186: 0 | R186: 0 | S186: 0 | T186: 0 | BU186: =IF($AX$4=1,1,0) -> 0
D187: N17 stepper cooling B | E187: optional_stepper_cooling_B_body.stl | F187: 1 | G187: A | I187: 0 | J187: 14.22 | K187: 14.22 | M187: 0 | N187: 0 | O187: 0 | P187: 1 | Q187: 0 | R187: 0 | S187: 0 | T187: 0 | AS187: 0 | AT187: 0 | AU187: 0 | AV187: 0 | AW187: 0 | AX187: 0 | AY187: 0 | AZ187: 0 | BT187: 1
D188: N17 stepper cooling A | E188: optional_stepper_cooling_A_body.stl | F188: 1 | G188: A | I188: 0 | J188: 14.37 | K188: 14.37 | M188: 0 | N188: 0 | O188: 0 | P188: 1 | Q188: 0 | R188: 0 | S188: 0 | T188: 0 | AS188: 0 | AT188: 0 | AU188: 0 | AV188: 0 | AW188: 0 | AX188: 0 | AY188: 0 | AZ188: 0 | BT188: 1
D189: N17 stepper cooling transition | E189: optional_stepper_cooling_AB_transition.stl | F189: 2 | G189: A | I189: 0 | J189: 15.66 | K189: 7.83 | M189: 0 | N189: 0 | O189: 0 | P189: 2 | Q189: 0 | R189: 0 | S189: 0 | T189: 0 | AS189: 0 | AT189: 0 | AU189: 0 | AV189: 0 | AW189: 0 | AX189: 0 | AY189: 0 | AZ189: 0 | BT189: 2
D190: N17 stepper cooling 4020 | E190: optional_stepper_cooling_AB_4020.stl | F190: 2 | G190: A | I190: 0 | J190: 38.06 | K190: 19.03 | M190: 0 | N190: 0 | O190: 0 | P190: 2 | Q190: 0 | R190: 0 | S190: 0 | T190: 0 | AS190: 0 | AT190: 0 | AU190: 0 | AV190: 0 | AW190: 0 | AX190: 0 | AY190: 0 | AZ190: 0 | BT190: 2
D191: N17 stepper cooling wires cover | E191: optional_stepper_cooling_wires.stl | F191: 2 | G191: A | I191: 0 | J191: 1.36 | K191: 0.68 | M191: 0 | N191: 0 | O191: 0 | P191: 2 | Q191: 0 | R191: 0 | S191: 0 | T191: 0 | AS191: 0 | AT191: 0 | AU191: 0 | AV191: 0 | AW191: 0 | AX191: 0 | AY191: 0 | AZ191: 0 | BT191: 2
D192: DIN rail washer | E192: electronics_DIN_rail_mounts.stl | F192: 18 | G192: A | I192: 0 | J192: 13.14 | K192: 0.73 | M192: 0 | N192: 0 | O192: 0 | P192: 18 | Q192: 0 | R192: 0 | S192: 0 | T192: 0 | AS192: 0 | AT192: 0 | AU192: 0 | AV192: 0 | AW192: 0 | AX192: 0 | AY192: 0 | AZ192: 0 | BS192: 18
D193: 30 mm PSU - fan shroud | E193: electronics_DIN_rail_PSU_shroud.stl | F193: 1 | G193: A | I193: 0 | J193: 9.69 | K193: 9.69 | M193: 0 | N193: 0 | O193: 0 | P193: 1 | Q193: 0 | R193: 0 | S193: 0 | T193: 0 | AS193: 0 | AT193: 0 | AU193: 0 | AV193: 0 | AW193: 0 | AX193: 0 | AY193: 0 | AZ193: 0 | BW193: 1
D194: DIN rail mount – PSU | E194: electronics_DIN_rail_PSU_24V.stl | F194: 2 | G194: A | I194: 0 | J194: 3.64 | K194: 1.82 | M194: 0 | N194: 0 | O194: 0 | P194: 2 | Q194: 0 | R194: 0 | S194: 0 | T194: 0 | AS194: 0 | AT194: 0 | AU194: 0 | AV194: 0 | AW194: 0 | AX194: 0 | AY194: 0 | AZ194: 0 | BW194: 2 | BX194: 2
D195: DIN rail mount generic | E195: electronics_DIN_rail_generic_mount.stl | F195: 3 | G195: A | I195: 0 | J195: 6.93 | K195: 2.31 | M195: 0 | N195: 0 | O195: 0 | P195: 3 | Q195: 0 | R195: 0 | S195: 0 | T195: 0 | AS195: 0 | AT195: 0 | AU195: 0 | AV195: 0 | AW195: 0 | AX195: 0 | AY195: 0 | AZ195: 0 | BZ195: 2 | CB195: 3 | CC195: 2
D196: BTT SKR3EZ mount | E196: electronics_DIN_BTT_SKR3EZ_mount.stl | F196: 0 | G196: A | I196: 0 | J196: 0 | K196: 17.49 | M196: 1 | N196: 0 | O196: 0 | P196: 0 | Q196: 0 | R196: 0 | S196: 0 | T196: 0 | AS196: 0 | AT196: 0 | AU196: 0 | AV196: 0 | AW196: 0 | AX196: 0 | AY196: 0 | AZ196: 0 | BZ196: 1
D197: BTT SKR3EZ cooling | E197: electronics_DIN_BTT_SKR3EZ_cooling.stl | F197: =SUM(N197:T197) -> 0 | G197: A | I197: 0 | J197: 0 | K197: 14.83 | M197: =IF(F197=0,IF(F197="",0,1),0) -> 1 | N197: =AS$4*AS197+AT$4*AT197+AU$4*AU197+AV$4*AV197+AW$4*AW197+AX$4*AX197+AY$4*AY197+AZ$4*AZ197+BA$4*BA197 -> 0 | O197: =BG$4*BG197+BH$4*BH197+BI$4*BI197+BJ$4*BJ197+BK$4*BK197+BL$4*BL197+BM$4*BM197+BN$4*BN197+BO$4*BO197+BP$4*BP197+BQ$4*BQ197+BR$4*BR197 -> 0 | P197: =BS$4*BS197+BT$4*BT197+BU$4*BU197+BV$4*BV197+BW$4*BW197+BX$4*BX197+BY$4*BY197+BZ$4*BZ197+CA$4*CA197+CB$4*CB197+CC$4*CC197+CD$4*CD197+CE$4*CE197+CF$4*CF197+CG$4*CG197+CH$4*CH197 -> 0 | Q197: =BB$4*BB197+BC$4*BC197+BD$4*BD197 -> 0 | R197: 0 | S197: =ES$4*ES197+ET$4*ET197+EU$4*EU197+EV$4*EV197+EW$4*EW197+EX$4*EX197+EY$4*EY197+EZ$4*EZ197+FA$4*FA197+FB$4*FB197+FC$4*FC197 -> 0 | T197: =BF$4*BF197 -> 0 | AS197: 0 | AT197: 0 | AU197: 0 | AV197: 0 | AW197: 0 | AX197: 0 | AY197: 0 | AZ197: 0 | BZ197: 1
D198: BTT SKR mini E3 v2 mount | E198: electronics_DIN_BTT_SKRminiE3_mount.stl | F198: 0 | G198: A | I198: 0 | J198: 0 | K198: 16.39 | M198: =IF(F198=0,IF(F198="",0,1),0) -> 1 | N198: =AS$4*AS198+AT$4*AT198+AU$4*AU198+AV$4*AV198+AW$4*AW198+AX$4*AX198+AY$4*AY198+AZ$4*AZ198+BA$4*BA198 -> 0 | O198: =BG$4*BG198+BH$4*BH198+BI$4*BI198+BJ$4*BJ198+BK$4*BK198+BL$4*BL198+BM$4*BM198+BN$4*BN198+BO$4*BO198+BP$4*BP198+BQ$4*BQ198+BR$4*BR198 -> 0 | P198: =BS$4*BS198+BT$4*BT198+BU$4*BU198+BV$4*BV198+BW$4*BW198+BX$4*BX198+BY$4*BY198+BZ$4*BZ198+CA$4*CA198+CB$4*CB198+CC$4*CC198+CD$4*CD198+CE$4*CE198+CF$4*CF198+CG$4*CG198+CH$4*CH198 -> 0 | Q198: =BB$4*BB198+BC$4*BC198+BD$4*BD198 -> 0 | R198: 0 | S198: =ES$4*ES198+ET$4*ET198+EU$4*EU198+EV$4*EV198+EW$4*EW198+EX$4*EX198+EY$4*EY198+EZ$4*EZ198+FA$4*FA198+FB$4*FB198+FC$4*FC198 -> 0 | T198: =BF$4*BF198 -> 0 | AS198: 0 | AT198: 0 | AU198: 0 | AV198: 0 | AW198: 0 | AX198: 0 | AY198: 0 | AZ198: 0 | CC198: 1
D199: BTT Octopus v1.1 mount | E199: electronics_DIN_BTT_octopus_11_mount.stl | F199: 1 | G199: A | I199: 0 | J199: 23.68 | K199: 23.68 | M199: 0 | N199: 0 | O199: 0 | P199: 1 | Q199: 0 | R199: 0 | S199: 0 | T199: 0 | AS199: 0 | AT199: 0 | AU199: 0 | AV199: 0 | AW199: 0 | AX199: 0 | AY199: 0 | AZ199: 0 | CB199: 1
D200: BTT Octopus v1.1 cooling | E200: electronics_DIN_BTT_octopus_11_cooling.stl | F200: 1 | G200: A | I200: 0 | J200: 16.3 | K200: 16.3 | M200: 0 | N200: 0 | O200: 0 | P200: 1 | Q200: 0 | R200: 0 | S200: 0 | T200: 0 | AS200: 0 | AT200: 0 | AU200: 0 | AV200: 0 | AW200: 0 | AX200: 0 | AY200: 0 | AZ200: 0 | CB200: 1
... 57 more rows

Sheet VERIFIED KITS
C1: 2024/10/25 – RH3D
C2: WE ARE WORKING ON KITS FOR THE PROJECT AND NOT ALL OF THEM ARE AVAILABLE AT THE MOMENT.
C3: KEEP WATCHING FOR UPDATES AND AS MORE INFO WILL BE ADDED LATER
C4: KIT | D4: OPTION | F4: PACKAGE INCLUDES | H4: NOTE | I4: LINK | J4: PRICE
C5: FUSHI bearing
C6: ENDER 3 NG LINEAR MOTION SHAFTS AND BEARINGS PACK
D7: Shafts Pack | F7: 4pcs 8x350 mm / 2pcs 12x350mm / 1pc 12x320mm linear shafts | H7: Linear shafts from hardened bearing steel (no chrome plating) with g6 tolerance, precision ground surface. | I7: [ AliExpress ] | J7: 65.48
D9: Basic Bearing Pack A | F9: 4pcs LM8LUU / 3pcs LM12UU / 50pcs F695-2RS / 10pcs 608-2RS | H9: Bearings in the pack are great and consistent quality with minimum ABEC 5. | I9: [ AliExpress ] | J9: 49.05
H10: LM8LUU - ABEC 5 / LM12UU - ABEC 5 / F695-2RS - ABEC 9 / 608-2RS - ABEC 9
D11: Upgrade Bearings Pack B | F11: 4pcs LM8LUU+ / 3pcs LM12UU / 50pcs F695-2RS / 10pcs 608-2RS | H11: Same as the basic bearing pack, but the black chromium on LM8LUUs brings more wear resistance | I11: [ AliExpress ] | J11: 51.84
H12: and they have lower tolerance.
C14: NOTE:
D15: Fushi bearing and shaft kit has been created in cooperation with RH3D and tested by RH3D as well, it shows great quality and is highly recommended over other generic linear bearings and shafts.
D16: Linear shafts made by Fushi are hardened steel without chroming and with precission grinding to tolerance g6, this is superior to other common chrome plated shafts but it also means that all the rods need to be cut after receiving orders to avoid
D17: unnecessarily long storage. As a result the shipping will be arranged within few days or max in a week.
D18: Hardened steel without chroming has better wear resistance but can also rust under certain conditions. Doing common maintenance and having the linear bearings lubricated is enough to keep them from rusting.
C21: FABREEKO
C22: PRINTER BUILD KIT
D23: kit | F23: things | H23: fabreeko | J23: 0
C29: FUNSSOR
C30: HARDWARE KIT
D31: Hardware kit | F31: Screws, nuts, t-nuts, washers, heat set inserts | H31: Stainless steel hardware. | I31: [ AliExpress ] | J31: 35.89
C33: MOTION AND ELECTRONICS KIT
D34: Motion kit | F34: Linear rods and bearings, F695 + 608 bearings, 40T 8mm pulleys, 20T 5mm pulleys, | H34: NSK ABEC-5 bearings (LM8LUU, LM12UU, F695), 3m Gates belt, linear rods h6 tolerance. | I34: [ AliExpress ] | J34: 177.99
F35: 3m GT2 belt, 1140 mm GT2 belt, T8/8 leadscrews, nuts, rubber feet, PTFE tube, 350 mm 2040 extrusion
D36: Electronics and Motion kit | F36: Everything in motion kit + DIN rails, 4010 blower fans, 3010 + 4020 + 6015 axial fans, | H36: Dual ball bearing fans, 4010 fan = 10K RPM, 3010 fan = 15K RPM | I36: [ AliExpress ] | J36: 199.85
F37: D2f-L microswitch
C38: ENCLOSURE KIT
D39: Hardware pack | F39: Screws, washers, heat set inserts, F695 bearings, 6015 fan | I39: [ AliExpress ] | J39: 19.85
D41: Full enclosure kit | F41: Polycarbonate panels 4 mm - bottom, rear black, other clear. | H41: CNC cut PC panels, chamfered holes where needed. | I41: [ AliExpress ] | J41: 159.99
F42: and everything in the hardware pack.
D43: Panel kit | F43: Only Polycarbonate panels without the electronics cover. | I43: [ AliExpress ] | J43: 135
C47: OTHER
C48: KIT
D49: VERSION A | F49: included | H49: Note | J49: 0
D50: VERSION B
C55: OTHER 2
J57: 0

Sheet FUNSSOR (hidden)
B2: HARDWARE KIT
B3: PART | D3: SPECS | E3: QTY
B4: M2 SOCKET HEAD SCREWS
C5: M2 x 10 | D5: stainless steel | E5: 4
B6: M3 SOCKET HEAD SCREWS
C7: M3 x 6 | D7: stainless steel | E7: 62
C8: M3 x 8 | D8: stainless steel | E8: 44
C9: M3 x 10 | D9: stainless steel | E9: 32
C10: M3 x 16 | D10: stainless steel | E10: 4
C11: M3 x 20 | D11: stainless steel | E11: 15
C12: M3 x 25 | D12: stainless steel | E12: 12
C13: M3 x 35 | D13: stainless steel | E13: 19
B14: M4 SOCKET HEAD SCREWS
C15: M4 x 8 | D15: stainless steel | E15: 32
C16: M4 x 10 | D16: stainless steel | E16: 11
B17: M5 SOCKET HEAD SCREWS
C18: M5 x 12 | D18: stainless steel | E18: 24
C19: M5 x 20 | D19: stainless steel | E19: 4
C20: M5 x 25 | D20: stainless steel | E20: 10
C21: M5 x 35 | D21: stainless steel | E21: 4
B22: M5 BUTTON HEAD SCREWS
C23: M5 x 10 | D23: stainless steel | E23: 4
C24: M5 x 20 | D24: stainless steel | E24: 12
B25: M3 SETSCREWS
C26: M3 x 5 | D26: flatpoint, hex socket, stainless steel | E26: 8
B27: WASHERS
C28: M5 | D28: 5,3 x 10 x 1 mm (ID x OD x TH) - stainless or brass | E28: 52
B29: NUTS
C30: M3 | D30: stainless steel | E30: 5
B31: T-NUTS
C32: M3 | D32: T-nut for 2020 V-slot extrusion | E32: 39
C33: M4 | D33: T-nut for 2020 V-slot extrusion | E33: 30
B34: HEAT INSERTS
C35: M3 | D35: M3 x 4 x 4,5 mm (ID x L x OD) | E35: 99
C36: M5 | D36: M5 x 5 x 7 mm (ID x L x OD) | E36: 18
B39: MOTION/FRAME KIT
B40: PART | D40: SPECS | E40: QTY
B41: BEARINGS
B42: LM8LUU | D42: ABEC - 5 | E42: 4
B43: LM12UU | D43: ABEC - 5 | E43: 3
B44: F695-2RS | D44: ABEC - 5 / NSK | E44: 32
B45: 608-2RS | D45: China brand | E45: 6
B46: LINEAR SHAFT
B47: 8x350mm linear shaft | D47: h6 diameter tolerance - hardened steel | E47: 4
B48: 12x350mm linear shaft | D48: h6 diameter tolerance - hardened steel | E48: 2
B49: 12x320mm linear shaft | D49: h6 diameter tolerance - hardened steel | E49: 1
B50: OTHER - MOTION
B51: GT2 6mm x 1140mm closed loop belt | D51: Gates | E51: 1
B52: GT2 6mm 3m open belt | D52: China brand | E52: 1
B53: 40T GT2 8mm pulley | D53: for 6mm belt - total width 17mm | E53: 3
B54: 20T GT2 5mm pulley | D54: for 6mm belt | E54: 3
B55: T8/8 x 300mm leadscrew | E55: 3
B56: T8/8 leadscrew nut | E56: 3
B57: OTHER
B58: 2040 x 350 mm extrusion | D58: V-slot - black surface finish | E58: 2
B59: Electronics panel | D59: polycarbonate - 3mm | E59: 1 | G59: E3NG_electronics_panel.dxf
B60: PTFE 4/2mm tube | D60: 1 meter | E60: 1
B61: Rubber feet | D61: 19mm height - hole for M5 screw | E61: 4
B62: Bed silicone spacer | E62: 4
B65: ELECTRONICS KIT
B66: PART | D66: SPECS | E66: QTY
B67: FANS
B68: 3010 axial fan | D68: 24V - dual ball bearing - 15k RPM | E68: 1
B69: 4010 radial fan | D69: 24V - dual ball bearing - 10k RPM | E69: 2
B70: 4020 axial fan | D70: 24V - dual ball bearing | E70: 2
B71: 6015 axial fan | D71: 24V - dual ball bearing | E71: 2
B72: OTHER
B73: DIN rail 350mm | E73: 2
B74: DIN rail 200mm | E74: 1
B75: microswitch | D75: Omron D2F-L | E75: 3
B78: ENCLOSURE KIT
B79: PART | D79: SPECS | E79: QTY
B80: POLYCARBONATE PANELS
B81: Door panel | D81: polycarbonate - 5 mm / 4mm | E81: 1 | G81: E3NG_enclosure_panel_door.dxf
B82: Side panel | D82: polycarbonate - 4mm / 3mm | E82: 2 | G82: E3NG_enclosure_panel_side.dxf
B83: Bottom panel | D83: polycarbonate - 4mm / 3mm | E83: 1 | G83: E3NG_enclosure_panel_bottom.dxf
B84: Top panel | D84: polycarbonate - 4mm / 3mm | E84: 1 | G84: E3NG_enclosure_panel_top.dxf
B85: Rear panel | D85: polycarbonate - 4mm / 3mm | E85: 1 | G85: E3NG_enclosure_panel_rear.dxf
B86: HARDWARE
B87: F695-2RS | D87: China brand | E87: 12
B88: 6015 axial fan | D88: 24V - dual ball bearing | E88: 1
B89: MAGNET 6 x 3 mm | D89: Neodymium magnet | E89: 20
B90: M3 SOCKET HEAD SCREWS
C91: M3 x 6 | D91: stainless steel | E91: 2
C92: M3 x 10 | D92: stainless steel | E92: 50
C93: M3 x 14 | D93: stainless steel | E93: 17
C94: M3 x 35 | D94: stainless steel | E94: 2
B95: M3 FLAT HEAD COUNTERSUNK SCREW
C96: M3 x 12 | D96: stainless steel | E96: 12
B97: M5 SOCKET HEAD SCREWS
C98: M5 x 12 | D98: stainless steel | E98: 12
B99: WASHERS
C100: M5 | D100: 5,3 x 10 x 1 mm (ID x OD x TH) - stainless or brass | E100: 12
B101: T-NUTS
C102: M3 | D102: T-nut for 2020 V-slot extrusion | E102: 38
B103: HEAT INSERTS
C104: M3 | D104: M3 x 4 x 4,5 mm (ID x L x OD) | E104: 44
C105: M5 | D105: M5 x 5 x 7 mm (ID x L x OD) | E105: 12

Sheet FABREEKO (hidden)
B2: HARDWARE KIT
B3: PART | D3: SPECS | E3: QTY
B4: M2 SOCKET HEAD SCREWS
C5: M2 x 10 | D5: stainless steel | E5: 4
B6: M3 SOCKET HEAD SCREWS
C7: M3 x 6 | D7: stainless steel | E7: 62
C8: M3 x 8 | D8: stainless steel | E8: 44
C9: M3 x 10 | D9: stainless steel | E9: 32
C10: M3 x 16 | D10: stainless steel | E10: 4
C11: M3 x 20 | D11: stainless steel | E11: 15
C12: M3 x 25 | D12: stainless steel | E12: 12
C13: M3 x 35 | D13: stainless steel | E13: 19
B14: M4 SOCKET HEAD SCREWS
C15: M4 x 8 | D15: stainless steel | E15: 32
C16: M4 x 10 | D16: stainless steel | E16: 11
B17: M5 SOCKET HEAD SCREWS
C18: M5 x 12 | D18: stainless steel | E18: 24
C19: M5 x 20 | D19: stainless steel | E19: 4
C20: M5 x 25 | D20: stainless steel | E20: 10
C21: M5 x 35 | D21: stainless steel | E21: 4
B22: M5 BUTTON HEAD SCREWS
C23: M5 x 10 | D23: stainless steel | E23: 4
C24: M5 x 20 | D24: stainless steel | E24: 12
B25: M3 SETSCREWS
C26: M3 x 5 | D26: flatpoint, hex socket, stainless steel | E26: 8
B27: WASHERS
C28: M5 | D28: 5,3 x 10 x 1 mm (ID x OD x TH) - stainless or brass | E28: 52
B29: NUTS
C30: M3 | D30: stainless steel | E30: 5
B31: T-NUTS
C32: M3 | D32: T-nut for 2020 V-slot extrusion | E32: 39
C33: M4 | D33: T-nut for 2020 V-slot extrusion | E33: 30
B34: HEAT INSERTS
C35: M3 | D35: M3 x 4 x 4,5 mm (ID x L x OD) | E35: 99
C36: M5 | D36: M5 x 5 x 7 mm (ID x L x OD) | E36: 18
B39: MOTION/FRAME KIT
B40: PART | D40: SPECS | E40: QTY
B41: BEARINGS
B42: LM8LUU | D42: ABEC - 5 | E42: 4
B43: LM12UU | D43: ABEC - 5 | E43: 3
B44: F695-2RS | D44: ABEC - 5 / NSK | E44: 32
B45: 608-2RS | D45: China brand | E45: 6
B46: LINEAR SHAFT
B47: 8x350mm linear shaft | D47: h6 diameter tolerance - hardened steel | E47: 4
B48: 12x350mm linear shaft | D48: h6 diameter tolerance - hardened steel | E48: 2
B49: 12x320mm linear shaft | D49: h6 diameter tolerance - hardened steel | E49: 1
B50: OTHER - MOTION
B51: GT2 6mm x 1140mm closed loop belt | D51: Gates | E51: 1
B52: GT2 6mm 3m open belt | D52: China brand | E52: 1
B53: 40T GT2 8mm pulley | D53: for 6mm belt - total width 17mm | E53: 3
B54: 20T GT2 5mm pulley | D54: for 6mm belt | E54: 3
B55: T8/8 x 300mm leadscrew | E55: 3
B56: T8/8 leadscrew nut | E56: 3
B57: OTHER
B58: 2040 x 350 mm extrusion | D58: V-slot - black surface finish | E58: 2
B59: Electronics panel | D59: polycarbonate - 3mm | E59: 1 | G59: E3NG_electronics_panel.dxf
B60: PTFE 4/2mm tube | D60: 1 meter | E60: 1
B61: Rubber feet | D61: 19mm height - hole for M5 screw | E61: 4
B62: Bed silicone spacer | E62: 4
B65: ELECTRONICS KIT
B66: PART | D66: SPECS | E66: QTY
B67: FANS
B68: 3010 axial fan | D68: 24V - dual ball bearing - 15k RPM | E68: 1
B69: 4010 radial fan | D69: 24V - dual ball bearing - 10k RPM | E69: 2
B70: 4020 axial fan | D70: 24V - dual ball bearing | E70: 2
B71: 6015 axial fan | D71: 24V - dual ball bearing | E71: 2
B72: OTHER
B73: DIN rail 350mm | E73: 2
B74: DIN rail 200mm | E74: 1
B75: microswitch | D75: Omron D2F-L | E75: 3
B78: ENCLOSURE KIT
B79: PART | D79: SPECS | E79: QTY
B80: POLYCARBONATE PANELS
B81: Door panel | D81: polycarbonate - 5 mm / 4mm | E81: 1 | G81: E3NG_enclosure_panel_door.dxf
B82: Side panel | D82: polycarbonate - 4mm / 3mm | E82: 2 | G82: E3NG_enclosure_panel_side.dxf
B83: Bottom panel | D83: polycarbonate - 4mm / 3mm | E83: 1 | G83: E3NG_enclosure_panel_bottom.dxf
B84: Top panel | D84: polycarbonate - 4mm / 3mm | E84: 1 | G84: E3NG_enclosure_panel_top.dxf
B85: Rear panel | D85: polycarbonate - 4mm / 3mm | E85: 1 | G85: E3NG_enclosure_panel_rear.dxf
B86: HARDWARE
B87: F695-2RS | D87: China brand | E87: 12
B88: 6015 axial fan | D88: 24V - dual ball bearing | E88: 1
B89: MAGNET 6 x 3 mm | D89: Neodymium magnet | E89: 20
B90: M3 SOCKET HEAD SCREWS
C91: M3 x 6 | D91: stainless steel | E91: 2
C92: M3 x 10 | D92: stainless steel | E92: 50
C93: M3 x 14 | D93: stainless steel | E93: 17
C94: M3 x 35 | D94: stainless steel | E94: 2
B95: M3 FLAT HEAD COUNTERSUNK SCREW
C96: M3 x 12 | D96: stainless steel | E96: 12
B97: M5 SOCKET HEAD SCREWS
C98: M5 x 12 | D98: stainless steel | E98: 12
B99: WASHERS
C100: M5 | D100: 5,3 x 10 x 1 mm (ID x OD x TH) - stainless or brass | E100: 12
B101: T-NUTS
C102: M3 | D102: T-nut for 2020 V-slot extrusion | E102: 38
B103: HEAT INSERTS
C104: M3 | D104: M3 x 4 x 4,5 mm (ID x L x OD) | E104: 44
C105: M5 | D105: M5 x 5 x 7 mm (ID x L x OD) | E105: 12

Sheet FUSHI (hidden)
B2: HARDWARE KIT
B3: PART | D3: SPECS | E3: QTY
B4: M2 SOCKET HEAD SCREWS
C5: M2 x 10 | D5: stainless steel | E5: 4
B6: M3 SOCKET HEAD SCREWS
C7: M3 x 6 | D7: stainless steel | E7: 62
C8: M3 x 8 | D8: stainless steel | E8: 44
C9: M3 x 10 | D9: stainless steel | E9: 32
C10: M3 x 16 | D10: stainless steel | E10: 4
C11: M3 x 20 | D11: stainless steel | E11: 15
C12: M3 x 25 | D12: stainless steel | E12: 12
C13: M3 x 35 | D13: stainless steel | E13: 19
B14: M4 SOCKET HEAD SCREWS
C15: M4 x 8 | D15: stainless steel | E15: 32
C16: M4 x 10 | D16: stainless steel | E16: 11
B17: M5 SOCKET HEAD SCREWS
C18: M5 x 12 | D18: stainless steel | E18: 24
C19: M5 x 20 | D19: stainless steel | E19: 4
C20: M5 x 25 | D20: stainless steel | E20: 10
C21: M5 x 35 | D21: stainless steel | E21: 4
B22: M5 BUTTON HEAD SCREWS
C23: M5 x 10 | D23: stainless steel | E23: 4
C24: M5 x 20 | D24: stainless steel | E24: 12
B25: M3 SETSCREWS
C26: M3 x 5 | D26: flatpoint, hex socket, stainless steel | E26: 8
B27: WASHERS
C28: M5 | D28: 5,3 x 10 x 1 mm (ID x OD x TH) - stainless or brass | E28: 52
B29: NUTS
C30: M3 | D30: stainless steel | E30: 5
B31: T-NUTS
C32: M3 | D32: T-nut for 2020 V-slot extrusion | E32: 39
C33: M4 | D33: T-nut for 2020 V-slot extrusion | E33: 30
B34: HEAT INSERTS
C35: M3 | D35: M3 x 4 x 4,5 mm (ID x L x OD) | E35: 99
C36: M5 | D36: M5 x 5 x 7 mm (ID x L x OD) | E36: 18
B39: MOTION/FRAME KIT
B40: PART | D40: SPECS | E40: QTY
B41: BEARINGS
B42: LM8LUU | D42: ABEC - 5 | E42: 4
B43: LM12UU | D43: ABEC - 5 | E43: 3
B44: F695-2RS | D44: ABEC - 5 / NSK | E44: 32
B45: 608-2RS | D45: China brand | E45: 6
B46: LINEAR SHAFT
B47: 8x350mm linear shaft | D47: h6 diameter tolerance - hardened steel | E47: 4
B48: 12x350mm linear shaft | D48: h6 diameter tolerance - hardened steel | E48: 2
B49: 12x320mm linear shaft | D49: h6 diameter tolerance - hardened steel | E49: 1
B50: OTHER - MOTION
B51: GT2 6mm x 1140mm closed loop belt | D51: Gates | E51: 1
B52: GT2 6mm 3m open belt | D52: China brand | E52: 1
B53: 40T GT2 8mm pulley | D53: for 6mm belt - total width 17mm | E53: 3
B54: 20T GT2 5mm pulley | D54: for 6mm belt | E54: 3
B55: T8/8 x 300mm leadscrew | E55: 3
B56: T8/8 leadscrew nut | E56: 3
B57: OTHER
B58: 2040 x 350 mm extrusion | D58: V-slot - black surface finish | E58: 2
B59: Electronics panel | D59: polycarbonate - 3mm | E59: 1 | G59: E3NG_electronics_panel.dxf
B60: PTFE 4/2mm tube | D60: 1 meter | E60: 1
B61: Rubber feet | D61: 19mm height - hole for M5 screw | E61: 4
B62: Bed silicone spacer | E62: 4
B65: ELECTRONICS KIT
B66: PART | D66: SPECS | E66: QTY
B67: FANS
B68: 3010 axial fan | D68: 24V - dual ball bearing - 15k RPM | E68: 1
B69: 4010 radial fan | D69: 24V - dual ball bearing - 10k RPM | E69: 2
B70: 4020 axial fan | D70: 24V - dual ball bearing | E70: 2
B71: 6015 axial fan | D71: 24V - dual ball bearing | E71: 2
B72: OTHER
B73: DIN rail 350mm | E73: 2
B74: DIN rail 200mm | E74: 1
B75: microswitch | D75: Omron D2F-L | E75: 3
B78: ENCLOSURE KIT
B79: PART | D79: SPECS | E79: QTY
B80: POLYCARBONATE PANELS
B81: Door panel | D81: polycarbonate - 5 mm / 4mm | E81: 1 | G81: E3NG_enclosure_panel_door.dxf
B82: Side panel | D82: polycarbonate - 4mm / 3mm | E82: 2 | G82: E3NG_enclosure_panel_side.dxf
B83: Bottom panel | D83: polycarbonate - 4mm / 3mm | E83: 1 | G83: E3NG_enclosure_panel_bottom.dxf
B84: Top panel | D84: polycarbonate - 4mm / 3mm | E84: 1 | G84: E3NG_enclosure_panel_top.dxf
B85: Rear panel | D85: polycarbonate - 4mm / 3mm | E85: 1 | G85: E3NG_enclosure_panel_rear.dxf
B86: HARDWARE
B87: F695-2RS | D87: China brand | E87: 12
B88: 6015 axial fan | D88: 24V - dual ball bearing | E88: 1
B89: MAGNET 6 x 3 mm | D89: Neodymium magnet | E89: 20
B90: M3 SOCKET HEAD SCREWS
C91: M3 x 6 | D91: stainless steel | E91: 2
C92: M3 x 10 | D92: stainless steel | E92: 50
C93: M3 x 14 | D93: stainless steel | E93: 17
C94: M3 x 35 | D94: stainless steel | E94: 2
B95: M3 FLAT HEAD COUNTERSUNK SCREW
C96: M3 x 12 | D96: stainless steel | E96: 12
B97: M5 SOCKET HEAD SCREWS
C98: M5 x 12 | D98: stainless steel | E98: 12
B99: WASHERS
C100: M5 | D100: 5,3 x 10 x 1 mm (ID x OD x TH) - stainless or brass | E100: 12
B101: T-NUTS
C102: M3 | D102: T-nut for 2020 V-slot extrusion | E102: 38
B103: HEAT INSERTS
C104: M3 | D104: M3 x 4 x 4,5 mm (ID x L x OD) | E104: 44
C105: M5 | D105: M5 x 5 x 7 mm (ID x L x OD) | E105: 12
